Workbook

Sheet Settings (hidden)
A1: Version Number | B1: Lock Workbooks: | C1: BETA
A2: 9.42 | B2: Yes | C2: No
A3: =CONCATENATE(A2," SH | © 2022") -> 9.42 SH | © 2022
A5: View Options | B5: 1 | C5: 1
A6: Input View | C6: Show Periods
A7: Print View | C7: Show Dates
A9: Summary Chart Data | C9: 1 | D9: 2 | E9: 3 | F9: 4 | G9: 5 | H9: 6 | I9: 7 | J9: 8 | K9: 9 | L9: 10 | N9: Amortizing Rate Structure | R9: Loan Costs Amortization
A10: Net Operating Income | C10: ='Sources & Uses'!D11 -> 515106.375 | D10: ='Sources & Uses'!E11 -> 822908.715 | E10: ='Sources & Uses'!F11 -> 847595.9764 | F10: ='Sources & Uses'!G11 -> 873023.8557 | G10: ='Sources & Uses'!H11 -> 899214.5714 | H10: ='Sources & Uses'!I11 -> 926191.0086 | I10: ='Sources & Uses'!J11 -> 953976.7388 | J10: ='Sources & Uses'!K11 -> 982596.041 | K10: ='Sources & Uses'!L11 -> 1012073.922 | L10: ='Sources & Uses'!M11 -> 1042436.14 | N10: Year | O10: Step | P10: Rate | R10: Year | S10: Start | T10: End | U10: I/O | V10: Amortizing | W10: Total
A11: Debt Serivce | C11: =IF('Cash Flows'!F$90=0,NA(),'Cash Flows'!F$90) ->  | D11: =IF('Cash Flows'!G$90=0,NA(),'Cash Flows'!G$90) ->  | E11: =IF('Cash Flows'!H$90=0,NA(),'Cash Flows'!H$90) ->  | F11: =IF('Cash Flows'!I$90=0,NA(),'Cash Flows'!I$90) ->  | G11: =IF('Cash Flows'!J$90=0,NA(),'Cash Flows'!J$90) ->  | H11: =IF('Cash Flows'!K$90=0,NA(),'Cash Flows'!K$90) ->  | I11: =IF('Cash Flows'!L$90=0,NA(),'Cash Flows'!L$90) ->  | J11: =IF('Cash Flows'!M$90=0,NA(),'Cash Flows'!M$90) ->  | K11: =IF('Cash Flows'!N$90=0,NA(),'Cash Flows'!N$90) ->  | L11: =IF('Cash Flows'!O$90=0,NA(),'Cash Flows'!O$90) ->  | N11: 1 | O11: 0 | P11: =Loan_Amor_Rate+O11 -> 0 | R11: 1 | S11: 1 | T11: 12 | U11: =IF($R11>Hold,0,IF(Loan_IO_Term<$S11,0,IF(Loan_IO_Term>=$T11,(Loan_IO_Fee*Loan_Amount*12)/Loan_IO_Term,(Loan_IO_Term-S11+1)*((Loan_IO_Fee*Loan_Amount)/Loan_IO_Term)))) -> 0 | V11: =IF(OR(R11>Hold,Loan_IO_Term>=T11),0,IF(T11-Loan_IO_Term<12,((Loan_Amount_Amortizing*Loan_Amor_Fee)/Loan_Amor_Term)*(T11-Loan_IO_Term),IF(T11<=SUM(Loan_IO_Term,Loan_Amor_Term),(Loan_Amount_Amortizing*Loan_Amor_Fee*12)/Loan_Amor_Term,IF(AND(SUM(Loan_IO_Term,Loan_Amor_Term)>=S11,SUM(Loan_IO_Term,Loan_Amor_Term)<T11),((Loan_Amount_Amortizing*Loan_Amor_Fee)/Loan_Amor_Term)*(SUM(Loan_IO_Term,Loan_Amor_Term)-S11+1),0)))) -> 0 | W11: =SUM(U11:V11) -> 0
A12: Cash Flow After Taxes | C12: ='Return Detail'!F83 -> 334819.1438 | D12: ='Return Detail'!G83 -> 534890.6647 | E12: ='Return Detail'!H83 -> 550937.3847 | F12: ='Return Detail'!I83 -> 567465.5062 | G12: ='Return Detail'!J83 -> 584489.4714 | H12: ='Return Detail'!K83 -> 602024.1556 | I12: ='Return Detail'!L83 -> 620084.8802 | J12: ='Return Detail'!M83 -> 638687.4266 | K12: ='Return Detail'!N83 -> 657848.0494 | L12: ='Return Detail'!O83 -> 677583.4909 | N12: 2 | O12: =IF(MOD(N11,Loan_Amor_RateGrowthPeriod)=0,Loan_Amor_RateGrowth,0) -> 0 | P12: =P11+O12 -> 0 | R12: 2 | S12: =T11+1 -> 13 | T12: =T11+12 -> 24 | U12: 0 | V12: 0 | W12: =SUM(U12:V12) -> 0
A13: Return on Asset | C13: =IF(C$9>Hold,NA(),'Return Detail'!F9/Acquisition_Unlevered) ->  | D13: =IF(D$9>Hold,NA(),'Return Detail'!G9/Acquisition_Unlevered) ->  | E13: =IF(E$9>Hold,NA(),'Return Detail'!H9/Acquisition_Unlevered) ->  | F13: =IF(F$9>Hold,NA(),'Return Detail'!I9/Acquisition_Unlevered) ->  | G13: =IF(G$9>Hold,NA(),'Return Detail'!J9/Acquisition_Unlevered) ->  | H13: =IF(H$9>Hold,NA(),'Return Detail'!K9/Acquisition_Unlevered) ->  | I13: =IF(I$9>Hold,NA(),'Return Detail'!L9/Acquisition_Unlevered) ->  | J13: =IF(J$9>Hold,NA(),'Return Detail'!M9/Acquisition_Unlevered) ->  | K13: =IF(K$9>Hold,NA(),'Return Detail'!N9/Acquisition_Unlevered) ->  | L13: =IF(L$9>Hold,NA(),'Return Detail'!O9/Acquisition_Unlevered) ->  | N13: 3 | O13: 0 | P13: 0 | R13: 3 | S13: =T12+1 -> 25 | T13: =T12+12 -> 36 | U13: 0 | V13: 0 | W13: 0
A14: Before Tax Cash on Cash | C14: =IF(C$9>Hold,NA(),'Return Detail'!F80/Equity_Amount) ->  | D14: =IF(D$9>Hold,NA(),'Return Detail'!G80/Equity_Amount) ->  | E14: =IF(E$9>Hold,NA(),'Return Detail'!H80/Equity_Amount) ->  | F14: =IF(F$9>Hold,NA(),'Return Detail'!I80/Equity_Amount) ->  | G14: =IF(G$9>Hold,NA(),'Return Detail'!J80/Equity_Amount) ->  | H14: =IF(H$9>Hold,NA(),'Return Detail'!K80/Equity_Amount) ->  | I14: =IF(I$9>Hold,NA(),'Return Detail'!L80/Equity_Amount) ->  | J14: =IF(J$9>Hold,NA(),'Return Detail'!M80/Equity_Amount) ->  | K14: =IF(K$9>Hold,NA(),'Return Detail'!N80/Equity_Amount) ->  | L14: =IF(L$9>Hold,NA(),'Return Detail'!O80/Equity_Amount) ->  | N14: 4 | O14: 0 | P14: 0 | R14: 4 | S14: =T13+1 -> 37 | T14: =T13+12 -> 48 | U14: 0 | V14: 0 | W14: 0
A15: After Tax Cash on Cash | C15: =IF(C$9>Hold,NA(),'Return Detail'!F83/Equity_Amount) ->  | D15: =IF(D$9>Hold,NA(),'Return Detail'!G83/Equity_Amount) ->  | E15: =IF(E$9>Hold,NA(),'Return Detail'!H83/Equity_Amount) ->  | F15: =IF(F$9>Hold,NA(),'Return Detail'!I83/Equity_Amount) ->  | G15: =IF(G$9>Hold,NA(),'Return Detail'!J83/Equity_Amount) ->  | H15: =IF(H$9>Hold,NA(),'Return Detail'!K83/Equity_Amount) ->  | I15: =IF(I$9>Hold,NA(),'Return Detail'!L83/Equity_Amount) ->  | J15: =IF(J$9>Hold,NA(),'Return Detail'!M83/Equity_Amount) ->  | K15: =IF(K$9>Hold,NA(),'Return Detail'!N83/Equity_Amount) ->  | L15: =IF(L$9>Hold,NA(),'Return Detail'!O83/Equity_Amount) ->  | N15: 5 | O15: 0 | P15: 0 | R15: 5 | S15: 49 | T15: 60 | U15: 0 | V15: 0 | W15: 0
A16: Pre Tax | C16: =IF(C9>Hold,NA(),'Cash Flows'!F93) -> 0.018375 | D16: =IF(D9>Hold,NA(),'Cash Flows'!G93) -> 0.0285 | E16: =IF(E9>Hold,NA(),'Cash Flows'!H93) -> 0.0285 | F16: =IF(F9>Hold,NA(),'Cash Flows'!I93) -> 0.0285 | G16: =IF(G9>Hold,NA(),'Cash Flows'!J93) -> 0.0285 | H16: =IF(H9>Hold,NA(),'Cash Flows'!K93) -> 0.0285 | I16: =IF(I9>Hold,NA(),'Cash Flows'!L93) -> 0.0285 | J16: =IF(J9>Hold,NA(),'Cash Flows'!M93) -> 0.0285 | K16: =IF(K9>Hold,NA(),'Cash Flows'!N93) -> 0.0285 | L16: =IF(L9>Hold,NA(),'Cash Flows'!O93) -> 0.0285 | N16: 6 | O16: =IF(MOD(N15,Loan_Amor_RateGrowthPeriod)=0,Loan_Amor_RateGrowth,0) -> 0 | P16: =P15+O16 -> 0 | R16: 6 | S16: =T15+1 -> 61 | T16: =T15+12 -> 72 | U16: 0 | V16: 0 | W16: 0
A17: After Tax | C17: =IF(C9>Hold,NA(),IFERROR(SUM('Cash Flows'!F129,'Cash Flows'!F99,'Cash Flows'!F90,'Cash Flows'!F55)/SUM('Cash Flows'!F33,'Cash Flows'!F24,'Cash Flows'!F98),NA())) -> -0.18956875 | D17: =IF(D9>Hold,NA(),IFERROR(SUM('Cash Flows'!G129,'Cash Flows'!G99,'Cash Flows'!G90,'Cash Flows'!G55)/SUM('Cash Flows'!G33,'Cash Flows'!G24,'Cash Flows'!G98),NA())) -> -0.294025 | E17: =IF(E9>Hold,NA(),IFERROR(SUM('Cash Flows'!H129,'Cash Flows'!H99,'Cash Flows'!H90,'Cash Flows'!H55)/SUM('Cash Flows'!H33,'Cash Flows'!H24,'Cash Flows'!H98),NA())) -> -0.294025 | F17: =IF(F9>Hold,NA(),IFERROR(SUM('Cash Flows'!I129,'Cash Flows'!I99,'Cash Flows'!I90,'Cash Flows'!I55)/SUM('Cash Flows'!I33,'Cash Flows'!I24,'Cash Flows'!I98),NA())) -> -0.294025 | G17: =IF(G9>Hold,NA(),IFERROR(SUM('Cash Flows'!J129,'Cash Flows'!J99,'Cash Flows'!J90,'Cash Flows'!J55)/SUM('Cash Flows'!J33,'Cash Flows'!J24,'Cash Flows'!J98),NA())) -> -0.294025 | H17: =IF(H9>Hold,NA(),IFERROR(SUM('Cash Flows'!K129,'Cash Flows'!K99,'Cash Flows'!K90,'Cash Flows'!K55)/SUM('Cash Flows'!K33,'Cash Flows'!K24,'Cash Flows'!K98),NA())) -> -0.294025 | I17: =IF(I9>Hold,NA(),IFERROR(SUM('Cash Flows'!L129,'Cash Flows'!L99,'Cash Flows'!L90,'Cash Flows'!L55)/SUM('Cash Flows'!L33,'Cash Flows'!L24,'Cash Flows'!L98),NA())) -> -0.294025 | J17: =IF(J9>Hold,NA(),IFERROR(SUM('Cash Flows'!M129,'Cash Flows'!M99,'Cash Flows'!M90,'Cash Flows'!M55)/SUM('Cash Flows'!M33,'Cash Flows'!M24,'Cash Flows'!M98),NA())) -> -0.294025 | K17: =IF(K9>Hold,NA(),IFERROR(SUM('Cash Flows'!N129,'Cash Flows'!N99,'Cash Flows'!N90,'Cash Flows'!N55)/SUM('Cash Flows'!N33,'Cash Flows'!N24,'Cash Flows'!N98),NA())) -> -0.294025 | L17: =IF(L9>Hold,NA(),IFERROR(SUM('Cash Flows'!O129,'Cash Flows'!O99,'Cash Flows'!O90,'Cash Flows'!O55)/SUM('Cash Flows'!O33,'Cash Flows'!O24,'Cash Flows'!O98),NA())) -> -0.294025 | N17: 7 | O17: 0 | P17: 0 | R17: 7 | S17: 73 | T17: 84 | U17: 0 | V17: 0 | W17: 0
A18: Debt Service Coverage Ratio | C18: =C10/C11 ->  | N18: 8 | O18: 0 | P18: 0 | R18: 8 | S18: 85 | T18: 96 | U18: 0 | V18: 0 | W18: 0
A19: LTV | C19: =IF(C9>Hold,NA(),IFERROR('Cash Flows'!F95/'Cash Flows'!F71,NA())) -> 0 | D19: =IF(D9>Hold,NA(),IFERROR('Cash Flows'!G95/'Cash Flows'!G71,NA())) -> 0 | E19: =IF(E9>Hold,NA(),IFERROR('Cash Flows'!H95/'Cash Flows'!H71,NA())) -> 0 | F19: =IF(F9>Hold,NA(),IFERROR('Cash Flows'!I95/'Cash Flows'!I71,NA())) -> 0 | G19: =IF(G9>Hold,NA(),IFERROR('Cash Flows'!J95/'Cash Flows'!J71,NA())) -> 0 | H19: =IF(H9>Hold,NA(),IFERROR('Cash Flows'!K95/'Cash Flows'!K71,NA())) -> 0 | I19: =IF(I9>Hold,NA(),IFERROR('Cash Flows'!L95/'Cash Flows'!L71,NA())) -> 0 | J19: =IF(J9>Hold,NA(),IFERROR('Cash Flows'!M95/'Cash Flows'!M71,NA())) -> 0 | K19: =IF(K9>Hold,NA(),IFERROR('Cash Flows'!N95/'Cash Flows'!N71,NA())) -> 0 | L19: =IF(L9>Hold,NA(),IFERROR('Cash Flows'!O95/'Cash Flows'!O71,NA())) -> 0 | N19: 9 | O19: 0 | P19: 0 | R19: 9 | S19: 97 | T19: 108 | U19: 0 | V19: 0 | W19: 0
A20: Debt Yield | C20: =IF(C9>Hold,NA(),IFERROR('Cash Flows'!F67/'Cash Flows'!F95,NA())) ->  | D20: =IF(D9>Hold,NA(),IFERROR('Cash Flows'!G67/'Cash Flows'!G95,NA())) ->  | E20: =IF(E9>Hold,NA(),IFERROR('Cash Flows'!H67/'Cash Flows'!H95,NA())) ->  | F20: =IF(F9>Hold,NA(),IFERROR('Cash Flows'!I67/'Cash Flows'!I95,NA())) ->  | G20: =IF(G9>Hold,NA(),IFERROR('Cash Flows'!J67/'Cash Flows'!J95,NA())) ->  | H20: =IF(H9>Hold,NA(),IFERROR('Cash Flows'!K67/'Cash Flows'!K95,NA())) ->  | I20: =IF(I9>Hold,NA(),IFERROR('Cash Flows'!L67/'Cash Flows'!L95,NA())) ->  | J20: =IF(J9>Hold,NA(),IFERROR('Cash Flows'!M67/'Cash Flows'!M95,NA())) ->  | K20: =IF(K9>Hold,NA(),IFERROR('Cash Flows'!N67/'Cash Flows'!N95,NA())) ->  | L20: =IF(L9>Hold,NA(),IFERROR('Cash Flows'!O67/'Cash Flows'!O95,NA())) ->  | N20: 10 | O20: 0 | P20: 0 | R20: 10 | S20: 109 | T20: 120 | U20: 0 | V20: 0 | W20: 0
A23: Project Level | B23: Unleveraged | C23: ='Return Detail'!$C$17 -> -
B24: Leveraged | C24: ='Return Detail'!$C$42 -> -
B25: Leveraged After Tax | C25: ='Return Detail'!$C$91 -> -
A26: Individual Level | B26: JV Partner | C26: =#REF! -> 
B27: Developer | C27: =#REF! -> 
A30: I/O Loan Sizing
A31: Loan IO Term | B31: =Loan_IO_Term -> 12
A32: At Maturity | B32: =Loan_IO_AtMaturity -> Amortize Loan Balance
A33: ="NOI in Year "&Loan_IO_Year -> NOI in Year 2 | B33: =HLOOKUP(Loan_IO_Year,$C$9:$L$10,2,FALSE) -> 822908.715
A34: DSCR | B34: =Loan_IO_DSCR -> 1.25
A35: Max DS based on NOI | B35: =B33/B34 -> 658326.972
A36: Max Loan Based on DSCR | B36: =PV(Loan_Amor_Rate/12,Loan_Amortization,-B35/12) -> 0
A37: ="Value based on "&Loan_IO_Cap*100&"% Cap" -> Value based on 10% Cap | B37: =IFERROR((B33/Loan_IO_Cap),0) -> 8229087.15
A38: ="Max Loan based on "&Loan_IO_LTV*100&"% LTV" -> Max Loan based on 75% LTV | B38: =B37*Loan_IO_LTV -> 6171815.362
A39: Amortizing Loan Amount (Rounded) | B39: =ROUND(MIN(B36,B38),-3) -> 0
B49: Project Level IRR Sensitivity
E50: 1 | F50: 2 | G50: 3 | H50: 4 | I50: 5 | J50: 6 | K50: 7 | L50: 8 | M50: 9 | N50: 10 | O50: 11
B51: Net Operating Income | E51: ='Cash Flows'!F67 -> 515106.375 | F51: ='Cash Flows'!G67 -> 822908.715 | G51: ='Cash Flows'!H67 -> 847595.9764 | H51: ='Cash Flows'!I67 -> 873023.8557 | I51: ='Cash Flows'!J67 -> 899214.5714 | J51: ='Cash Flows'!K67 -> 926191.0086 | K51: ='Cash Flows'!L67 -> 953976.7388 | L51: ='Cash Flows'!M67 -> 982596.041 | M51: ='Cash Flows'!N67 -> 1012073.922 | N51: ='Cash Flows'!O67 -> 1042436.14 | O51: ='Cash Flows'!P67 -> 1073709.224
B52: Refinance Proceeds | E52: ='Cash Flows'!F98 -> 0 | F52: ='Cash Flows'!G98 -> 0 | G52: ='Cash Flows'!H98 -> 0 | H52: ='Cash Flows'!I98 -> 0 | I52: ='Cash Flows'!J98 -> 0 | J52: ='Cash Flows'!K98 -> 0 | K52: ='Cash Flows'!L98 -> 0 | L52: ='Cash Flows'!M98 -> 0 | M52: ='Cash Flows'!N98 -> 0 | N52: ='Cash Flows'!O98 -> 0 | O52: ='Cash Flows'!P98 -> 0
B53: Less: Debt Service | E53: =SUM(IF('Loan Amortization'!$B$51:$B$170>((E$50-1)*12),IF('Loan Amortization'!$B$51:$B$170<=((E$50*12)),'Loan Amortization'!$I$51:$I$170,0),0))*-1 -> 0 | F53: =SUM(IF('Loan Amortization'!$B$51:$B$170>((F$50-1)*12),IF('Loan Amortization'!$B$51:$B$170<=((F$50*12)),'Loan Amortization'!$I$51:$I$170,0),0))*-1 -> 0 | G53: =SUM(IF('Loan Amortization'!$B$51:$B$170>((G$50-1)*12),IF('Loan Amortization'!$B$51:$B$170<=((G$50*12)),'Loan Amortization'!$I$51:$I$170,0),0))*-1 -> 0 | H53: =SUM(IF('Loan Amortization'!$B$51:$B$170>((H$50-1)*12),IF('Loan Amortization'!$B$51:$B$170<=((H$50*12)),'Loan Amortization'!$I$51:$I$170,0),0))*-1 -> 0 | I53: =SUM(IF('Loan Amortization'!$B$51:$B$170>((I$50-1)*12),IF('Loan Amortization'!$B$51:$B$170<=((I$50*12)),'Loan Amortization'!$I$51:$I$170,0),0))*-1 -> 0 | J53: =SUM(IF('Loan Amortization'!$B$51:$B$170>((J$50-1)*12),IF('Loan Amortization'!$B$51:$B$170<=((J$50*12)),'Loan Amortization'!$I$51:$I$170,0),0))*-1 -> 0 | K53: =SUM(IF('Loan Amortization'!$B$51:$B$170>((K$50-1)*12),IF('Loan Amortization'!$B$51:$B$170<=((K$50*12)),'Loan Amortization'!$I$51:$I$170,0),0))*-1 -> 0 | L53: =SUM(IF('Loan Amortization'!$B$51:$B$170>((L$50-1)*12),IF('Loan Amortization'!$B$51:$B$170<=((L$50*12)),'Loan Amortization'!$I$51:$I$170,0),0))*-1 -> 0 | M53: =SUM(IF('Loan Amortization'!$B$51:$B$170>((M$50-1)*12),IF('Loan Amortization'!$B$51:$B$170<=((M$50*12)),'Loan Amortization'!$I$51:$I$170,0),0))*-1 -> 0 | N53: =SUM(IF('Loan Amortization'!$B$51:$B$170>((N$50-1)*12),IF('Loan Amortization'!$B$51:$B$170<=((N$50*12)),'Loan Amortization'!$I$51:$I$170,0),0))*-1 -> 0 | O53: =SUM(IF('Loan Amortization'!$B$51:$B$170>((O$50-1)*12),IF('Loan Amortization'!$B$51:$B$170<=((O$50*12)),'Loan Amortization'!$I$51:$I$170,0),0))*-1 -> 0
B54: Add: Interest Paid from Budget | E54: ='Cash Flows'!F89*-1 -> 0 | F54: ='Cash Flows'!G89*-1 -> 0 | G54: ='Cash Flows'!H89*-1 -> 0 | H54: ='Cash Flows'!I89*-1 -> 0 | I54: ='Cash Flows'!J89*-1 -> 0 | J54: ='Cash Flows'!K89*-1 -> 0 | K54: ='Cash Flows'!L89*-1 -> 0 | L54: ='Cash Flows'!M89*-1 -> 0 | M54: ='Cash Flows'!N89*-1 -> 0 | N54: ='Cash Flows'!O89*-1 -> 0 | O54: ='Cash Flows'!P89*-1 -> 0
B55: Cash Flow After Debt Service | E55: =SUM(E51:E54) -> 515106.375 | F55: =SUM(F51:F54) -> 822908.715 | G55: 847595.9764 | H55: 873023.8557 | I55: 899214.5714 | J55: 926191.0086 | K55: 953976.7388 | L55: 982596.041 | M55: 1012073.922 | N55: 1042436.14 | O55: 1073709.224
B56: Less: Mortgage Origination Fee | E56: ='Return Detail'!F28 -> 0 | F56: ='Return Detail'!G28 -> 0 | G56: ='Return Detail'!H28 -> 0 | H56: ='Return Detail'!I28 -> 0 | I56: ='Return Detail'!J28 -> 0 | J56: ='Return Detail'!K28 -> 0 | K56: ='Return Detail'!L28 -> 0 | L56: ='Return Detail'!M28 -> 0 | M56: ='Return Detail'!N28 -> 0 | N56: ='Return Detail'!O28 -> 0 | O56: ='Return Detail'!P28 -> 0
B57: Less: Capital Expenses | E57: =-'Cash Flows'!F112 -> 0 | F57: =-'Cash Flows'!G112 -> 0 | G57: =-'Cash Flows'!H112 -> 0 | H57: =-'Cash Flows'!I112 -> 0 | I57: =-'Cash Flows'!J112 -> 0 | J57: =-'Cash Flows'!K112 -> 0 | K57: =-'Cash Flows'!L112 -> 0 | L57: =-'Cash Flows'!M112 -> 0 | M57: =-'Cash Flows'!N112 -> 0 | N57: =-'Cash Flows'!O112 -> 0 | O57: =-'Cash Flows'!P112 -> 0
B58: Other Non-Regular Income | E58: ='Cash Flows'!F119 -> 0 | F58: ='Cash Flows'!G119 -> 0 | G58: ='Cash Flows'!H119 -> 0 | H58: ='Cash Flows'!I119 -> 0 | I58: ='Cash Flows'!J119 -> 0 | J58: ='Cash Flows'!K119 -> 0 | K58: ='Cash Flows'!L119 -> 0 | L58: ='Cash Flows'!M119 -> 0 | M58: ='Cash Flows'!N119 -> 0 | N58: ='Cash Flows'!O119 -> 0 | O58: ='Cash Flows'!P115 -> 0
B59: Distributable Cash Flow | E59: =SUM(E55:E58) -> 515106.375 | F59: =SUM(F55:F58) -> 822908.715 | G59: 847595.9764 | H59: 873023.8557 | I59: 899214.5714 | J59: 926191.0086 | K59: 953976.7388 | L59: 982596.041 | M59: 1012073.922 | N59: 1042436.14 | O59: 1073709.224
B61: Reversion Cash Flow | E61: =IF(Disposition="Cap Rate",'Cash Flows'!G59/Exit_Rate,FV(Exit_Rate,E50,0,-Acquisition_Gross)) -> 8229087.15 | F61: =IF(Disposition="Cap Rate",'Cash Flows'!H59/Exit_Rate,FV(Exit_Rate,F50,0,-Acquisition_Gross)) -> 8475959.764 | G61: =IF(Disposition="Cap Rate",'Cash Flows'!I59/Exit_Rate,FV(Exit_Rate,G50,0,-Acquisition_Gross)) -> 8730238.557 | H61: =IF(Disposition="Cap Rate",'Cash Flows'!J59/Exit_Rate,FV(Exit_Rate,H50,0,-Acquisition_Gross)) -> 8992145.714 | I61: =IF(Disposition="Cap Rate",'Cash Flows'!K59/Exit_Rate,FV(Exit_Rate,I50,0,-Acquisition_Gross)) -> 9261910.086 | J61: =IF(Disposition="Cap Rate",'Cash Flows'!L59/Exit_Rate,FV(Exit_Rate,J50,0,-Acquisition_Gross)) -> 9539767.388 | K61: =IF(Disposition="Cap Rate",'Cash Flows'!M59/Exit_Rate,FV(Exit_Rate,K50,0,-Acquisition_Gross)) -> 9825960.41 | L61: =IF(Disposition="Cap Rate",'Cash Flows'!N59/Exit_Rate,FV(Exit_Rate,L50,0,-Acquisition_Gross)) -> 10120739.22 | M61: =IF(Disposition="Cap Rate",'Cash Flows'!O59/Exit_Rate,FV(Exit_Rate,M50,0,-Acquisition_Gross)) -> 10424361.4 | N61: =IF(Disposition="Cap Rate",'Cash Flows'!P59/Exit_Rate,FV(Exit_Rate,N50,0,-Acquisition_Gross)) -> 10737092.24
B62: Less: Cost of Sale | E62: =E61*Sale_Cost*-1 -> 0 | F62: 0 | G62: 0 | H62: 0 | I62: 0 | J62: 0 | K62: 0 | L62: 0 | M62: 0 | N62: 0
B63: Less: Mortgage Exit Fee | E63: =E64*Loan_Exit_Fee -> 0 | F63: 0 | G63: 0 | H63: 0 | I63: 0 | J63: 0 | K63: 0 | L63: 0 | M63: 0 | N63: 0
B64: Less: Mortgage Balance | E64: =-VLOOKUP(E50*12,Amortization_Schedule_Monthly,8,FALSE) -> 0 | F64: 0 | G64: 0 | H64: 0 | I64: 0 | J64: 0 | K64: 0 | L64: 0 | M64: 0 | N64: 0
B65: Return of Reserve Funds | E65: ='Cash Flows'!F162 -> 0 | F65: ='Cash Flows'!G162 -> 0 | G65: ='Cash Flows'!H162 -> 0 | H65: ='Cash Flows'!I162 -> 0 | I65: ='Cash Flows'!J162 -> 0 | J65: ='Cash Flows'!K162 -> 0 | K65: ='Cash Flows'!L162 -> 0 | L65: ='Cash Flows'!M162 -> 0 | M65: ='Cash Flows'!N162 -> 0 | N65: ='Cash Flows'!O162 -> 0
B66: Reversion Balance | D66: =-Equity_Amount -> 0 | E66: =SUM(E61:E65) -> 8229087.15 | F66: =SUM(F61:F65) -> 8475959.764 | G66: 8730238.557 | H66: 8992145.714 | I66: 9261910.086 | J66: 9539767.388 | K66: 9825960.41 | L66: 10120739.22 | M66: 10424361.4 | N66: 10737092.24
Q68: IRR | V68: NPV | AA68: Average Cash on Cash
C69: Periods | D69: 0 | E69: 1 | F69: 2 | G69: 3 | H69: 4 | I69: 5 | J69: 6 | K69: 7 | L69: 8 | M69: 9 | N69: 10 | Q69: Period | R69: Project Level | S69: Developer | T69: JV Partner | V69: Period | W69: ="Project Level at "&ROUND(Equity_Rate*100,1)&"%" -> Project Level at 10% | X69: ="Developer at "&ROUND(Equity_Rate*100,1)&"%" -> Developer at 10% | Y69: ="JV Partner at "&ROUND(Equity_Rate_JV*100,1)&"%" -> JV Partner at 0% | AA69: Period | AB69: Project Level | AC69: Developer | AD69: JV Partner
C70: 1 | D70: =-Equity_Amount -> 0 | E70: =IF($C70<E$50,0,IF($C70=E$50,SUM(E$59,E$66),E$59)) -> 8744193.525 | F70: =IF($C70<F$50,0,IF($C70=F$50,SUM(F$59,F$66),F$59)) -> 0 | G70: 0 | H70: 0 | I70: 0 | J70: 0 | K70: 0 | L70: 0 | M70: 0 | N70: 0 | Q70: 1 | R70: =IFERROR(IRR(D70:N70),"-") -> - | S70: =O107 -> 0 | T70: =O106 -> 0 | V70: 1 | W70: =SUM(D70,NPV(Equity_Rate,E70:N70)) -> 7949266.841 | X70: =P107 -> 0 | Y70: =P106 -> 0 | AA70: 1 | AB70: =IFERROR((SUM(E70:N70)/AA70)/Equity_Amount,NA()) ->  | AC70: =Q107 -> 0 | AD70: =Q106 -> 0
C71: 2 | D71: 0 | E71: =IF($C71<E$50,0,IF($C71=E$50,SUM(E$59,E$66),E$59)) -> 515106.375 | F71: 9298868.479 | G71: 0 | H71: 0 | I71: 0 | J71: 0 | K71: 0 | L71: 0 | M71: 0 | N71: 0 | Q71: 2 | R71: - | S71: =O133 -> 0 | T71: =O132 -> 0 | V71: 2 | W71: 8153293.795 | X71: =P133 -> 0 | Y71: =P132 -> 0 | AA71: 2 | AC71: =Q133 -> 0 | AD71: =Q132 -> 0
C72: 3 | D72: 0 | E72: 515106.375 | F72: 822908.715 | G72: 9577834.534 | H72: 0 | I72: 0 | J72: 0 | K72: 0 | L72: 0 | M72: 0 | N72: 0 | Q72: 3 | R72: - | S72: =O160 -> 0 | T72: =O159 -> 0 | V72: 3 | W72: 8344337.216 | X72: =P160 -> 0 | Y72: =P159 -> 0 | AA72: 3 | AC72: =Q160 -> 0 | AD72: =Q159 -> 0
C73: 4 | D73: 0 | E73: 515106.375 | F73: 822908.715 | G73: 847595.9764 | H73: 9865169.57 | I73: 0 | J73: 0 | K73: 0 | L73: 0 | M73: 0 | N73: 0 | Q73: 4 | R73: - | S73: =O186 -> 0 | T73: =O185 -> 0 | V73: 4 | W73: 8523223.328 | X73: =P186 -> 0 | Y73: =P185 -> 0 | AA73: 4 | AC73: =Q186 -> 0 | AD73: =Q185 -> 0
C74: 5 | D74: 0 | E74: 515106.375 | F74: 822908.715 | G74: 847595.9764 | H74: 873023.8557 | I74: 10161124.66 | J74: 0 | K74: 0 | L74: 0 | M74: 0 | N74: 0 | Q74: 5 | R74: - | S74: =O212 -> 0 | T74: =O211 -> 0 | V74: 5 | W74: 8690725.778 | X74: =P212 -> 0 | Y74: =P211 -> 0 | AA74: 5 | AC74: =Q212 -> 0 | AD74: =Q211 -> 0
C75: 6 | D75: 0 | E75: 515106.375 | F75: 822908.715 | G75: 847595.9764 | H75: 873023.8557 | I75: 899214.5714 | J75: 10465958.4 | K75: 0 | L75: 0 | M75: 0 | N75: 0 | Q75: 6 | R75: - | S75: =O238 -> 0 | T75: =O237 -> 0 | V75: 6 | W75: 8847568.982 | X75: =P238 -> 0 | Y75: =P237 -> 0 | AA75: 6 | AC75: =Q238 -> 0 | AD75: =Q237 -> 0
C76: 7 | D76: 0 | E76: 515106.375 | F76: 822908.715 | G76: 847595.9764 | H76: 873023.8557 | I76: 899214.5714 | J76: 926191.0086 | K76: 10779937.15 | L76: 0 | M76: 0 | N76: 0 | Q76: 7 | R76: - | S76: =O264 -> 0 | T76: =O263 -> 0 | V76: 7 | W76: 8994431.254 | X76: =P264 -> 0 | Y76: =P263 -> 0 | AA76: 7 | AC76: =Q264 -> 0 | AD76: =Q263 -> 0
C77: 8 | D77: 0 | E77: 515106.375 | F77: 822908.715 | G77: 847595.9764 | H77: 873023.8557 | I77: 899214.5714 | J77: 926191.0086 | K77: 953976.7388 | L77: 11103335.26 | M77: 0 | N77: 0 | Q77: 8 | R77: - | S77: =O290 -> 0 | T77: =O289 -> 0 | V77: 8 | W77: 9131947.746 | X77: =P290 -> 0 | Y77: =P289 -> 0 | AA77: 8 | AC77: =Q290 -> 0 | AD77: =Q289 -> 0
C78: 9 | D78: 0 | E78: 515106.375 | F78: 822908.715 | G78: 847595.9764 | H78: 873023.8557 | I78: 899214.5714 | J78: 926191.0086 | K78: 953976.7388 | L78: 982596.041 | M78: 11436435.32 | N78: 0 | Q78: 9 | R78: - | S78: =O316 -> 0 | T78: =O315 -> 0 | V78: 9 | W78: 9260713.188 | X78: =P316 -> 0 | Y78: =P315 -> 0 | AA78: 9 | AC78: =Q316 -> 0 | AD78: =Q315 -> 0
C79: 10 | D79: 0 | E79: 515106.375 | F79: 822908.715 | G79: 847595.9764 | H79: 873023.8557 | I79: 899214.5714 | J79: 926191.0086 | K79: 953976.7388 | L79: 982596.041 | M79: 1012073.922 | N79: 11779528.38 | Q79: 10 | R79: - | S79: =O342 -> 0 | T79: =O341 -> 0 | V79: 10 | W79: 9381284.465 | X79: =P342 -> 0 | Y79: =P341 -> 0 | AA79: 10 | AC79: =Q342 -> 0 | AD79: =Q341 -> 0

Sheet Intro

Sheet Assumptions
B2: =$D$7 -> New Student Housing Project
B4: Project Assumptions
B6: Property Information | F6: Acquisition Assumptions
B7: Property Name | D7: New Student Housing Project | F7: Project Type | H7: Acquisition
B8: Location | F8: =IF(Project_Type="Acquisition","Acquisition Cost","Land Cost") -> Acquisition Cost | H8: 0
B9: Property Use | D9: Student Housing | F9: =IF(Project_Type="Acquisition","Other Costs","Hard Costs") -> Other Costs | H9: 0
B10: Total Beds | D10: =Unit_Mix[[#Totals],[Total Beds]] -> 100 | F10: =IF(Project_Type="Acquisition","-","Soft Costs") -> - | H10: 0
B11: Analysis Year Begin | D11: 2022-01-01 | F11: =IF(Project_Type="Acquisition","Acquisition Cost","Development Cost") -> Acquisition Cost | H11: =SUM(H8:H10) -> 0
B12: Annual Inflation Rate | D12: 0.03 | F12: Due Diligence/Closing Costs | G12: 0 | H12: =Acquisition_Gross*G12 -> 0
B13: Unit of Measure | D13: Square Feet | F13: Reserve Account Initial Deposits
B14: Currency | D14: Dollar | F14: Operating Reserve Account | H14: 0
F15: Cap Ex Reserve Account | H15: 0
F16: Replacement Reserves Account | H16: 0
F17: =IF(Project_Type="Acquisition","Unleveraged Acquisition Cost","Unleveraged Development Cost") -> Unleveraged Acquisition Cost | H17: =SUM(H11:H16) -> 0
F18: Initial Loan Origination Fee | G18: =IF(Loan_IO_Approval="Yes",Loan_IO_Fee,Loan_Amor_Fee) -> 0 | H18: =Loan_Fee_Rate*Loan_Amount -> 0
F19: =IF(Project_Type="Acquisition","Leveraged Acquisition Cost","Leveraged Development Cost") -> Leveraged Acquisition Cost | H19: =SUM(H17:H18) -> 0
B22: Initial Capital Structure | F22: Tax Assumptions
B23: =IF(Project_Type="Acquisition","Debt: (LTV)","Debt: (LTC)") -> Debt: (LTV) | C23: 0 | D23: =C23*Acquisition_Unlevered -> 0 | F23: Ordinary Income Marginal Tax Rate | H23: 0.35
B24: Equity | D24: =Acquisition_Levered-Loan_Amount -> 0 | F24: Capital Gains Tax Rate | H24: 0.2
B25: Total | D25: =SUM(D23:D24) -> 0 | F25: Cost Recovery Recapture Tax Rate | H25: 0.25
B27: Desired Equity Return (Discount Rate) | D27: 0.1 | F27: Cost Recovery Assumptions
B28: Developer | C28: 0.1 | D28: =Equity_Amount*Contribution_Developer -> 0 | F28: Assessed Value of Land | H28: =1-Assessed_Value_Prop -> 1
B29: JV Partner | C29: =1-C28 -> 0.9 | D29: =Equity_Amount*Contribution_JV -> 0 | F29: Assessed Value of Improvements | H29: =IFERROR(1-(H8/Acquisition_Gross),0) -> 0
B30: Total Equity | C30: =SUM(C28:C29) -> 1 | D30: =SUM(D28:D29) -> 0 | F30: Cost Recovery Method | H30: Straight Line
B31: =IF(Contribution_Developer<1,"Please refer to the Equity Investor Returns worksheet for waterfall information.","") -> Please refer to the Equity Investor Returns worksheet for waterfall information. | F31: Useful Life | H31: 27.5
F32: C.R. 1st & Last Years (11.5 months) | H32: =ROUND(H33/12*11.5,5) -> 0.03485
F33: C.R. Interim Years (12 Months) | H33: =ROUND(1/Useful_Life,5) -> 0.03636
B36: Debt Structure Assumptions
B37: =IF(Project_Type="New Construction","Development Loan","Interest Only Loan") -> Interest Only Loan | F37: Amortizing Debt Service
B38: Will there be an Interest Only Period? | D38: No | F38: Amortization Type | H38: American
B39: Loan Amount | D39: =Loan_Amount -> 0 | F39: Amortizing Loan Amount | H39: =IF(OR(Loan_IO_Approval="no",Loan_IO_AtMaturity="Amortize Loan Balance"),Loan_Amount,Settings!$B$39) -> 0
B40: Interest Expense | D40: Included in Budget | F40: Term (Months) | H40: 0
B41: Interest Amount Included in Budget | D41: 100000 | F41: Amortization (Months) | H41: 0
B42: Term (Months) | D42: 12 | F42: Start Rate | H42: 0
B43: Rate | D43: 0.05 | F43: Origination Fee | H43: 0
B44: Origination Fee | D44: 0 | F44: Initial Interest Only Period | G44: Yes | H44: 6
B45: Funding Status | D45: Fund Up | F45: Exit Fee | H45: 0
B46: Fully Funded by Month: | D46: =Loan_IO_Term -> 12 | F46: Rate Type | H46: Fixed
B47: Action at Maturity: | D47: Amortize Loan Balance | F47: Grow Rate | G47: 0 | H47: 1
B48: Minimum DSCR | D48: 1.25
B49: Maximum LTV | D49: 0.75
B50: Based on Cap Rate of | C50: =Exit_Rate -> 0.1 | D50: =ROUND(Loan_IO_Term/12,0)+1 -> 2
B51: =IFERROR(IF(Settings!B38=MIN(Settings!B36,Settings!B38),"Loan is limited based on LTV.","Loan is limited based on DSCR."),"") -> Loan is limited based on DSCR.
B53: Sale Assumptions
B54: Year of Sale | D54: 10
B55: Terminal Value Calculation Method | D55: Cap Rate | F55: www.realpropmetrics.com
B56: Cost of Sale | D56: 0 | F56: ="Version: "&Version -> Version: 9.42 SH | © 2022
B57: =IF(Disposition="Cap Rate","Exit Cap Rate",IF(Disposition="Annual Growth Rate","Annual Growth Rate","Sale Price")) -> Exit Cap Rate | D57: 0.1 | F57: =TODAY() -> 2022-02-23

Sheet Unit Mix
B3: =Project_Name -> New Student Housing Project
B5: Unit Mix
B8: Unit Type | C8: Units | D8: Beds | E8: Baths | F8: Total Beds | G8: % | H8: Unit SF | I8: Total SF | J8: Monthly Rental Rate | K8: $ PSF | L8: Total Monthly Rent
B9: Eff | C9: 10 | D9: 1 | E9: 1 | F9: =Unit_Mix[[#This Row],[Units]]*Unit_Mix[[#This Row],[Beds ]] -> 10 | G9: =Unit_Mix[[#This Row],[Total Beds]]/SUM(Unit_Mix[Total Beds]) -> 0.1 | H9: 650 | I9: =Unit_Mix[[#This Row],[Unit SF]]*Unit_Mix[[#This Row],[Units]] -> 6500 | J9: 850 | K9: =Unit_Mix[[#This Row],[Total Monthly Rent]]/Unit_Mix[[#This Row],[Total SF]] -> 1.307692308 | L9: =Unit_Mix[[#This Row],[Monthly Rental Rate]]*Unit_Mix[[#This Row],[Total Beds]] -> 8500
B10: A | C10: 15 | D10: 2 | E10: 1 | F10: =Unit_Mix[[#This Row],[Units]]*Unit_Mix[[#This Row],[Beds ]] -> 30 | G10: =Unit_Mix[[#This Row],[Total Beds]]/SUM(Unit_Mix[Total Beds]) -> 0.3 | H10: 900 | I10: =Unit_Mix[[#This Row],[Unit SF]]*Unit_Mix[[#This Row],[Units]] -> 13500 | J10: 775 | K10: =Unit_Mix[[#This Row],[Total Monthly Rent]]/Unit_Mix[[#This Row],[Total SF]] -> 1.722222222 | L10: =Unit_Mix[[#This Row],[Monthly Rental Rate]]*Unit_Mix[[#This Row],[Total Beds]] -> 23250
B11: B | C11: 15 | D11: 4 | E11: 4 | F11: =Unit_Mix[[#This Row],[Units]]*Unit_Mix[[#This Row],[Beds ]] -> 60 | G11: =Unit_Mix[[#This Row],[Total Beds]]/SUM(Unit_Mix[Total Beds]) -> 0.6 | H11: 1250 | I11: =Unit_Mix[[#This Row],[Unit SF]]*Unit_Mix[[#This Row],[Units]] -> 18750 | J11: 675 | K11: =Unit_Mix[[#This Row],[Total Monthly Rent]]/Unit_Mix[[#This Row],[Total SF]] -> 2.16 | L11: =Unit_Mix[[#This Row],[Monthly Rental Rate]]*Unit_Mix[[#This Row],[Total Beds]] -> 40500
B12: Total | C12: =SUBTOTAL(109,Unit_Mix[Units]) -> 40 | F12: =SUBTOTAL(109,Unit_Mix[Total Beds]) -> 100 | G12: =SUBTOTAL(109,Unit_Mix[%]) -> 1 | H12: =IFERROR(SUMPRODUCT(Unit_Mix[Total Beds],Unit_Mix[Unit SF])/Unit_Mix[[#Totals],[Total Beds]],0) -> 1085 | I12: =SUBTOTAL(109,Unit_Mix[Total SF]) -> 38750 | J12: =IFERROR(Unit_Mix[[#Totals],[Total Monthly Rent]]/Unit_Mix[[#Totals],[Total Beds]],0) -> 722.5 | K12: =IFERROR(Unit_Mix[[#Totals],[Total Monthly Rent]]/Unit_Mix[[#Totals],[Total SF]],"-") -> 1.864516129 | L12: =SUBTOTAL(109,Unit_Mix[Total Monthly Rent]) -> 72250
B16: www.realpropmetrics.com
B17: ="Version: "&Version -> Version: 9.42 SH | © 2022
B18: =TODAY() -> 2022-02-23

Sheet Lease Up Schedule
B3: Lease-Up Schedule
B5: Total Units | D5: =SF_Total -> 100
B6: Beginning Occupancy | D6: 0
B7: Stabilized Occupancy | D7: 0.95
B8: Stabilized Units | D8: =ROUND(D5*D7,0) -> 95
B9: Begin Occupying in Month | D9: 1
B10: Units Pre-Leased | D10: 0
B11: Units Leased per Month | D11: 10
B13: ="Project leases in "&COUNTIF($E$38:$E$157,">0")&" months." -> Project leases in 10 months.
B14: ="Stabilization is achieved in month "&MATCH(D8,$F$38:$F$157,0)&"." -> Stabilization is achieved in month 10.
B16: Annual Summary
B17: Period | C17: Dates | D17: Leased Units (BOY) | E17: Leased in Period | F17: Leased Units (EOY) | G17: Average Occupancy | H17: Average Vacancy
B18: 1 | C18: =RPMDateSpan(B18,1) -> Jan 22 - Dec 22 | D18: =VLOOKUP(((B18-1)*12)+1,$B$37:$H$157,3,FALSE) -> 0 | E18: =SUM(OFFSET($E$38:$E$49,(B18-1)*12,0)) -> 95 | F18: =MAX(OFFSET($F$38:$F$49,(B18-1)*12,0)) -> 95 | G18: =AVERAGE(OFFSET($G$38:$G$49,(B18-1)*12,0)) -> 0.6125 | H18: =1-G18 -> 0.3875
B19: 2 | C19: =RPMDateSpan(B19,1) -> Jan 23 - Dec 23 | D19: =VLOOKUP(((B19-1)*12)+1,$B$37:$H$157,3,FALSE) -> 95 | E19: 0 | F19: 95 | G19: 0.95 | H19: =1-G19 -> 0.05
B20: 3 | C20: Jan 24 - Dec 24 | D20: 95 | E20: 0 | F20: 95 | G20: 0.95 | H20: 0.05
B21: 4 | C21: Jan 25 - Dec 25 | D21: 95 | E21: 0 | F21: 95 | G21: 0.95 | H21: 0.05
B22: 5 | C22: Jan 26 - Dec 26 | D22: 95 | E22: 0 | F22: 95 | G22: 0.95 | H22: 0.05
B23: 6 | C23: Jan 27 - Dec 27 | D23: 95 | E23: 0 | F23: 95 | G23: 0.95 | H23: 0.05
B24: 7 | C24: Jan 28 - Dec 28 | D24: 95 | E24: 0 | F24: 95 | G24: 0.95 | H24: 0.05
B25: 8 | C25: Jan 29 - Dec 29 | D25: 95 | E25: 0 | F25: 95 | G25: 0.95 | H25: 0.05
B26: 9 | C26: Jan 30 - Dec 30 | D26: 95 | E26: 0 | F26: 95 | G26: 0.95 | H26: 0.05
B27: 10 | C27: Jan 31 - Dec 31 | D27: 95 | E27: 0 | F27: 95 | G27: 0.95 | H27: 0.05
G33: www.realpropmetrics.com
G34: ="Version: "&Version -> Version: 9.42 SH | © 2022
G35: =TODAY() -> 2022-02-23
B37: Month | C37: Date | D37: Begin | E37: Leased in Period | F37: End | G37: Occupancy | H37: Vacancy
B38: 1 | C38: =RPMDateSpan(B38,3) -> Jan 2022 | D38: =ROUND(D5*D6,0) -> 0 | E38: =IF(B38<$D$9,0,MIN($D$11,$D$8-D38))+IF(B38=$D$9,$D$10,0) -> 10 | F38: =SUM(D38:E38) -> 10 | G38: =F38/SF_Total -> 0.1 | H38: =1-G38 -> 0.9
B39: 2 | C39: =RPMDateSpan(B39,3) -> Feb 2022 | D39: =F38 -> 10 | E39: 10 | F39: =SUM(D39:E39) -> 20 | G39: 0.2 | H39: =1-G39 -> 0.8
B40: 3 | C40: Mar 2022 | D40: =F39 -> 20 | E40: 10 | F40: 30 | G40: 0.3 | H40: 0.7
B41: 4 | C41: Apr 2022 | D41: 30 | E41: 10 | F41: 40 | G41: 0.4 | H41: 0.6
B42: 5 | C42: May 2022 | D42: 40 | E42: 10 | F42: 50 | G42: 0.5 | H42: 0.5
B43: 6 | C43: Jun 2022 | D43: 50 | E43: 10 | F43: 60 | G43: 0.6 | H43: 0.4
B44: 7 | C44: Jul 2022 | D44: 60 | E44: 10 | F44: 70 | G44: 0.7 | H44: 0.3
B45: 8 | C45: Aug 2022 | D45: 70 | E45: 10 | F45: 80 | G45: 0.8 | H45: 0.2
B46: 9 | C46: Sep 2022 | D46: 80 | E46: 10 | F46: 90 | G46: 0.9 | H46: 0.1
B47: 10 | C47: Oct 2022 | D47: 90 | E47: 5 | F47: 95 | G47: 0.95 | H47: 0.05
B48: 11 | C48: Nov 2022 | D48: 95 | E48: 0 | F48: 95 | G48: 0.95 | H48: 0.05
B49: 12 | C49: Dec 2022 | D49: 95 | E49: 0 | F49: 95 | G49: 0.95 | H49: 0.05
B50: 13 | C50: Jan 2023 | D50: 95 | E50: 0 | F50: 95 | G50: 0.95 | H50: 0.05
B51: 14 | C51: Feb 2023 | D51: 95 | E51: 0 | F51: 95 | G51: 0.95 | H51: 0.05
B52: 15 | C52: Mar 2023 | D52: 95 | E52: 0 | F52: 95 | G52: 0.95 | H52: 0.05
B53: 16 | C53: Apr 2023 | D53: 95 | E53: 0 | F53: 95 | G53: 0.95 | H53: 0.05
B54: 17 | C54: May 2023 | D54: 95 | E54: 0 | F54: 95 | G54: 0.95 | H54: 0.05
B55: 18 | C55: Jun 2023 | D55: 95 | E55: 0 | F55: 95 | G55: 0.95 | H55: 0.05
B56: 19 | C56: Jul 2023 | D56: 95 | E56: 0 | F56: 95 | G56: 0.95 | H56: 0.05
B57: 20 | C57: Aug 2023 | D57: 95 | E57: 0 | F57: 95 | G57: 0.95 | H57: 0.05
B58: 21 | C58: Sep 2023 | D58: 95 | E58: 0 | F58: 95 | G58: 0.95 | H58: 0.05
B59: 22 | C59: Oct 2023 | D59: 95 | E59: 0 | F59: 95 | G59: 0.95 | H59: 0.05
B60: 23 | C60: Nov 2023 | D60: 95 | E60: 0 | F60: 95 | G60: 0.95 | H60: 0.05
B61: 24 | C61: Dec 2023 | D61: 95 | E61: 0 | F61: 95 | G61: 0.95 | H61: 0.05
B62: 25 | C62: Jan 2024 | D62: 95 | E62: 0 | F62: 95 | G62: 0.95 | H62: 0.05
B63: 26 | C63: Feb 2024 | D63: 95 | E63: 0 | F63: 95 | G63: 0.95 | H63: 0.05
B64: 27 | C64: Mar 2024 | D64: 95 | E64: 0 | F64: 95 | G64: 0.95 | H64: 0.05
B65: 28 | C65: Apr 2024 | D65: 95 | E65: 0 | F65: 95 | G65: 0.95 | H65: 0.05
B66: 29 | C66: May 2024 | D66: 95 | E66: 0 | F66: 95 | G66: 0.95 | H66: 0.05
B67: 30 | C67: Jun 2024 | D67: 95 | E67: 0 | F67: 95 | G67: 0.95 | H67: 0.05
B68: 31 | C68: Jul 2024 | D68: 95 | E68: 0 | F68: 95 | G68: 0.95 | H68: 0.05
B69: 32 | C69: Aug 2024 | D69: 95 | E69: 0 | F69: 95 | G69: 0.95 | H69: 0.05
B70: 33 | C70: Sep 2024 | D70: 95 | E70: =IF(B70<$D$9,0,MIN($D$11,$D$8-D70))+IF(B70=$D$9,$D$10,0) -> 0 | F70: 95 | G70: =F70/SF_Total -> 0.95 | H70: 0.05
B71: 34 | C71: Oct 2024 | D71: 95 | E71: 0 | F71: 95 | G71: 0.95 | H71: 0.05
B72: 35 | C72: Nov 2024 | D72: 95 | E72: 0 | F72: 95 | G72: 0.95 | H72: 0.05
B73: 36 | C73: Dec 2024 | D73: 95 | E73: 0 | F73: 95 | G73: 0.95 | H73: 0.05
B74: 37 | C74: Jan 2025 | D74: 95 | E74: 0 | F74: 95 | G74: 0.95 | H74: 0.05
B75: 38 | C75: Feb 2025 | D75: 95 | E75: 0 | F75: 95 | G75: 0.95 | H75: 0.05
B76: 39 | C76: Mar 2025 | D76: 95 | E76: 0 | F76: 95 | G76: 0.95 | H76: 0.05
B77: 40 | C77: Apr 2025 | D77: 95 | E77: 0 | F77: 95 | G77: 0.95 | H77: 0.05
B78: 41 | C78: May 2025 | D78: 95 | E78: 0 | F78: 95 | G78: 0.95 | H78: 0.05
B79: 42 | C79: Jun 2025 | D79: 95 | E79: 0 | F79: 95 | G79: 0.95 | H79: 0.05
B80: 43 | C80: Jul 2025 | D80: 95 | E80: 0 | F80: 95 | G80: 0.95 | H80: 0.05
B81: 44 | C81: Aug 2025 | D81: 95 | E81: 0 | F81: 95 | G81: 0.95 | H81: 0.05
B82: 45 | C82: Sep 2025 | D82: 95 | E82: 0 | F82: 95 | G82: 0.95 | H82: 0.05
B83: 46 | C83: Oct 2025 | D83: 95 | E83: 0 | F83: 95 | G83: 0.95 | H83: 0.05
B84: 47 | C84: Nov 2025 | D84: 95 | E84: 0 | F84: 95 | G84: 0.95 | H84: 0.05
B85: 48 | C85: Dec 2025 | D85: 95 | E85: 0 | F85: 95 | G85: 0.95 | H85: 0.05
B86: 49 | C86: Jan 2026 | D86: 95 | E86: 0 | F86: 95 | G86: 0.95 | H86: 0.05
B87: 50 | C87: Feb 2026 | D87: 95 | E87: 0 | F87: 95 | G87: 0.95 | H87: 0.05
B88: 51 | C88: Mar 2026 | D88: 95 | E88: 0 | F88: 95 | G88: 0.95 | H88: 0.05
B89: 52 | C89: Apr 2026 | D89: 95 | E89: 0 | F89: 95 | G89: 0.95 | H89: 0.05
B90: 53 | C90: May 2026 | D90: 95 | E90: 0 | F90: 95 | G90: 0.95 | H90: 0.05
B91: 54 | C91: Jun 2026 | D91: 95 | E91: 0 | F91: 95 | G91: 0.95 | H91: 0.05
B92: 55 | C92: Jul 2026 | D92: 95 | E92: 0 | F92: 95 | G92: 0.95 | H92: 0.05
B93: 56 | C93: Aug 2026 | D93: 95 | E93: 0 | F93: 95 | G93: 0.95 | H93: 0.05
B94: 57 | C94: Sep 2026 | D94: 95 | E94: 0 | F94: 95 | G94: 0.95 | H94: 0.05
B95: 58 | C95: Oct 2026 | D95: 95 | E95: 0 | F95: 95 | G95: 0.95 | H95: 0.05
B96: 59 | C96: Nov 2026 | D96: 95 | E96: 0 | F96: 95 | G96: 0.95 | H96: 0.05
B97: 60 | C97: Dec 2026 | D97: 95 | E97: 0 | F97: 95 | G97: 0.95 | H97: 0.05
B98: 61 | C98: Jan 2027 | D98: 95 | E98: 0 | F98: 95 | G98: 0.95 | H98: 0.05
B99: 62 | C99: Feb 2027 | D99: 95 | E99: 0 | F99: 95 | G99: 0.95 | H99: 0.05
B100: 63 | C100: Mar 2027 | D100: 95 | E100: 0 | F100: 95 | G100: 0.95 | H100: 0.05
B101: 64 | C101: Apr 2027 | D101: 95 | E101: 0 | F101: 95 | G101: 0.95 | H101: 0.05
B102: 65 | C102: May 2027 | D102: 95 | E102: =IF(B102<$D$9,0,MIN($D$11,$D$8-D102))+IF(B102=$D$9,$D$10,0) -> 0 | F102: 95 | G102: =F102/SF_Total -> 0.95 | H102: 0.05
B103: 66 | C103: =RPMDateSpan(B103,3) -> Jun 2027 | D103: 95 | E103: 0 | F103: =SUM(D103:E103) -> 95 | G103: 0.95 | H103: =1-G103 -> 0.05
B104: 67 | C104: Jul 2027 | D104: =F103 -> 95 | E104: 0 | F104: 95 | G104: 0.95 | H104: 0.05
B105: 68 | C105: Aug 2027 | D105: 95 | E105: 0 | F105: 95 | G105: 0.95 | H105: 0.05
B106: 69 | C106: Sep 2027 | D106: 95 | E106: 0 | F106: 95 | G106: 0.95 | H106: 0.05
B107: 70 | C107: Oct 2027 | D107: 95 | E107: 0 | F107: 95 | G107: 0.95 | H107: 0.05
B108: 71 | C108: Nov 2027 | D108: 95 | E108: 0 | F108: 95 | G108: 0.95 | H108: 0.05
B109: 72 | C109: Dec 2027 | D109: 95 | E109: 0 | F109: 95 | G109: 0.95 | H109: 0.05
B110: 73 | C110: Jan 2028 | D110: 95 | E110: 0 | F110: 95 | G110: 0.95 | H110: 0.05
B111: 74 | C111: Feb 2028 | D111: 95 | E111: 0 | F111: 95 | G111: 0.95 | H111: 0.05
B112: 75 | C112: Mar 2028 | D112: 95 | E112: 0 | F112: 95 | G112: 0.95 | H112: 0.05
B113: 76 | C113: Apr 2028 | D113: 95 | E113: 0 | F113: 95 | G113: 0.95 | H113: 0.05
B114: 77 | C114: May 2028 | D114: 95 | E114: 0 | F114: 95 | G114: 0.95 | H114: 0.05
B115: 78 | C115: Jun 2028 | D115: 95 | E115: 0 | F115: 95 | G115: 0.95 | H115: 0.05
B116: 79 | C116: Jul 2028 | D116: 95 | E116: 0 | F116: 95 | G116: 0.95 | H116: 0.05
B117: 80 | C117: Aug 2028 | D117: 95 | E117: 0 | F117: 95 | G117: 0.95 | H117: 0.05
B118: 81 | C118: Sep 2028 | D118: 95 | E118: 0 | F118: 95 | G118: 0.95 | H118: 0.05
B119: 82 | C119: Oct 2028 | D119: 95 | E119: 0 | F119: 95 | G119: 0.95 | H119: 0.05
B120: 83 | C120: Nov 2028 | D120: 95 | E120: 0 | F120: 95 | G120: 0.95 | H120: 0.05
B121: 84 | C121: Dec 2028 | D121: 95 | E121: 0 | F121: 95 | G121: 0.95 | H121: 0.05
B122: 85 | C122: Jan 2029 | D122: 95 | E122: 0 | F122: 95 | G122: 0.95 | H122: 0.05
B123: 86 | C123: Feb 2029 | D123: 95 | E123: 0 | F123: 95 | G123: 0.95 | H123: 0.05
B124: 87 | C124: Mar 2029 | D124: 95 | E124: 0 | F124: 95 | G124: 0.95 | H124: 0.05
B125: 88 | C125: Apr 2029 | D125: 95 | E125: 0 | F125: 95 | G125: 0.95 | H125: 0.05
B126: 89 | C126: May 2029 | D126: 95 | E126: 0 | F126: 95 | G126: 0.95 | H126: 0.05
B127: 90 | C127: Jun 2029 | D127: 95 | E127: 0 | F127: 95 | G127: 0.95 | H127: 0.05
B128: 91 | C128: Jul 2029 | D128: 95 | E128: 0 | F128: 95 | G128: 0.95 | H128: 0.05
B129: 92 | C129: Aug 2029 | D129: 95 | E129: 0 | F129: 95 | G129: 0.95 | H129: 0.05
B130: 93 | C130: Sep 2029 | D130: 95 | E130: 0 | F130: 95 | G130: 0.95 | H130: 0.05
B131: 94 | C131: Oct 2029 | D131: 95 | E131: 0 | F131: 95 | G131: 0.95 | H131: 0.05
B132: 95 | C132: Nov 2029 | D132: 95 | E132: 0 | F132: 95 | G132: 0.95 | H132: 0.05
B133: 96 | C133: Dec 2029 | D133: 95 | E133: 0 | F133: 95 | G133: 0.95 | H133: 0.05
B134: 97 | C134: Jan 2030 | D134: 95 | E134: =IF(B134<$D$9,0,MIN($D$11,$D$8-D134))+IF(B134=$D$9,$D$10,0) -> 0 | F134: 95 | G134: =F134/SF_Total -> 0.95 | H134: 0.05
B135: 98 | C135: Feb 2030 | D135: 95 | E135: 0 | F135: 95 | G135: 0.95 | H135: 0.05
B136: 99 | C136: Mar 2030 | D136: 95 | E136: 0 | F136: 95 | G136: 0.95 | H136: 0.05
B137: 100 | C137: Apr 2030 | D137: 95 | E137: 0 | F137: 95 | G137: 0.95 | H137: 0.05
B138: 101 | C138: May 2030 | D138: 95 | E138: 0 | F138: 95 | G138: 0.95 | H138: 0.05
B139: 102 | C139: Jun 2030 | D139: 95 | E139: 0 | F139: 95 | G139: 0.95 | H139: 0.05
B140: 103 | C140: Jul 2030 | D140: 95 | E140: 0 | F140: 95 | G140: 0.95 | H140: 0.05
B141: 104 | C141: Aug 2030 | D141: 95 | E141: 0 | F141: 95 | G141: 0.95 | H141: 0.05
B142: 105 | C142: Sep 2030 | D142: 95 | E142: 0 | F142: 95 | G142: 0.95 | H142: 0.05
B143: 106 | C143: Oct 2030 | D143: 95 | E143: 0 | F143: 95 | G143: 0.95 | H143: 0.05
B144: 107 | C144: Nov 2030 | D144: 95 | E144: 0 | F144: 95 | G144: 0.95 | H144: 0.05
B145: 108 | C145: Dec 2030 | D145: 95 | E145: 0 | F145: 95 | G145: 0.95 | H145: 0.05
B146: 109 | C146: Jan 2031 | D146: 95 | E146: 0 | F146: 95 | G146: 0.95 | H146: 0.05
B147: 110 | C147: Feb 2031 | D147: 95 | E147: 0 | F147: 95 | G147: 0.95 | H147: 0.05
B148: 111 | C148: Mar 2031 | D148: 95 | E148: 0 | F148: 95 | G148: 0.95 | H148: 0.05
B149: 112 | C149: Apr 2031 | D149: 95 | E149: 0 | F149: 95 | G149: 0.95 | H149: 0.05
B150: 113 | C150: May 2031 | D150: 95 | E150: 0 | F150: 95 | G150: 0.95 | H150: 0.05
B151: 114 | C151: Jun 2031 | D151: 95 | E151: 0 | F151: 95 | G151: 0.95 | H151: 0.05
B152: 115 | C152: Jul 2031 | D152: 95 | E152: 0 | F152: 95 | G152: 0.95 | H152: 0.05
B153: 116 | C153: Aug 2031 | D153: 95 | E153: 0 | F153: 95 | G153: 0.95 | H153: 0.05
B154: 117 | C154: Sep 2031 | D154: 95 | E154: 0 | F154: 95 | G154: 0.95 | H154: 0.05
B155: 118 | C155: Oct 2031 | D155: 95 | E155: 0 | F155: 95 | G155: 0.95 | H155: 0.05
B156: 119 | C156: Nov 2031 | D156: 95 | E156: 0 | F156: 95 | G156: 0.95 | H156: 0.05
B157: 120 | C157: Dec 2031 | D157: 95 | E157: 0 | F157: 95 | G157: 0.95 | H157: 0.05

Sheet Cash Flows
B5: Schedule of Prospective Cash Flows
B7: Period | F7: 1 | G7: 2 | H7: 3 | I7: 4 | J7: 5 | K7: 6 | L7: 7 | M7: 8 | N7: 9 | O7: 10 | P7: 11
F8: =RPMDateSpan(F7,1) -> Jan 22 - Dec 22 | G8: =RPMDateSpan(G7,1) -> Jan 23 - Dec 23 | H8: Jan 24 - Dec 24 | I8: Jan 25 - Dec 25 | J8: Jan 26 - Dec 26 | K8: Jan 27 - Dec 27 | L8: Jan 28 - Dec 28 | M8: Jan 29 - Dec 29 | N8: Jan 30 - Dec 30 | O8: Jan 31 - Dec 31 | P8: Jan 32 - Dec 32
B10: Operating Income | E10: Inflation | G10: =Inflation -> 0.03 | H10: =G10 -> 0.03 | I10: =H10 -> 0.03 | J10: =I10 -> 0.03 | K10: 0.03 | L10: 0.03 | M10: 0.03 | N10: 0.03 | O10: 0.03 | P10: 0.03
B12: Base Rental Revenue | F12: =SUM(Unit_Mix[Total Monthly Rent])*12 -> 867000 | G12: =IFERROR(RPMGrow($E12,F12,G$10),"Please Enable Macros") -> 893010 | H12: =IFERROR(RPMGrow($E12,G12,H$10),"Please Enable Macros") -> 919800.3 | I12: =IFERROR(RPMGrow($E12,H12,I$10),"Please Enable Macros") -> 947394.309 | J12: =IFERROR(RPMGrow($E12,I12,J$10),"Please Enable Macros") -> 975816.1383 | K12: =IFERROR(RPMGrow($E12,J12,K$10),"Please Enable Macros") -> 1005090.622 | L12: =IFERROR(RPMGrow($E12,K12,L$10),"Please Enable Macros") -> 1035243.341 | M12: =IFERROR(RPMGrow($E12,L12,M$10),"Please Enable Macros") -> 1066300.641 | N12: =IFERROR(RPMGrow($E12,M12,N$10),"Please Enable Macros") -> 1098289.661 | O12: =IFERROR(RPMGrow($E12,N12,O$10),"Please Enable Macros") -> 1131238.35 | P12: =IFERROR(RPMGrow($E12,O12,P$10),"Please Enable Macros") -> 1165175.501
B13: Rental $/Month | F13: =F12/12 -> 72250 | G13: =G12/12 -> 74417.5 | H13: 76650.025 | I13: 78949.52575 | J13: 81318.01152 | K13: 83757.55187 | L13: 86270.27842 | M13: 88858.38678 | N13: 91524.13838 | O13: 94269.86253 | P13: 97097.95841
B14: Monthly $ PSF | F14: =F12/Unit_Mix[[#Totals],[Total SF]]/12 -> 1.864516129 | G14: =G12/Unit_Mix[[#Totals],[Total SF]]/12 -> 1.920451613 | H14: =H12/Unit_Mix[[#Totals],[Total SF]]/12 -> 1.978065161 | I14: =I12/Unit_Mix[[#Totals],[Total SF]]/12 -> 2.037407116 | J14: =J12/Unit_Mix[[#Totals],[Total SF]]/12 -> 2.09852933 | K14: =K12/Unit_Mix[[#Totals],[Total SF]]/12 -> 2.16148521 | L14: =L12/Unit_Mix[[#Totals],[Total SF]]/12 -> 2.226329766 | M14: =M12/Unit_Mix[[#Totals],[Total SF]]/12 -> 2.293119659 | N14: =N12/Unit_Mix[[#Totals],[Total SF]]/12 -> 2.361913249 | O14: =O12/Unit_Mix[[#Totals],[Total SF]]/12 -> 2.432770646 | P14: =P12/Unit_Mix[[#Totals],[Total SF]]/12 -> 2.505753765
B16: Other Potential Gross Revenue
B17: Less: Concessions | F17: 0 | G17: =IFERROR(RPMGrow($E17,F17,G$10),"Please Enable Macros") -> 0 | H17: =IFERROR(RPMGrow($E17,G17,H$10),"Please Enable Macros") -> 0 | I17: =IFERROR(RPMGrow($E17,H17,I$10),"Please Enable Macros") -> 0 | J17: =IFERROR(RPMGrow($E17,I17,J$10),"Please Enable Macros") -> 0 | K17: =IFERROR(RPMGrow($E17,J17,K$10),"Please Enable Macros") -> 0 | L17: =IFERROR(RPMGrow($E17,K17,L$10),"Please Enable Macros") -> 0 | M17: =IFERROR(RPMGrow($E17,L17,M$10),"Please Enable Macros") -> 0 | N17: =IFERROR(RPMGrow($E17,M17,N$10),"Please Enable Macros") -> 0 | O17: =IFERROR(RPMGrow($E17,N17,O$10),"Please Enable Macros") -> 0 | P17: =IFERROR(RPMGrow($E17,O17,P$10),"Please Enable Macros") -> 0
B18: Storage Income | F18: 0 | G18: =IFERROR(RPMGrow($E18,F18,G$10),"Please Enable Macros") -> 0 | H18: =IFERROR(RPMGrow($E18,G18,H$10),"Please Enable Macros") -> 0 | I18: =IFERROR(RPMGrow($E18,H18,I$10),"Please Enable Macros") -> 0 | J18: =IFERROR(RPMGrow($E18,I18,J$10),"Please Enable Macros") -> 0 | K18: =IFERROR(RPMGrow($E18,J18,K$10),"Please Enable Macros") -> 0 | L18: =IFERROR(RPMGrow($E18,K18,L$10),"Please Enable Macros") -> 0 | M18: =IFERROR(RPMGrow($E18,L18,M$10),"Please Enable Macros") -> 0 | N18: =IFERROR(RPMGrow($E18,M18,N$10),"Please Enable Macros") -> 0 | O18: =IFERROR(RPMGrow($E18,N18,O$10),"Please Enable Macros") -> 0 | P18: =IFERROR(RPMGrow($E18,O18,P$10),"Please Enable Macros") -> 0
B19: Laundry Income | F19: 0 | G19: =IFERROR(RPMGrow($E19,F19,G$10),"Please Enable Macros") -> 0 | H19: =IFERROR(RPMGrow($E19,G19,H$10),"Please Enable Macros") -> 0 | I19: =IFERROR(RPMGrow($E19,H19,I$10),"Please Enable Macros") -> 0 | J19: =IFERROR(RPMGrow($E19,I19,J$10),"Please Enable Macros") -> 0 | K19: =IFERROR(RPMGrow($E19,J19,K$10),"Please Enable Macros") -> 0 | L19: =IFERROR(RPMGrow($E19,K19,L$10),"Please Enable Macros") -> 0 | M19: =IFERROR(RPMGrow($E19,L19,M$10),"Please Enable Macros") -> 0 | N19: =IFERROR(RPMGrow($E19,M19,N$10),"Please Enable Macros") -> 0 | O19: =IFERROR(RPMGrow($E19,N19,O$10),"Please Enable Macros") -> 0 | P19: =IFERROR(RPMGrow($E19,O19,P$10),"Please Enable Macros") -> 0
B20: Miscellaneous | F20: 0 | G20: =IFERROR(RPMGrow($E20,F20,G$10),"Please Enable Macros") -> 0 | H20: =IFERROR(RPMGrow($E20,G20,H$10),"Please Enable Macros") -> 0 | I20: =IFERROR(RPMGrow($E20,H20,I$10),"Please Enable Macros") -> 0 | J20: =IFERROR(RPMGrow($E20,I20,J$10),"Please Enable Macros") -> 0 | K20: =IFERROR(RPMGrow($E20,J20,K$10),"Please Enable Macros") -> 0 | L20: =IFERROR(RPMGrow($E20,K20,L$10),"Please Enable Macros") -> 0 | M20: =IFERROR(RPMGrow($E20,L20,M$10),"Please Enable Macros") -> 0 | N20: =IFERROR(RPMGrow($E20,M20,N$10),"Please Enable Macros") -> 0 | O20: =IFERROR(RPMGrow($E20,N20,O$10),"Please Enable Macros") -> 0 | P20: =IFERROR(RPMGrow($E20,O20,P$10),"Please Enable Macros") -> 0
B21: User Defined Income | F21: 0 | G21: =IFERROR(RPMGrow($E21,F21,G$10),"Please Enable Macros") -> 0 | H21: =IFERROR(RPMGrow($E21,G21,H$10),"Please Enable Macros") -> 0 | I21: =IFERROR(RPMGrow($E21,H21,I$10),"Please Enable Macros") -> 0 | J21: =IFERROR(RPMGrow($E21,I21,J$10),"Please Enable Macros") -> 0 | K21: =IFERROR(RPMGrow($E21,J21,K$10),"Please Enable Macros") -> 0 | L21: =IFERROR(RPMGrow($E21,K21,L$10),"Please Enable Macros") -> 0 | M21: =IFERROR(RPMGrow($E21,L21,M$10),"Please Enable Macros") -> 0 | N21: =IFERROR(RPMGrow($E21,M21,N$10),"Please Enable Macros") -> 0 | O21: =IFERROR(RPMGrow($E21,N21,O$10),"Please Enable Macros") -> 0 | P21: =IFERROR(RPMGrow($E21,O21,P$10),"Please Enable Macros") -> 0
B22: Total Other Potential Gross Revenue | F22: =SUM(F17:F21) -> 0 | G22: =SUM(G17:G21) -> 0 | H22: 0 | I22: 0 | J22: 0 | K22: 0 | L22: 0 | M22: 0 | N22: 0 | O22: 0 | P22: 0
B24: Total Potential Gross Revenue | F24: =SUM(F12,F22) -> 867000 | G24: =SUM(G12,G22) -> 893010 | H24: 919800.3 | I24: 947394.309 | J24: 975816.1383 | K24: 1005090.622 | L24: 1035243.341 | M24: 1066300.641 | N24: 1098289.661 | O24: 1131238.35 | P24: 1165175.501
B26: General Vacancy Rate | F26: =VLOOKUP(F$7,'Lease Up Schedule'!$B$17:$H$27,7,FALSE) -> 0.3875 | G26: =VLOOKUP(G$7,'Lease Up Schedule'!$B$17:$H$27,7,FALSE) -> 0.05 | H26: =VLOOKUP(H$7,'Lease Up Schedule'!$B$17:$H$27,7,FALSE) -> 0.05 | I26: =VLOOKUP(I$7,'Lease Up Schedule'!$B$17:$H$27,7,FALSE) -> 0.05 | J26: =VLOOKUP(J$7,'Lease Up Schedule'!$B$17:$H$27,7,FALSE) -> 0.05 | K26: =VLOOKUP(K$7,'Lease Up Schedule'!$B$17:$H$27,7,FALSE) -> 0.05 | L26: =VLOOKUP(L$7,'Lease Up Schedule'!$B$17:$H$27,7,FALSE) -> 0.05 | M26: =VLOOKUP(M$7,'Lease Up Schedule'!$B$17:$H$27,7,FALSE) -> 0.05 | N26: =VLOOKUP(N$7,'Lease Up Schedule'!$B$17:$H$27,7,FALSE) -> 0.05 | O26: =VLOOKUP(O$7,'Lease Up Schedule'!$B$17:$H$27,7,FALSE) -> 0.05 | P26: =O26 -> 0.05
B27: Vacancy & Collection Loss | F27: =-F24*F26 -> -335962.5 | G27: =-G24*G26 -> -44650.5 | H27: -45990.015 | I27: -47369.71545 | J27: -48790.80691 | K27: -50254.53112 | L27: -51762.16705 | M27: -53315.03207 | N27: -54914.48303 | O27: -56561.91752 | P27: -58258.77504
B29: Other Income
B30: Miscellaneous | F30: 0 | G30: =IFERROR(RPMGrow($E30,F30,G$10),"Please Enable Macros") -> 0 | H30: =IFERROR(RPMGrow($E30,G30,H$10),"Please Enable Macros") -> 0 | I30: =IFERROR(RPMGrow($E30,H30,I$10),"Please Enable Macros") -> 0 | J30: =IFERROR(RPMGrow($E30,I30,J$10),"Please Enable Macros") -> 0 | K30: =IFERROR(RPMGrow($E30,J30,K$10),"Please Enable Macros") -> 0 | L30: =IFERROR(RPMGrow($E30,K30,L$10),"Please Enable Macros") -> 0 | M30: =IFERROR(RPMGrow($E30,L30,M$10),"Please Enable Macros") -> 0 | N30: =IFERROR(RPMGrow($E30,M30,N$10),"Please Enable Macros") -> 0 | O30: =IFERROR(RPMGrow($E30,N30,O$10),"Please Enable Macros") -> 0 | P30: =IFERROR(RPMGrow($E30,O30,P$10),"Please Enable Macros") -> 0
B31: User Defined Income | F31: 0 | G31: =IFERROR(RPMGrow($E31,F31,G$10),"Please Enable Macros") -> 0 | H31: =IFERROR(RPMGrow($E31,G31,H$10),"Please Enable Macros") -> 0 | I31: =IFERROR(RPMGrow($E31,H31,I$10),"Please Enable Macros") -> 0 | J31: =IFERROR(RPMGrow($E31,I31,J$10),"Please Enable Macros") -> 0 | K31: =IFERROR(RPMGrow($E31,J31,K$10),"Please Enable Macros") -> 0 | L31: =IFERROR(RPMGrow($E31,K31,L$10),"Please Enable Macros") -> 0 | M31: =IFERROR(RPMGrow($E31,L31,M$10),"Please Enable Macros") -> 0 | N31: =IFERROR(RPMGrow($E31,M31,N$10),"Please Enable Macros") -> 0 | O31: =IFERROR(RPMGrow($E31,N31,O$10),"Please Enable Macros") -> 0 | P31: =IFERROR(RPMGrow($E31,O31,P$10),"Please Enable Macros") -> 0
B32: User Defined Income | F32: 0 | G32: =IFERROR(RPMGrow($E32,F32,G$10),"Please Enable Macros") -> 0 | H32: =IFERROR(RPMGrow($E32,G32,H$10),"Please Enable Macros") -> 0 | I32: =IFERROR(RPMGrow($E32,H32,I$10),"Please Enable Macros") -> 0 | J32: =IFERROR(RPMGrow($E32,I32,J$10),"Please Enable Macros") -> 0 | K32: =IFERROR(RPMGrow($E32,J32,K$10),"Please Enable Macros") -> 0 | L32: =IFERROR(RPMGrow($E32,K32,L$10),"Please Enable Macros") -> 0 | M32: =IFERROR(RPMGrow($E32,L32,M$10),"Please Enable Macros") -> 0 | N32: =IFERROR(RPMGrow($E32,M32,N$10),"Please Enable Macros") -> 0 | O32: =IFERROR(RPMGrow($E32,N32,O$10),"Please Enable Macros") -> 0 | P32: =IFERROR(RPMGrow($E32,O32,P$10),"Please Enable Macros") -> 0
B33: Total Other Income | F33: =SUM(F30:F32) -> 0 | G33: 0 | H33: 0 | I33: 0 | J33: 0 | K33: 0 | L33: 0 | M33: 0 | N33: 0 | O33: 0 | P33: 0
B35: Effective Gross Income | F35: =SUM(F24,F27,F33) -> 531037.5 | G35: =SUM(G24,G27,G33) -> 848359.5 | H35: 873810.285 | I35: 900024.5935 | J35: 927025.3314 | K35: 954836.0913 | L35: 983481.174 | M35: 1012985.609 | N35: 1043375.178 | O35: 1074676.433 | P35: 1106916.726
B36: Effective $/Month | F36: =F35/12 -> 44253.125 | G36: 70696.625 | H36: 72817.52375 | I36: 75002.04946 | J36: 77252.11095 | K36: 79569.67427 | L36: 81956.7645 | M36: 84415.46744 | N36: 86947.93146 | O36: 89556.36941 | P36: 92243.06049
B37: Eff. Monthly $/Unit | F37: =F35/Unit_Mix[[#Totals],[Total SF]]/12 -> 1.142016129 | G37: =G35/Unit_Mix[[#Totals],[Total SF]]/12 -> 1.824429032 | H37: =H35/Unit_Mix[[#Totals],[Total SF]]/12 -> 1.879161903 | I37: =I35/Unit_Mix[[#Totals],[Total SF]]/12 -> 1.93553676 | J37: =J35/Unit_Mix[[#Totals],[Total SF]]/12 -> 1.993602863 | K37: =K35/Unit_Mix[[#Totals],[Total SF]]/12 -> 2.053410949 | L37: =L35/Unit_Mix[[#Totals],[Total SF]]/12 -> 2.115013277 | M37: =M35/Unit_Mix[[#Totals],[Total SF]]/12 -> 2.178463676 | N37: =N35/Unit_Mix[[#Totals],[Total SF]]/12 -> 2.243817586 | O37: =O35/Unit_Mix[[#Totals],[Total SF]]/12 -> 2.311132114 | P37: =P35/Unit_Mix[[#Totals],[Total SF]]/12 -> 2.380466077
B39: Operating Expenses | E39: Inflation | G39: =Inflation -> 0.03 | H39: =G39 -> 0.03 | I39: 0.03 | J39: 0.03 | K39: 0.03 | L39: 0.03 | M39: 0.03 | N39: 0.03 | O39: 0.03 | P39: 0.03
B41: Property Management Fee | D41: 0.03 | F41: =$D$41*F$35 -> 15931.125 | G41: 25450.785 | H41: 26214.30855 | I41: 27000.73781 | J41: 27810.75994 | K41: 28645.08274 | L41: 29504.43522 | M41: 30389.56828 | N41: 31301.25533 | O41: 32240.29299 | P41: 33207.50178
B42: Ad Valorem Taxes | F42: 0 | G42: =IFERROR(RPMGrow($E42,F42,G$39),"Please Enable Macros") -> 0 | H42: =IFERROR(RPMGrow($E42,G42,H$39),"Please Enable Macros") -> 0 | I42: =IFERROR(RPMGrow($E42,H42,I$39),"Please Enable Macros") -> 0 | J42: =IFERROR(RPMGrow($E42,I42,J$39),"Please Enable Macros") -> 0 | K42: =IFERROR(RPMGrow($E42,J42,K$39),"Please Enable Macros") -> 0 | L42: =IFERROR(RPMGrow($E42,K42,L$39),"Please Enable Macros") -> 0 | M42: =IFERROR(RPMGrow($E42,L42,M$39),"Please Enable Macros") -> 0 | N42: =IFERROR(RPMGrow($E42,M42,N$39),"Please Enable Macros") -> 0 | O42: =IFERROR(RPMGrow($E42,N42,O$39),"Please Enable Macros") -> 0 | P42: =IFERROR(RPMGrow($E42,O42,P$39),"Please Enable Macros") -> 0
B43: Insurance | F43: 0 | G43: =IFERROR(RPMGrow($E43,F43,G$39),"Please Enable Macros") -> 0 | H43: =IFERROR(RPMGrow($E43,G43,H$39),"Please Enable Macros") -> 0 | I43: =IFERROR(RPMGrow($E43,H43,I$39),"Please Enable Macros") -> 0 | J43: =IFERROR(RPMGrow($E43,I43,J$39),"Please Enable Macros") -> 0 | K43: =IFERROR(RPMGrow($E43,J43,K$39),"Please Enable Macros") -> 0 | L43: =IFERROR(RPMGrow($E43,K43,L$39),"Please Enable Macros") -> 0 | M43: =IFERROR(RPMGrow($E43,L43,M$39),"Please Enable Macros") -> 0 | N43: =IFERROR(RPMGrow($E43,M43,N$39),"Please Enable Macros") -> 0 | O43: =IFERROR(RPMGrow($E43,N43,O$39),"Please Enable Macros") -> 0 | P43: =IFERROR(RPMGrow($E43,O43,P$39),"Please Enable Macros") -> 0
B44: Utilities | F44: 0 | G44: =IFERROR(RPMGrow($E44,F44,G$39),"Please Enable Macros") -> 0 | H44: =IFERROR(RPMGrow($E44,G44,H$39),"Please Enable Macros") -> 0 | I44: =IFERROR(RPMGrow($E44,H44,I$39),"Please Enable Macros") -> 0 | J44: =IFERROR(RPMGrow($E44,I44,J$39),"Please Enable Macros") -> 0 | K44: =IFERROR(RPMGrow($E44,J44,K$39),"Please Enable Macros") -> 0 | L44: =IFERROR(RPMGrow($E44,K44,L$39),"Please Enable Macros") -> 0 | M44: =IFERROR(RPMGrow($E44,L44,M$39),"Please Enable Macros") -> 0 | N44: =IFERROR(RPMGrow($E44,M44,N$39),"Please Enable Macros") -> 0 | O44: =IFERROR(RPMGrow($E44,N44,O$39),"Please Enable Macros") -> 0 | P44: =IFERROR(RPMGrow($E44,O44,P$39),"Please Enable Macros") -> 0
B45: Repairs & Maintenance | F45: 0 | G45: =IFERROR(RPMGrow($E45,F45,G$39),"Please Enable Macros") -> 0 | H45: =IFERROR(RPMGrow($E45,G45,H$39),"Please Enable Macros") -> 0 | I45: =IFERROR(RPMGrow($E45,H45,I$39),"Please Enable Macros") -> 0 | J45: =IFERROR(RPMGrow($E45,I45,J$39),"Please Enable Macros") -> 0 | K45: =IFERROR(RPMGrow($E45,J45,K$39),"Please Enable Macros") -> 0 | L45: =IFERROR(RPMGrow($E45,K45,L$39),"Please Enable Macros") -> 0 | M45: =IFERROR(RPMGrow($E45,L45,M$39),"Please Enable Macros") -> 0 | N45: =IFERROR(RPMGrow($E45,M45,N$39),"Please Enable Macros") -> 0 | O45: =IFERROR(RPMGrow($E45,N45,O$39),"Please Enable Macros") -> 0 | P45: =IFERROR(RPMGrow($E45,O45,P$39),"Please Enable Macros") -> 0
B46: Cleaning & Garbage Removal | F46: 0 | G46: =IFERROR(RPMGrow($E46,F46,G$39),"Please Enable Macros") -> 0 | H46: =IFERROR(RPMGrow($E46,G46,H$39),"Please Enable Macros") -> 0 | I46: =IFERROR(RPMGrow($E46,H46,I$39),"Please Enable Macros") -> 0 | J46: =IFERROR(RPMGrow($E46,I46,J$39),"Please Enable Macros") -> 0 | K46: =IFERROR(RPMGrow($E46,J46,K$39),"Please Enable Macros") -> 0 | L46: =IFERROR(RPMGrow($E46,K46,L$39),"Please Enable Macros") -> 0 | M46: =IFERROR(RPMGrow($E46,L46,M$39),"Please Enable Macros") -> 0 | N46: =IFERROR(RPMGrow($E46,M46,N$39),"Please Enable Macros") -> 0 | O46: =IFERROR(RPMGrow($E46,N46,O$39),"Please Enable Macros") -> 0 | P46: =IFERROR(RPMGrow($E46,O46,P$39),"Please Enable Macros") -> 0
B47: Contract Services | F47: 0 | G47: =IFERROR(RPMGrow($E47,F47,G$39),"Please Enable Macros") -> 0 | H47: =IFERROR(RPMGrow($E47,G47,H$39),"Please Enable Macros") -> 0 | I47: =IFERROR(RPMGrow($E47,H47,I$39),"Please Enable Macros") -> 0 | J47: =IFERROR(RPMGrow($E47,I47,J$39),"Please Enable Macros") -> 0 | K47: =IFERROR(RPMGrow($E47,J47,K$39),"Please Enable Macros") -> 0 | L47: =IFERROR(RPMGrow($E47,K47,L$39),"Please Enable Macros") -> 0 | M47: =IFERROR(RPMGrow($E47,L47,M$39),"Please Enable Macros") -> 0 | N47: =IFERROR(RPMGrow($E47,M47,N$39),"Please Enable Macros") -> 0 | O47: =IFERROR(RPMGrow($E47,N47,O$39),"Please Enable Macros") -> 0 | P47: =IFERROR(RPMGrow($E47,O47,P$39),"Please Enable Macros") -> 0
B48: General & Administrative | F48: 0 | G48: =IFERROR(RPMGrow($E48,F48,G$39),"Please Enable Macros") -> 0 | H48: =IFERROR(RPMGrow($E48,G48,H$39),"Please Enable Macros") -> 0 | I48: =IFERROR(RPMGrow($E48,H48,I$39),"Please Enable Macros") -> 0 | J48: =IFERROR(RPMGrow($E48,I48,J$39),"Please Enable Macros") -> 0 | K48: =IFERROR(RPMGrow($E48,J48,K$39),"Please Enable Macros") -> 0 | L48: =IFERROR(RPMGrow($E48,K48,L$39),"Please Enable Macros") -> 0 | M48: =IFERROR(RPMGrow($E48,L48,M$39),"Please Enable Macros") -> 0 | N48: =IFERROR(RPMGrow($E48,M48,N$39),"Please Enable Macros") -> 0 | O48: =IFERROR(RPMGrow($E48,N48,O$39),"Please Enable Macros") -> 0 | P48: =IFERROR(RPMGrow($E48,O48,P$39),"Please Enable Macros") -> 0
B49: Turnover | F49: 0 | G49: =IFERROR(RPMGrow($E49,F49,G$39),"Please Enable Macros") -> 0 | H49: =IFERROR(RPMGrow($E49,G49,H$39),"Please Enable Macros") -> 0 | I49: =IFERROR(RPMGrow($E49,H49,I$39),"Please Enable Macros") -> 0 | J49: =IFERROR(RPMGrow($E49,I49,J$39),"Please Enable Macros") -> 0 | K49: =IFERROR(RPMGrow($E49,J49,K$39),"Please Enable Macros") -> 0 | L49: =IFERROR(RPMGrow($E49,K49,L$39),"Please Enable Macros") -> 0 | M49: =IFERROR(RPMGrow($E49,L49,M$39),"Please Enable Macros") -> 0 | N49: =IFERROR(RPMGrow($E49,M49,N$39),"Please Enable Macros") -> 0 | O49: =IFERROR(RPMGrow($E49,N49,O$39),"Please Enable Macros") -> 0 | P49: =IFERROR(RPMGrow($E49,O49,P$39),"Please Enable Macros") -> 0
B50: Marketing | F50: 0 | G50: =IFERROR(RPMGrow($E50,F50,G$39),"Please Enable Macros") -> 0 | H50: =IFERROR(RPMGrow($E50,G50,H$39),"Please Enable Macros") -> 0 | I50: =IFERROR(RPMGrow($E50,H50,I$39),"Please Enable Macros") -> 0 | J50: =IFERROR(RPMGrow($E50,I50,J$39),"Please Enable Macros") -> 0 | K50: =IFERROR(RPMGrow($E50,J50,K$39),"Please Enable Macros") -> 0 | L50: =IFERROR(RPMGrow($E50,K50,L$39),"Please Enable Macros") -> 0 | M50: =IFERROR(RPMGrow($E50,L50,M$39),"Please Enable Macros") -> 0 | N50: =IFERROR(RPMGrow($E50,M50,N$39),"Please Enable Macros") -> 0 | O50: =IFERROR(RPMGrow($E50,N50,O$39),"Please Enable Macros") -> 0 | P50: =IFERROR(RPMGrow($E50,O50,P$39),"Please Enable Macros") -> 0
B51: Payroll | F51: 0 | G51: =IFERROR(RPMGrow($E51,F51,G$39),"Please Enable Macros") -> 0 | H51: =IFERROR(RPMGrow($E51,G51,H$39),"Please Enable Macros") -> 0 | I51: =IFERROR(RPMGrow($E51,H51,I$39),"Please Enable Macros") -> 0 | J51: =IFERROR(RPMGrow($E51,I51,J$39),"Please Enable Macros") -> 0 | K51: =IFERROR(RPMGrow($E51,J51,K$39),"Please Enable Macros") -> 0 | L51: =IFERROR(RPMGrow($E51,K51,L$39),"Please Enable Macros") -> 0 | M51: =IFERROR(RPMGrow($E51,L51,M$39),"Please Enable Macros") -> 0 | N51: =IFERROR(RPMGrow($E51,M51,N$39),"Please Enable Macros") -> 0 | O51: =IFERROR(RPMGrow($E51,N51,O$39),"Please Enable Macros") -> 0 | P51: =IFERROR(RPMGrow($E51,O51,P$39),"Please Enable Macros") -> 0
B52: Other | F52: 0 | G52: =IFERROR(RPMGrow($E52,F52,G$39),"Please Enable Macros") -> 0 | H52: =IFERROR(RPMGrow($E52,G52,H$39),"Please Enable Macros") -> 0 | I52: =IFERROR(RPMGrow($E52,H52,I$39),"Please Enable Macros") -> 0 | J52: =IFERROR(RPMGrow($E52,I52,J$39),"Please Enable Macros") -> 0 | K52: =IFERROR(RPMGrow($E52,J52,K$39),"Please Enable Macros") -> 0 | L52: =IFERROR(RPMGrow($E52,K52,L$39),"Please Enable Macros") -> 0 | M52: =IFERROR(RPMGrow($E52,L52,M$39),"Please Enable Macros") -> 0 | N52: =IFERROR(RPMGrow($E52,M52,N$39),"Please Enable Macros") -> 0 | O52: =IFERROR(RPMGrow($E52,N52,O$39),"Please Enable Macros") -> 0 | P52: =IFERROR(RPMGrow($E52,O52,P$39),"Please Enable Macros") -> 0
B53: Miscellaneous | F53: 0 | G53: =IFERROR(RPMGrow($E53,F53,G$39),"Please Enable Macros") -> 0 | H53: =IFERROR(RPMGrow($E53,G53,H$39),"Please Enable Macros") -> 0 | I53: =IFERROR(RPMGrow($E53,H53,I$39),"Please Enable Macros") -> 0 | J53: =IFERROR(RPMGrow($E53,I53,J$39),"Please Enable Macros") -> 0 | K53: =IFERROR(RPMGrow($E53,J53,K$39),"Please Enable Macros") -> 0 | L53: =IFERROR(RPMGrow($E53,K53,L$39),"Please Enable Macros") -> 0 | M53: =IFERROR(RPMGrow($E53,L53,M$39),"Please Enable Macros") -> 0 | N53: =IFERROR(RPMGrow($E53,M53,N$39),"Please Enable Macros") -> 0 | O53: =IFERROR(RPMGrow($E53,N53,O$39),"Please Enable Macros") -> 0 | P53: =IFERROR(RPMGrow($E53,O53,P$39),"Please Enable Macros") -> 0
B54: User Defined | F54: 0 | G54: =IFERROR(RPMGrow($E54,F54,G$39),"Please Enable Macros") -> 0 | H54: =IFERROR(RPMGrow($E54,G54,H$39),"Please Enable Macros") -> 0 | I54: =IFERROR(RPMGrow($E54,H54,I$39),"Please Enable Macros") -> 0 | J54: =IFERROR(RPMGrow($E54,I54,J$39),"Please Enable Macros") -> 0 | K54: =IFERROR(RPMGrow($E54,J54,K$39),"Please Enable Macros") -> 0 | L54: =IFERROR(RPMGrow($E54,K54,L$39),"Please Enable Macros") -> 0 | M54: =IFERROR(RPMGrow($E54,L54,M$39),"Please Enable Macros") -> 0 | N54: =IFERROR(RPMGrow($E54,M54,N$39),"Please Enable Macros") -> 0 | O54: =IFERROR(RPMGrow($E54,N54,O$39),"Please Enable Macros") -> 0 | P54: =IFERROR(RPMGrow($E54,O54,P$39),"Please Enable Macros") -> 0
B55: Total Operating Expenses | F55: =SUM(F41:F54) -> 15931.125 | G55: =SUM(G41:G54) -> 25450.785 | H55: 26214.30855 | I55: 27000.73781 | J55: 27810.75994 | K55: 28645.08274 | L55: 29504.43522 | M55: 30389.56828 | N55: 31301.25533 | O55: 32240.29299 | P55: 33207.50178
B56: Expenses /Month | F56: =F55/12 -> 1327.59375 | G56: =G55/12 -> 2120.89875 | H56: 2184.525712 | I56: 2250.061484 | J56: 2317.563328 | K56: 2387.090228 | L56: 2458.702935 | M56: 2532.464023 | N56: 2608.437944 | O56: 2686.691082 | P56: 2767.291815
B57: Expenses $/Unit Monthly | F57: =F55/Unit_Mix[[#Totals],[Total SF]]/12 -> 0.03426048387 | G57: =G55/Unit_Mix[[#Totals],[Total SF]]/12 -> 0.05473287097 | H57: =H55/Unit_Mix[[#Totals],[Total SF]]/12 -> 0.0563748571 | I57: =I55/Unit_Mix[[#Totals],[Total SF]]/12 -> 0.05806610281 | J57: =J55/Unit_Mix[[#Totals],[Total SF]]/12 -> 0.05980808589 | K57: =K55/Unit_Mix[[#Totals],[Total SF]]/12 -> 0.06160232847 | L57: =L55/Unit_Mix[[#Totals],[Total SF]]/12 -> 0.06345039832 | M57: =M55/Unit_Mix[[#Totals],[Total SF]]/12 -> 0.06535391027 | N57: =N55/Unit_Mix[[#Totals],[Total SF]]/12 -> 0.06731452758 | O57: =O55/Unit_Mix[[#Totals],[Total SF]]/12 -> 0.06933396341 | P57: =P55/Unit_Mix[[#Totals],[Total SF]]/12 -> 0.07141398231
B59: NOI Before Reserves | F59: =F35-F55 -> 515106.375 | G59: =G35-G55 -> 822908.715 | H59: 847595.9764 | I59: 873023.8557 | J59: 899214.5714 | K59: 926191.0086 | L59: 953976.7388 | M59: 982596.041 | N59: 1012073.922 | O59: 1042436.14 | P59: 1073709.224
B61: Operating Reserves Contributions
B62: Operating Deficit Reserve | F62: 0 | G62: =IFERROR(RPMGrow($E62,F62,G$39),"Please Enable Macros") -> 0 | H62: =IFERROR(RPMGrow($E62,G62,H$39),"Please Enable Macros") -> 0 | I62: =IFERROR(RPMGrow($E62,H62,I$39),"Please Enable Macros") -> 0 | J62: =IFERROR(RPMGrow($E62,I62,J$39),"Please Enable Macros") -> 0 | K62: =IFERROR(RPMGrow($E62,J62,K$39),"Please Enable Macros") -> 0 | L62: =IFERROR(RPMGrow($E62,K62,L$39),"Please Enable Macros") -> 0 | M62: =IFERROR(RPMGrow($E62,L62,M$39),"Please Enable Macros") -> 0 | N62: =IFERROR(RPMGrow($E62,M62,N$39),"Please Enable Macros") -> 0 | O62: =IFERROR(RPMGrow($E62,N62,O$39),"Please Enable Macros") -> 0 | P62: =IFERROR(RPMGrow($E62,O62,P$39),"Please Enable Macros") -> 0
B63: Cap Ex Reserves | F63: 0 | G63: =IFERROR(RPMGrow($E63,F63,G$39),"Please Enable Macros") -> 0 | H63: =IFERROR(RPMGrow($E63,G63,H$39),"Please Enable Macros") -> 0 | I63: =IFERROR(RPMGrow($E63,H63,I$39),"Please Enable Macros") -> 0 | J63: =IFERROR(RPMGrow($E63,I63,J$39),"Please Enable Macros") -> 0 | K63: =IFERROR(RPMGrow($E63,J63,K$39),"Please Enable Macros") -> 0 | L63: =IFERROR(RPMGrow($E63,K63,L$39),"Please Enable Macros") -> 0 | M63: =IFERROR(RPMGrow($E63,L63,M$39),"Please Enable Macros") -> 0 | N63: =IFERROR(RPMGrow($E63,M63,N$39),"Please Enable Macros") -> 0 | O63: =IFERROR(RPMGrow($E63,N63,O$39),"Please Enable Macros") -> 0 | P63: =IFERROR(RPMGrow($E63,O63,P$39),"Please Enable Macros") -> 0
B64: Replacement Reserves | F64: 0 | G64: =IFERROR(RPMGrow($E64,F64,G$39),"Please Enable Macros") -> 0 | H64: =IFERROR(RPMGrow($E64,G64,H$39),"Please Enable Macros") -> 0 | I64: =IFERROR(RPMGrow($E64,H64,I$39),"Please Enable Macros") -> 0 | J64: =IFERROR(RPMGrow($E64,I64,J$39),"Please Enable Macros") -> 0 | K64: =IFERROR(RPMGrow($E64,J64,K$39),"Please Enable Macros") -> 0 | L64: =IFERROR(RPMGrow($E64,K64,L$39),"Please Enable Macros") -> 0 | M64: =IFERROR(RPMGrow($E64,L64,M$39),"Please Enable Macros") -> 0 | N64: =IFERROR(RPMGrow($E64,M64,N$39),"Please Enable Macros") -> 0 | O64: =IFERROR(RPMGrow($E64,N64,O$39),"Please Enable Macros") -> 0 | P64: =IFERROR(RPMGrow($E64,O64,P$39),"Please Enable Macros") -> 0
B65: Total Reserves | F65: =SUM(F62:F64) -> 0 | G65: =SUM(G62:G64) -> 0 | H65: 0 | I65: 0 | J65: 0 | K65: 0 | L65: 0 | M65: 0 | N65: 0 | O65: 0 | P65: 0
B67: Net Operating Income | F67: =F59-F65 -> 515106.375 | G67: =G59-G65 -> 822908.715 | H67: 847595.9764 | I67: 873023.8557 | J67: 899214.5714 | K67: 926191.0086 | L67: 953976.7388 | M67: 982596.041 | N67: 1012073.922 | O67: 1042436.14 | P67: 1073709.224
B68: NOI/Month | F68: =F67/12 -> 42925.53125 | G68: =G67/12 -> 68575.72625 | H68: 70632.99804 | I68: 72751.98798 | J68: 74934.54762 | K68: 77182.58405 | L68: 79498.06157 | M68: 81883.00341 | N68: 84339.49352 | O68: 86869.67832 | P68: 89475.76867
B69: =IF(Property_Use="Commercial","NOI $ PSF","NOI $ / Unit") -> NOI $ / Unit | F69: =F67/Unit_Mix[[#Totals],[Total SF]]/12 -> 1.107755645 | G69: =G67/Unit_Mix[[#Totals],[Total SF]]/12 -> 1.769696161 | H69: =H67/Unit_Mix[[#Totals],[Total SF]]/12 -> 1.822787046 | I69: =I67/Unit_Mix[[#Totals],[Total SF]]/12 -> 1.877470658 | J69: =J67/Unit_Mix[[#Totals],[Total SF]]/12 -> 1.933794777 | K69: =K67/Unit_Mix[[#Totals],[Total SF]]/12 -> 1.991808621 | L69: =L67/Unit_Mix[[#Totals],[Total SF]]/12 -> 2.051562879 | M69: =M67/Unit_Mix[[#Totals],[Total SF]]/12 -> 2.113109766 | N69: =N67/Unit_Mix[[#Totals],[Total SF]]/12 -> 2.176503059 | O69: =O67/Unit_Mix[[#Totals],[Total SF]]/12 -> 2.24179815 | P69: =P67/Unit_Mix[[#Totals],[Total SF]]/12 -> 2.309052095
B70: =IF(Project_Type="Acquisition","Cap Rate based on Acquisition Cost","Cap Rate based on Development Cost") -> Cap Rate based on Acquisition Cost | F70: =IFERROR(F67/Acquisition_Gross,"-") -> - | G70: - | H70: - | I70: - | J70: - | K70: - | L70: - | M70: - | N70: - | O70: - | P70: -
B71: =IF(Disposition="Cap Rate","Value based on "&ROUND(Exit_Rate*100,2)&"% Exit Cap Rate","Value based on "&ROUND(Exit_Rate*100,2)&"% Annual Growth Rate") -> Value based on 10% Exit Cap Rate | F71: =IFERROR(IF(F$7<=Hold,IF(Disposition="Cap Rate",G$67/Exit_Rate,FV(Exit_Rate,F$7,0,-Acquisition_Gross)),0),"-") -> 8229087.15 | G71: 8475959.764 | H71: 8730238.557 | I71: 8992145.714 | J71: 9261910.086 | K71: 9539767.388 | L71: 9825960.41 | M71: 10120739.22 | N71: 10424361.4 | O71: 10737092.24 | P71: -
B75: www.realpropmetrics.com
B76: ="Version: "&Version -> Version: 9.42 SH | © 2022
B77: =TODAY() -> 2022-02-23
B79: Schedule of Prospective Cash Flows
B81: Period | F81: 1 | G81: 2 | H81: 3 | I81: 4 | J81: 5 | K81: 6 | L81: 7 | M81: 8 | N81: 9 | O81: 10
F82: =RPMDateSpan(F81,1) -> Jan 22 - Dec 22 | G82: =RPMDateSpan(G81,1) -> Jan 23 - Dec 23 | H82: Jan 24 - Dec 24 | I82: Jan 25 - Dec 25 | J82: Jan 26 - Dec 26 | K82: Jan 27 - Dec 27 | L82: Jan 28 - Dec 28 | M82: Jan 29 - Dec 29 | N82: Jan 30 - Dec 30 | O82: Jan 31 - Dec 31
B84: Net Operating Income | F84: =F67 -> 515106.375 | G84: =G67 -> 822908.715 | H84: 847595.9764 | I84: 873023.8557 | J84: 899214.5714 | K84: 926191.0086 | L84: 953976.7388 | M84: 982596.041 | N84: 1012073.922 | O84: 1042436.14
B86: Debt Service
B87: Interest | F87: =VLOOKUP(F$7,Amortization_Schedule_Annual,6,FALSE) -> 0 | G87: 0 | H87: 0 | I87: 0 | J87: 0 | K87: 0 | L87: 0 | M87: 0 | N87: 0 | O87: 0
B88: Principal | F88: =VLOOKUP(F$7,Amortization_Schedule_Annual,7,FALSE) -> 0 | G88: 0 | H88: 0 | I88: 0 | J88: 0 | K88: 0 | L88: 0 | M88: 0 | N88: 0 | O88: 0
B89: Less: Interest in Development Budget | F89: =IF(Loan_IO_Interest="Pass to Cash Flow",0,VLOOKUP(F$7,'Loan Amortization'!$B$13:$O$24,13,FALSE)) -> 0 | G89: =IF(Loan_IO_Interest="Pass to Cash Flow",0,VLOOKUP(G$7,'Loan Amortization'!$B$13:$O$24,13,FALSE)) -> 0 | H89: =IF(Loan_IO_Interest="Pass to Cash Flow",0,VLOOKUP(H$7,'Loan Amortization'!$B$13:$O$24,13,FALSE)) -> 0 | I89: =IF(Loan_IO_Interest="Pass to Cash Flow",0,VLOOKUP(I$7,'Loan Amortization'!$B$13:$O$24,13,FALSE)) -> 0 | J89: =IF(Loan_IO_Interest="Pass to Cash Flow",0,VLOOKUP(J$7,'Loan Amortization'!$B$13:$O$24,13,FALSE)) -> 0 | K89: =IF(Loan_IO_Interest="Pass to Cash Flow",0,VLOOKUP(K$7,'Loan Amortization'!$B$13:$O$24,13,FALSE)) -> 0 | L89: =IF(Loan_IO_Interest="Pass to Cash Flow",0,VLOOKUP(L$7,'Loan Amortization'!$B$13:$O$24,13,FALSE)) -> 0 | M89: =IF(Loan_IO_Interest="Pass to Cash Flow",0,VLOOKUP(M$7,'Loan Amortization'!$B$13:$O$24,13,FALSE)) -> 0 | N89: =IF(Loan_IO_Interest="Pass to Cash Flow",0,VLOOKUP(N$7,'Loan Amortization'!$B$13:$O$24,13,FALSE)) -> 0 | O89: =IF(Loan_IO_Interest="Pass to Cash Flow",0,VLOOKUP(O$7,'Loan Amortization'!$B$13:$O$24,13,FALSE)) -> 0
B90: Total Debt Service | F90: =SUM(F87:F89) -> 0 | G90: =SUM(G87:G89) -> 0 | H90: 0 | I90: 0 | J90: 0 | K90: 0 | L90: 0 | M90: 0 | N90: 0 | O90: 0
B91: DSCR | F91: =IFERROR(F67/F90,"-") -> - | G91: - | H91: - | I91: - | J91: - | K91: - | L91: - | M91: - | N91: - | O91: -
B92: LTV | F92: =IFERROR(F95/F71,"-") -> 0 | G92: 0 | H92: 0 | I92: 0 | J92: 0 | K92: 0 | L92: 0 | M92: 0 | N92: 0 | O92: 0
B93: Break Even Occupancy | F93: =IFERROR(SUM(F55,F90,F99)/SUM(F24,F33),"-") -> 0.018375 | G93: 0.0285 | H93: 0.0285 | I93: 0.0285 | J93: 0.0285 | K93: 0.0285 | L93: 0.0285 | M93: 0.0285 | N93: 0.0285 | O93: 0.0285
B94: Debt Yield | F94: =IFERROR(F67/F95,"-") -> - | G94: =IFERROR(G67/G95,"-") -> - | H94: - | I94: - | J94: - | K94: - | L94: - | M94: - | N94: - | O94: -
B95: Mortgage Balance | F95: =IF(F7<=Hold,VLOOKUP(F$7,Amortization_Schedule_Annual,8,FALSE),0) -> 0 | G95: 0 | H95: 0 | I95: 0 | J95: 0 | K95: 0 | L95: 0 | M95: 0 | N95: 0 | O95: 0
B96: Equity | F96: =IFERROR(IF(F$7<=Hold,F71-F95,0),"-") -> 8229087.15 | G96: 8475959.764 | H96: 8730238.557 | I96: 8992145.714 | J96: 9261910.086 | K96: 9539767.388 | L96: 9825960.41 | M96: 10120739.22 | N96: 10424361.4 | O96: 10737092.24
B98: Refinance Proceeds | F98: ='Return Detail'!F26 -> 0 | G98: ='Return Detail'!G26 -> 0 | H98: ='Return Detail'!H26 -> 0 | I98: ='Return Detail'!I26 -> 0 | J98: ='Return Detail'!J26 -> 0 | K98: ='Return Detail'!K26 -> 0 | L98: ='Return Detail'!L26 -> 0 | M98: ='Return Detail'!M26 -> 0 | N98: ='Return Detail'!N26 -> 0 | O98: ='Return Detail'!O26 -> 0
B99: Less: Mortgage Origination Fee | F99: ='Return Detail'!F$28 -> 0 | G99: ='Return Detail'!G$28 -> 0 | H99: ='Return Detail'!H$28 -> 0 | I99: ='Return Detail'!I$28 -> 0 | J99: ='Return Detail'!J$28 -> 0 | K99: ='Return Detail'!K$28 -> 0 | L99: ='Return Detail'!L$28 -> 0 | M99: ='Return Detail'!M$28 -> 0 | N99: ='Return Detail'!N$28 -> 0 | O99: ='Return Detail'!O$28 -> 0
B101: Cash Flow After Debt Service | F101: =SUM(F84,-F90,F98:F99) -> 515106.375 | G101: =SUM(G84,-G90,G98:G99) -> 822908.715 | H101: 847595.9764 | I101: 873023.8557 | J101: 899214.5714 | K101: 926191.0086 | L101: 953976.7388 | M101: 982596.041 | N101: 1012073.922 | O101: 1042436.14
B102: CFADS/Month | F102: =F101/12 -> 42925.53125 | G102: =G101/12 -> 68575.72625 | H102: 70632.99804 | I102: 72751.98798 | J102: 74934.54762 | K102: 77182.58405 | L102: 79498.06157 | M102: 81883.00341 | N102: 84339.49352 | O102: 86869.67832
B104: Capital Expenses
B105: Capital Expenditures | F105: 0 | G105: 0 | H105: 0 | I105: 0 | J105: 0 | K105: 0 | L105: 0 | M105: 0 | N105: 0 | O105: 0
B106: Replacement Reserve Expenses | F106: 0 | G106: 0 | H106: 0 | I106: 0 | J106: 0 | K106: 0 | L106: 0 | M106: 0 | N106: 0 | O106: 0
B107: Total Capital Expenses | F107: =SUM(F105:F106) -> 0 | G107: =SUM(G105:G106) -> 0 | H107: 0 | I107: 0 | J107: 0 | K107: 0 | L107: 0 | M107: 0 | N107: 0 | O107: 0
B109: Expenses Paid from Reserves
B110: Less: Cap Ex Paid from Reserves | F110: =F$153 -> 0 | G110: =G$153 -> 0 | H110: 0 | I110: 0 | J110: 0 | K110: 0 | L110: 0 | M110: 0 | N110: 0 | O110: 0
B111: Less: User Defined Paid from Reserves | F111: =F$159 -> 0 | G111: =G$159 -> 0 | H111: 0 | I111: 0 | J111: 0 | K111: 0 | L111: 0 | M111: 0 | N111: 0 | O111: 0
B112: Net Capital Expenses | F112: =SUM(F107,F110:F111) -> 0 | G112: =SUM(G107,G110:G111) -> 0 | H112: 0 | I112: 0 | J112: 0 | K112: 0 | L112: 0 | M112: 0 | N112: 0 | O112: 0
B114: Other Non-Regular Income
B115: Other Non-Regular Income | F115: 0 | G115: 0 | H115: 0 | I115: 0 | J115: 0 | K115: 0 | L115: 0 | M115: 0 | N115: 0 | O115: 0
B116: Other Non-Regular Expenses | F116: 0 | G116: 0 | H116: 0 | I116: 0 | J116: 0 | K116: 0 | L116: 0 | M116: 0 | N116: 0 | O116: 0
B117: Operating Deficit Reserve Draw | F117: =-F146 -> 0 | G117: =-G146 -> 0 | H117: 0 | I117: 0 | J117: 0 | K117: 0 | L117: 0 | M117: 0 | N117: 0 | O117: 0
B118: Return of Reserve Funds | F118: =IF(F$7=Hold,F$162,0) -> 0 | G118: 0 | H118: 0 | I118: 0 | J118: 0 | K118: 0 | L118: 0 | M118: 0 | N118: 0 | O118: 0
B119: Total Non-Regular Income | F119: =SUM(F115:F118) -> 0 | G119: =SUM(G115:G118) -> 0 | H119: 0 | I119: 0 | J119: 0 | K119: 0 | L119: 0 | M119: 0 | N119: 0 | O119: 0
B121: Cash Flow Before Taxes | F121: =SUM(F101,-F112,F119) -> 515106.375 | G121: =SUM(G101,-G112,G119) -> 822908.715 | H121: 847595.9764 | I121: 873023.8557 | J121: 899214.5714 | K121: 926191.0086 | L121: 953976.7388 | M121: 982596.041 | N121: 1012073.922 | O121: 1042436.14
B122: CFBT/Month | F122: =F121/12 -> 42925.53125 | G122: =G121/12 -> 68575.72625 | H122: 70632.99804 | I122: 72751.98798 | J122: 74934.54762 | K122: 77182.58405 | L122: 79498.06157 | M122: 81883.00341 | N122: 84339.49352 | O122: 86869.67832
B123: Cash on Cash Return | F123: =IFERROR(F121/Equity_Amount,"-") -> - | G123: - | H123: - | I123: - | J123: - | K123: - | L123: - | M123: - | N123: - | O123: -
B125: Tax Liability*
B126: Cost Recovery Improvements | F126: =Acquisition_Unlevered*Assessed_Value_Prop*Cost_Recovery_11M -> 0 | G126: =IF(G$7<Hold,Acquisition_Unlevered*Cost_Recovery_12M*Assessed_Value_Prop,IF(G$7=Hold,Acquisition_Unlevered*Cost_Recovery_11M*Assessed_Value_Prop,0)) -> 0 | H126: 0 | I126: 0 | J126: 0 | K126: 0 | L126: 0 | M126: 0 | N126: 0 | O126: 0
B127: Loan Costs Amortization | F127: =VLOOKUP(F$7,Loan_Cost_Table,6,FALSE) -> 0 | G127: 0 | H127: 0 | I127: 0 | J127: 0 | K127: 0 | L127: 0 | M127: 0 | N127: 0 | O127: 0
B128: Taxable Income | F128: =SUM(F67,F65)-SUM(F87,F126:F127) -> 515106.375 | G128: =SUM(G67,G65)-SUM(G87,G126:G127) -> 822908.715 | H128: 847595.9764 | I128: 873023.8557 | J128: 899214.5714 | K128: 926191.0086 | L128: 953976.7388 | M128: 982596.041 | N128: 1012073.922 | O128: 1042436.14
B129: ="Less: Tax Liability at " & ROUND(Tax_Ordinary*100,0)&"%" -> Less: Tax Liability at 35% | F129: =-F128*Tax_Ordinary -> -180287.2312 | G129: -288018.0502 | H129: -296658.5918 | I129: -305558.3495 | J129: -314725.1 | K129: -324166.853 | L129: -333891.8586 | M129: -343908.6143 | N129: -354225.8728 | O129: -364852.649
B131: Operating Deficit Reserve Draw for Taxes | F131: =-F147 -> 0 | G131: =-G147 -> 0 | H131: 0 | I131: 0 | J131: 0 | K131: 0 | L131: 0 | M131: 0 | N131: 0 | O131: 0
B133: Cash Flow After Taxes | F133: =SUM(F121,F129,F131) -> 334819.1438 | G133: =SUM(G121,G129,G131) -> 534890.6647 | H133: 550937.3847 | I133: 567465.5062 | J133: 584489.4714 | K133: 602024.1556 | L133: 620084.8802 | M133: 638687.4266 | N133: 657848.0494 | O133: 677583.4909
B134: CFAT/Month | F134: =F133/12 -> 27901.59531 | G134: =G133/12 -> 44574.22206 | H134: 45911.44872 | I134: 47288.79219 | J134: 48707.45595 | K134: 50168.67963 | L134: 51673.74002 | M134: 53223.95222 | N134: 54820.67079 | O134: 56465.29091
B135: After Tax Cash on Cash Return | F135: =IFERROR(F133/Equity_Amount,"-") -> - | G135: - | H135: - | I135: - | J135: - | K135: - | L135: - | M135: - | N135: - | O135: -
B136: *Does not include Capital Expenses as they are often subject to separate tax treatment.
B137: This pro forma does not constitute tax advice. Please consult a professional tax advisor
B139: Reserve Account Balances
B141: Period | F141: 1 | G141: 2 | H141: 3 | I141: 4 | J141: 5 | K141: 6 | L141: 7 | M141: 8 | N141: 9 | O141: 10
F142: =RPMDateSpan(F141,1) -> Jan 22 - Dec 22 | G142: =RPMDateSpan(G141,1) -> Jan 23 - Dec 23 | H142: Jan 24 - Dec 24 | I142: Jan 25 - Dec 25 | J142: Jan 26 - Dec 26 | K142: Jan 27 - Dec 27 | L142: Jan 28 - Dec 28 | M142: Jan 29 - Dec 29 | N142: Jan 30 - Dec 30 | O142: Jan 31 - Dec 31
B143: Operating Deficit Reserve
B144: Beginning Balance | F144: =Reserve_Operating -> 0 | G144: =F148 -> 0 | H144: =G148 -> 0 | I144: 0 | J144: 0 | K144: 0 | L144: 0 | M144: 0 | N144: 0 | O144: 0
B145: Contributions | F145: =F62 -> 0 | G145: =G62 -> 0 | H145: 0 | I145: 0 | J145: 0 | K145: 0 | L145: 0 | M145: 0 | N145: 0 | O145: 0
B146: Expenses Paid | F146: =IF(SUM(F101,F115:F116)>0,0,MAX(SUM(F101,F115:F116),-SUM(F144:F145))) -> 0 | G146: =IF(SUM(G101,G115:G116)>0,0,MAX(SUM(G101,G115:G116),-SUM(G144:G145))) -> 0 | H146: 0 | I146: 0 | J146: 0 | K146: 0 | L146: 0 | M146: 0 | N146: 0 | O146: 0
B147: Taxes Paid | F147: =IF(F$7>=Hold,0,IF(SUM(F121,F129)>0,0,MAX(SUM(F121,F129),-SUM(F144:F146)))) -> 0 | G147: 0 | H147: 0 | I147: 0 | J147: 0 | K147: 0 | L147: 0 | M147: 0 | N147: 0 | O147: 0
B148: Ending Balance | F148: =SUM(F144:F147) -> 0 | G148: =SUM(G144:G147) -> 0 | H148: 0 | I148: 0 | J148: 0 | K148: 0 | L148: 0 | M148: 0 | N148: 0 | O148: 0
B150: Cap Ex Reserve
B151: Beginning Balance | F151: =Reserve_CapEx -> 0 | G151: =F154 -> 0 | H151: =G154 -> 0 | I151: 0 | J151: 0 | K151: 0 | L151: 0 | M151: 0 | N151: 0 | O151: 0
B152: Contributions | F152: =F$63 -> 0 | G152: =G$63 -> 0 | H152: 0 | I152: 0 | J152: 0 | K152: 0 | L152: 0 | M152: 0 | N152: 0 | O152: 0
B153: Expenses Paid | F153: =IF(F$105<SUM(F151:F152),-F$105,-SUM(F151:F152)) -> 0 | G153: =IF(G$105<SUM(G151:G152),-G$105,-SUM(G151:G152)) -> 0 | H153: 0 | I153: 0 | J153: 0 | K153: 0 | L153: 0 | M153: 0 | N153: 0 | O153: 0
B154: Ending Balance | F154: =SUM(F151:F153) -> 0 | G154: =SUM(G151:G153) -> 0 | H154: 0 | I154: 0 | J154: 0 | K154: 0 | L154: 0 | M154: 0 | N154: 0 | O154: 0
B156: Replacement Reserves
B157: Beginning Balance | F157: =Reserve_Replacement -> 0 | G157: =F160 -> 0 | H157: =G160 -> 0 | I157: 0 | J157: 0 | K157: 0 | L157: 0 | M157: 0 | N157: 0 | O157: 0
B158: Contributions | F158: =F$64 -> 0 | G158: =G$64 -> 0 | H158: 0 | I158: 0 | J158: 0 | K158: 0 | L158: 0 | M158: 0 | N158: 0 | O158: 0
B159: Expenses Paid | F159: =IF(F$106<SUM(F157:F158),-F$106,-SUM(F157:F158)) -> 0 | G159: =IF(G$106<SUM(G157:G158),-G$106,-SUM(G157:G158)) -> 0 | H159: 0 | I159: 0 | J159: 0 | K159: 0 | L159: 0 | M159: 0 | N159: 0 | O159: 0
B160: Ending Balance | F160: =SUM(F157:F159) -> 0 | G160: =SUM(G157:G159) -> 0 | H160: 0 | I160: 0 | J160: 0 | K160: 0 | L160: 0 | M160: 0 | N160: 0 | O160: 0
B162: Total Reserve Balances | F162: =SUM(F148,F154,F160) -> 0 | G162: =SUM(G148,G154,G160) -> 0 | H162: 0 | I162: 0 | J162: 0 | K162: 0 | L162: 0 | M162: 0 | N162: 0 | O162: 0
B166: www.realpropmetrics.com
B167: ="Version: "&Version -> Version: 9.42 SH | © 2022
B168: =TODAY() -> 2022-02-23

Sheet Summary Charts
B3: =Project_Name -> New Student Housing Project
B5: Project Return Summary
O6: Period | P6: 1 | Q6: 2 | R6: 3 | S6: 4 | T6: 5 | U6: 6 | V6: 7 | W6: 8 | X6: 9 | Y6: 10
B7: Summary | E7: Sale Analysis | H7: Cash Flows | L7: IRR & Present Value | O7: Summary Chart Data | P7: =IF(DateView=1,P6,RPMDateSpan(P6,2)) -> 1 | Q7: 2 | R7: 3 | S7: 4 | T7: 5 | U7: 6 | V7: 7 | W7: 8 | X7: 9 | Y7: 10
B8: Total Units/Bed | C8: =Unit_Mix[[#Totals],[Units]]&"/"&SF_Total -> 40/100 | E8: =IF(Project_Type="Acquisition","Acquisition Price","Development Cost") -> Acquisition Price | F8: =Acquisition_Gross -> 0 | I8: Before Tax | J8: After Tax | L8: Unleveraged IRR | M8: ='Return Detail'!$C$17 -> - | O8: Net Operating Income | P8: ='Summary & Ratios'!D$10 -> 515106.375 | Q8: ='Summary & Ratios'!E$10 -> 822908.715 | R8: ='Summary & Ratios'!F$10 -> 847595.9764 | S8: ='Summary & Ratios'!G$10 -> 873023.8557 | T8: ='Summary & Ratios'!H$10 -> 899214.5714 | U8: ='Summary & Ratios'!I$10 -> 926191.0086 | V8: ='Summary & Ratios'!J$10 -> 953976.7388 | W8: ='Summary & Ratios'!K$10 -> 982596.041 | X8: ='Summary & Ratios'!L$10 -> 1012073.922 | Y8: ='Summary & Ratios'!M$10 -> 1042436.14
B9: =IF(Project_Type="Acquisition","Acquisition Price","Development Costs") -> Acquisition Price | C9: =Acquisition_Gross -> 0 | E9: Per Bed | F9: =IFERROR(Acquisition_Gross/Size_Total,0) -> 0 | H9: Operating Cash Flows | I9: =SUM('Return Detail'!$F$32:$O$32) -> 8875123.344 | J9: =SUM('Return Detail'!F83:O83) -> 5768830.174 | L9: ="Unleveraged PV at " &(Equity_Rate*100)&"%" -> Unleveraged PV at 10% | M9: ='Return Detail'!$C$20 -> 9380000 | O9: Debt Serivce | P9: =IF(-'Summary & Ratios'!D$11=0,NA(),-'Summary & Ratios'!D$11) ->  | Q9: =IF(-'Summary & Ratios'!E$11=0,NA(),-'Summary & Ratios'!E$11) ->  | R9: =IF(-'Summary & Ratios'!F$11=0,NA(),-'Summary & Ratios'!F$11) ->  | S9: =IF(-'Summary & Ratios'!G$11=0,NA(),-'Summary & Ratios'!G$11) ->  | T9: =IF(-'Summary & Ratios'!H$11=0,NA(),-'Summary & Ratios'!H$11) ->  | U9: =IF(-'Summary & Ratios'!I$11=0,NA(),-'Summary & Ratios'!I$11) ->  | V9: =IF(-'Summary & Ratios'!J$11=0,NA(),-'Summary & Ratios'!J$11) ->  | W9: =IF(-'Summary & Ratios'!K$11=0,NA(),-'Summary & Ratios'!K$11) ->  | X9: =IF(-'Summary & Ratios'!L$11=0,NA(),-'Summary & Ratios'!L$11) ->  | Y9: =IF(-'Summary & Ratios'!M$11=0,NA(),-'Summary & Ratios'!M$11) -> 
B10: Other Costs | C10: ='Sources & Uses'!C19 -> 0 | E10: Sale Price | F10: =SUM('Return Detail'!F10:O10) -> 10737092.24 | H10: Net Sale Proceeds | I10: =SUM('Return Detail'!$F$33:$O$36) -> 10737092.24 | J10: =SUM('Return Detail'!F84:O84) -> 8589673.793 | L10: Leveraged IRR | M10: ='Return Detail'!C42 -> - | O10: Cash Flow After Taxes | P10: ='Return Detail'!F$83 -> 334819.1438 | Q10: ='Return Detail'!G$83 -> 534890.6647 | R10: ='Return Detail'!H$83 -> 550937.3847 | S10: ='Return Detail'!I$83 -> 567465.5062 | T10: ='Return Detail'!J$83 -> 584489.4714 | U10: ='Return Detail'!K$83 -> 602024.1556 | V10: ='Return Detail'!L$83 -> 620084.8802 | W10: ='Return Detail'!M$83 -> 638687.4266 | X10: ='Return Detail'!N$83 -> 657848.0494 | Y10: ='Return Detail'!O$83 -> 677583.4909
B11: Equity | C11: =Equity_Amount -> 0 | E11: Per Bed | F11: =IFERROR(F10/Size_Total,0) -> 107370.9224 | H11: Total Cash Flow | I11: =SUM(I9:I10) -> 19612215.58 | J11: =SUM(J9:J10) -> 14358503.97 | L11: ="Leveraged PV at " &(Equity_Rate*100)&"%" -> Leveraged PV at 10% | M11: ='Return Detail'!$C$48 -> 9380000 | O11: Mortgage Balance (EOY) | P11: ='Summary & Ratios'!D$27 -> 0 | Q11: ='Summary & Ratios'!E$27 -> 0 | R11: ='Summary & Ratios'!F$27 -> 0 | S11: ='Summary & Ratios'!G$27 -> 0 | T11: ='Summary & Ratios'!H$27 -> 0 | U11: ='Summary & Ratios'!I$27 -> 0 | V11: ='Summary & Ratios'!J$27 -> 0 | W11: ='Summary & Ratios'!K$27 -> 0 | X11: ='Summary & Ratios'!L$27 -> 0 | Y11: ='Summary & Ratios'!M$27 -> 0
B12: Debt | C12: =Loan_Amount -> 0 | E12: Appreciation | F12: =IFERROR((F10/F8)-1,"-") -> - | H12: Profit | I12: =SUM('Return Detail'!$E$37:$O$37) -> 19612215.58 | J12: =SUM('Return Detail'!E85:O85) -> 14358503.97 | L12: After Tax IRR (Leveraged) | M12: ='Return Detail'!$C$91 -> - | O12: Equity (EOY) | P12: ='Summary & Ratios'!D$28 -> 8229087.15 | Q12: ='Summary & Ratios'!E$28 -> 8475959.764 | R12: ='Summary & Ratios'!F$28 -> 8730238.557 | S12: ='Summary & Ratios'!G$28 -> 8992145.714 | T12: ='Summary & Ratios'!H$28 -> 9261910.086 | U12: ='Summary & Ratios'!I$28 -> 9539767.388 | V12: ='Summary & Ratios'!J$28 -> 9825960.41 | W12: ='Summary & Ratios'!K$28 -> 10120739.22 | X12: ='Summary & Ratios'!L$28 -> 10424361.4 | Y12: ='Summary & Ratios'!M$28 -> 10737092.24
B13: =IF(Project_Type="Acquisition","LTV","LTC") -> LTV | C13: =LTV -> 0 | E13: Avg. App/Year | F13: =IFERROR(F12/Hold,"-") -> - | H13: Equity Multiple | I13: =IFERROR(I12/Equity_Amount,"-") -> - | J13: =IFERROR(J12/Equity_Amount,"-") -> - | L13: ="After Tax PV at " &(Equity_Rate*100)&"%" -> After Tax PV at 10% | M13: ='Return Detail'!$C$97 -> 6720000 | O13: Before Tax Cash on Cash | P13: =IFERROR('Summary & Ratios'!D$33,NA()) -> - | Q13: =IFERROR('Summary & Ratios'!E$33,NA()) -> - | R13: =IFERROR('Summary & Ratios'!F$33,NA()) -> - | S13: =IFERROR('Summary & Ratios'!G$33,NA()) -> - | T13: =IFERROR('Summary & Ratios'!H$33,NA()) -> - | U13: =IFERROR('Summary & Ratios'!I$33,NA()) -> - | V13: =IFERROR('Summary & Ratios'!J$33,NA()) -> - | W13: =IFERROR('Summary & Ratios'!K$33,NA()) -> - | X13: =IFERROR('Summary & Ratios'!L$33,NA()) -> - | Y13: =IFERROR('Summary & Ratios'!M$33,NA()) -> -
O14: After Tax Cash on Cash | P14: =IFERROR('Summary & Ratios'!D$34,NA()) -> - | Q14: =IFERROR('Summary & Ratios'!E$34,NA()) -> - | R14: =IFERROR('Summary & Ratios'!F$34,NA()) -> - | S14: =IFERROR('Summary & Ratios'!G$34,NA()) -> - | T14: =IFERROR('Summary & Ratios'!H$34,NA()) -> - | U14: =IFERROR('Summary & Ratios'!I$34,NA()) -> - | V14: =IFERROR('Summary & Ratios'!J$34,NA()) -> - | W14: =IFERROR('Summary & Ratios'!K$34,NA()) -> - | X14: =IFERROR('Summary & Ratios'!L$34,NA()) -> - | Y14: =IFERROR('Summary & Ratios'!M$34,NA()) -> -
O15: After Tax | P15: =IFERROR('Summary & Ratios'!D$42,NA()) -> -0.18956875 | Q15: =IFERROR('Summary & Ratios'!E$42,NA()) -> -0.294025 | R15: =IFERROR('Summary & Ratios'!F$42,NA()) -> -0.294025 | S15: =IFERROR('Summary & Ratios'!G$42,NA()) -> -0.294025 | T15: =IFERROR('Summary & Ratios'!H$42,NA()) -> -0.294025 | U15: =IFERROR('Summary & Ratios'!I$42,NA()) -> -0.294025 | V15: =IFERROR('Summary & Ratios'!J$42,NA()) -> -0.294025 | W15: =IFERROR('Summary & Ratios'!K$42,NA()) -> -0.294025 | X15: =IFERROR('Summary & Ratios'!L$42,NA()) -> -0.294025 | Y15: =IFERROR('Summary & Ratios'!M$42,NA()) -> -0.294025
O16: Pre Tax | P16: =IFERROR('Summary & Ratios'!D$41,NA()) -> 0.018375 | Q16: =IFERROR('Summary & Ratios'!E$41,NA()) -> 0.0285 | R16: =IFERROR('Summary & Ratios'!F$41,NA()) -> 0.0285 | S16: =IFERROR('Summary & Ratios'!G$41,NA()) -> 0.0285 | T16: =IFERROR('Summary & Ratios'!H$41,NA()) -> 0.0285 | U16: =IFERROR('Summary & Ratios'!I$41,NA()) -> 0.0285 | V16: =IFERROR('Summary & Ratios'!J$41,NA()) -> 0.0285 | W16: =IFERROR('Summary & Ratios'!K$41,NA()) -> 0.0285 | X16: =IFERROR('Summary & Ratios'!L$41,NA()) -> 0.0285 | Y16: =IFERROR('Summary & Ratios'!M$41,NA()) -> 0.0285
O17: Debt Service Coverage Ratio | P17: =IFERROR('Summary & Ratios'!D$40,NA()) -> - | Q17: =IFERROR('Summary & Ratios'!E$40,NA()) -> - | R17: =IFERROR('Summary & Ratios'!F$40,NA()) -> - | S17: =IFERROR('Summary & Ratios'!G$40,NA()) -> - | T17: =IFERROR('Summary & Ratios'!H$40,NA()) -> - | U17: =IFERROR('Summary & Ratios'!I$40,NA()) -> - | V17: =IFERROR('Summary & Ratios'!J$40,NA()) -> - | W17: =IFERROR('Summary & Ratios'!K$40,NA()) -> - | X17: =IFERROR('Summary & Ratios'!L$40,NA()) -> - | Y17: =IFERROR('Summary & Ratios'!M$40,NA()) -> -
O18: LTV | P18: =IFERROR('Summary & Ratios'!D$38,NA()) -> 0 | Q18: =IFERROR('Summary & Ratios'!E$38,NA()) -> 0 | R18: =IFERROR('Summary & Ratios'!F$38,NA()) -> 0 | S18: =IFERROR('Summary & Ratios'!G$38,NA()) -> 0 | T18: =IFERROR('Summary & Ratios'!H$38,NA()) -> 0 | U18: =IFERROR('Summary & Ratios'!I$38,NA()) -> 0 | V18: =IFERROR('Summary & Ratios'!J$38,NA()) -> 0 | W18: =IFERROR('Summary & Ratios'!K$38,NA()) -> 0 | X18: =IFERROR('Summary & Ratios'!L$38,NA()) -> 0 | Y18: =IFERROR('Summary & Ratios'!M$38,NA()) -> 0
O19: Debt Yield | P19: =IFERROR('Summary & Ratios'!D$43,NA()) -> - | Q19: =IFERROR('Summary & Ratios'!E$43,NA()) -> - | R19: =IFERROR('Summary & Ratios'!F$43,NA()) -> - | S19: =IFERROR('Summary & Ratios'!G$43,NA()) -> - | T19: =IFERROR('Summary & Ratios'!H$43,NA()) -> - | U19: =IFERROR('Summary & Ratios'!I$43,NA()) -> - | V19: =IFERROR('Summary & Ratios'!J$43,NA()) -> - | W19: =IFERROR('Summary & Ratios'!K$43,NA()) -> - | X19: =IFERROR('Summary & Ratios'!L$43,NA()) -> - | Y19: =IFERROR('Summary & Ratios'!M$43,NA()) -> -
O20: =IF(Disposition="Cap Rate",TEXT((Exit_Rate-0.01),"0.0%")&" Cap Rate",TEXT(Exit_Rate-0.01,"0.0%")&" Growth Rate") -> 9.0% Cap Rate | P20: =IFERROR(MAX(0,IF(Disposition="Cap Rate",'Cash Flows'!G$59/(Exit_Rate-0.01),FV((Exit_Rate-0.01),P$6,0,-Acquisition_Gross))),"-") -> 9143430.167 | Q20: =IFERROR(MAX(0,IF(Disposition="Cap Rate",'Cash Flows'!H$59/(Exit_Rate-0.01),FV((Exit_Rate-0.01),Q$6,0,-Acquisition_Gross))),"-") -> 9417733.072 | R20: =IFERROR(MAX(0,IF(Disposition="Cap Rate",'Cash Flows'!I$59/(Exit_Rate-0.01),FV((Exit_Rate-0.01),R$6,0,-Acquisition_Gross))),"-") -> 9700265.064 | S20: =IFERROR(MAX(0,IF(Disposition="Cap Rate",'Cash Flows'!J$59/(Exit_Rate-0.01),FV((Exit_Rate-0.01),S$6,0,-Acquisition_Gross))),"-") -> 9991273.016 | T20: =IFERROR(MAX(0,IF(Disposition="Cap Rate",'Cash Flows'!K$59/(Exit_Rate-0.01),FV((Exit_Rate-0.01),T$6,0,-Acquisition_Gross))),"-") -> 10291011.21 | U20: =IFERROR(MAX(0,IF(Disposition="Cap Rate",'Cash Flows'!L$59/(Exit_Rate-0.01),FV((Exit_Rate-0.01),U$6,0,-Acquisition_Gross))),"-") -> 10599741.54 | V20: =IFERROR(MAX(0,IF(Disposition="Cap Rate",'Cash Flows'!M$59/(Exit_Rate-0.01),FV((Exit_Rate-0.01),V$6,0,-Acquisition_Gross))),"-") -> 10917733.79 | W20: =IFERROR(MAX(0,IF(Disposition="Cap Rate",'Cash Flows'!N$59/(Exit_Rate-0.01),FV((Exit_Rate-0.01),W$6,0,-Acquisition_Gross))),"-") -> 11245265.8 | X20: =IFERROR(MAX(0,IF(Disposition="Cap Rate",'Cash Flows'!O$59/(Exit_Rate-0.01),FV((Exit_Rate-0.01),X$6,0,-Acquisition_Gross))),"-") -> 11582623.78 | Y20: =IFERROR(MAX(0,IF(Disposition="Cap Rate",'Cash Flows'!P$59/(Exit_Rate-0.01),FV((Exit_Rate-0.01),Y$6,0,-Acquisition_Gross))),"-") -> 11930102.49
O21: =IF(Disposition="Cap Rate",TEXT((Exit_Rate),"0.0%")&" Cap Rate",TEXT(Exit_Rate,"0.0%")&" Growth Rate") -> 10.0% Cap Rate | P21: =IFERROR(MAX(0,IF(Disposition="Cap Rate",'Cash Flows'!G$59/(Exit_Rate),FV((Exit_Rate),P$6,0,-Acquisition_Gross))),"-") -> 8229087.15 | Q21: =IFERROR(MAX(0,IF(Disposition="Cap Rate",'Cash Flows'!H$59/(Exit_Rate),FV((Exit_Rate),Q$6,0,-Acquisition_Gross))),"-") -> 8475959.764 | R21: =IFERROR(MAX(0,IF(Disposition="Cap Rate",'Cash Flows'!I$59/(Exit_Rate),FV((Exit_Rate),R$6,0,-Acquisition_Gross))),"-") -> 8730238.557 | S21: =IFERROR(MAX(0,IF(Disposition="Cap Rate",'Cash Flows'!J$59/(Exit_Rate),FV((Exit_Rate),S$6,0,-Acquisition_Gross))),"-") -> 8992145.714 | T21: =IFERROR(MAX(0,IF(Disposition="Cap Rate",'Cash Flows'!K$59/(Exit_Rate),FV((Exit_Rate),T$6,0,-Acquisition_Gross))),"-") -> 9261910.086 | U21: =IFERROR(MAX(0,IF(Disposition="Cap Rate",'Cash Flows'!L$59/(Exit_Rate),FV((Exit_Rate),U$6,0,-Acquisition_Gross))),"-") -> 9539767.388 | V21: =IFERROR(MAX(0,IF(Disposition="Cap Rate",'Cash Flows'!M$59/(Exit_Rate),FV((Exit_Rate),V$6,0,-Acquisition_Gross))),"-") -> 9825960.41 | W21: =IFERROR(MAX(0,IF(Disposition="Cap Rate",'Cash Flows'!N$59/(Exit_Rate),FV((Exit_Rate),W$6,0,-Acquisition_Gross))),"-") -> 10120739.22 | X21: =IFERROR(MAX(0,IF(Disposition="Cap Rate",'Cash Flows'!O$59/(Exit_Rate),FV((Exit_Rate),X$6,0,-Acquisition_Gross))),"-") -> 10424361.4 | Y21: =IFERROR(MAX(0,IF(Disposition="Cap Rate",'Cash Flows'!P$59/(Exit_Rate),FV((Exit_Rate),Y$6,0,-Acquisition_Gross))),"-") -> 10737092.24
O22: =IF(Disposition="Cap Rate",TEXT((Exit_Rate+0.01),"0.0%")&" Cap Rate",TEXT(Exit_Rate+0.01,"0.0%")&" Growth Rate") -> 11.0% Cap Rate | P22: =IFERROR(MAX(0,IF(Disposition="Cap Rate",'Cash Flows'!G$59/(Exit_Rate+0.01),FV((Exit_Rate+0.01),P$6,0,-Acquisition_Gross))),"-") -> 7480988.318 | Q22: =IFERROR(MAX(0,IF(Disposition="Cap Rate",'Cash Flows'!H$59/(Exit_Rate+0.01),FV((Exit_Rate+0.01),Q$6,0,-Acquisition_Gross))),"-") -> 7705417.968 | R22: =IFERROR(MAX(0,IF(Disposition="Cap Rate",'Cash Flows'!I$59/(Exit_Rate+0.01),FV((Exit_Rate+0.01),R$6,0,-Acquisition_Gross))),"-") -> 7936580.507 | S22: =IFERROR(MAX(0,IF(Disposition="Cap Rate",'Cash Flows'!J$59/(Exit_Rate+0.01),FV((Exit_Rate+0.01),S$6,0,-Acquisition_Gross))),"-") -> 8174677.922 | T22: =IFERROR(MAX(0,IF(Disposition="Cap Rate",'Cash Flows'!K$59/(Exit_Rate+0.01),FV((Exit_Rate+0.01),T$6,0,-Acquisition_Gross))),"-") -> 8419918.26 | U22: =IFERROR(MAX(0,IF(Disposition="Cap Rate",'Cash Flows'!L$59/(Exit_Rate+0.01),FV((Exit_Rate+0.01),U$6,0,-Acquisition_Gross))),"-") -> 8672515.807 | V22: =IFERROR(MAX(0,IF(Disposition="Cap Rate",'Cash Flows'!M$59/(Exit_Rate+0.01),FV((Exit_Rate+0.01),V$6,0,-Acquisition_Gross))),"-") -> 8932691.282 | W22: =IFERROR(MAX(0,IF(Disposition="Cap Rate",'Cash Flows'!N$59/(Exit_Rate+0.01),FV((Exit_Rate+0.01),W$6,0,-Acquisition_Gross))),"-") -> 9200672.02 | X22: =IFERROR(MAX(0,IF(Disposition="Cap Rate",'Cash Flows'!O$59/(Exit_Rate+0.01),FV((Exit_Rate+0.01),X$6,0,-Acquisition_Gross))),"-") -> 9476692.181 | Y22: =IFERROR(MAX(0,IF(Disposition="Cap Rate",'Cash Flows'!P$59/(Exit_Rate+0.01),FV((Exit_Rate+0.01),Y$6,0,-Acquisition_Gross))),"-") -> 9760992.946
O23: Development Cost | P23: =Acquisition_Levered -> 0 | Q23: 0 | R23: 0 | S23: 0 | T23: 0 | U23: 0 | V23: 0 | W23: 0 | X23: 0 | Y23: 0
B70: www.realpropmetrics.com
B71: ="Version: "&Version -> Version: 9.42 SH | © 2022
B72: =TODAY() -> 2022-02-23
B73: This pro forma does not constitute tax advice. Please consult a professional tax advisor.

Sheet Summary & Ratios
B2: Summary & Ratios
D4: 1 | E4: 2 | F4: 3 | G4: 4 | H4: 5 | I4: 6 | J4: 7 | K4: 8 | L4: 9 | M4: 10 | N4: Total
D5: =RPMDateSpan(D4,1) -> Jan 22 - Dec 22 | E5: =RPMDateSpan(E4,1) -> Jan 23 - Dec 23 | F5: Jan 24 - Dec 24 | G5: Jan 25 - Dec 25 | H5: Jan 26 - Dec 26 | I5: Jan 27 - Dec 27 | J5: Jan 28 - Dec 28 | K5: Jan 29 - Dec 29 | L5: Jan 30 - Dec 30 | M5: Jan 31 - Dec 31
B6: Operating Summary
B7: Effective Gross Income | D7: ='Cash Flows'!F35 -> 531037.5 | E7: ='Cash Flows'!G35 -> 848359.5 | F7: ='Cash Flows'!H35 -> 873810.285 | G7: ='Cash Flows'!I35 -> 900024.5935 | H7: ='Cash Flows'!J35 -> 927025.3314 | I7: ='Cash Flows'!K35 -> 954836.0913 | J7: ='Cash Flows'!L35 -> 983481.174 | K7: ='Cash Flows'!M35 -> 1012985.609 | L7: ='Cash Flows'!N35 -> 1043375.178 | M7: ='Cash Flows'!O35 -> 1074676.433 | N7: =SUM(D7:M7) -> 9149611.695
B8: Operating Expenses | D8: =-'Cash Flows'!F55 -> -15931.125 | E8: =-'Cash Flows'!G55 -> -25450.785 | F8: =-'Cash Flows'!H55 -> -26214.30855 | G8: =-'Cash Flows'!I55 -> -27000.73781 | H8: =-'Cash Flows'!J55 -> -27810.75994 | I8: =-'Cash Flows'!K55 -> -28645.08274 | J8: =-'Cash Flows'!L55 -> -29504.43522 | K8: =-'Cash Flows'!M55 -> -30389.56828 | L8: =-'Cash Flows'!N55 -> -31301.25533 | M8: =-'Cash Flows'!O55 -> -32240.29299 | N8: =SUM(D8:M8) -> -274488.3508
B9: Operating Reserves | D9: =-'Cash Flows'!F$65 -> 0 | E9: =-'Cash Flows'!G$65 -> 0 | F9: =-'Cash Flows'!H$65 -> 0 | G9: =-'Cash Flows'!I$65 -> 0 | H9: =-'Cash Flows'!J$65 -> 0 | I9: =-'Cash Flows'!K$65 -> 0 | J9: =-'Cash Flows'!L$65 -> 0 | K9: =-'Cash Flows'!M$65 -> 0 | L9: =-'Cash Flows'!N$65 -> 0 | M9: =-'Cash Flows'!O$65 -> 0 | N9: 0
B10: Net Operating Income | D10: ='Cash Flows'!F67 -> 515106.375 | E10: ='Cash Flows'!G67 -> 822908.715 | F10: ='Cash Flows'!H67 -> 847595.9764 | G10: ='Cash Flows'!I67 -> 873023.8557 | H10: ='Cash Flows'!J67 -> 899214.5714 | I10: ='Cash Flows'!K67 -> 926191.0086 | J10: ='Cash Flows'!L67 -> 953976.7388 | K10: ='Cash Flows'!M67 -> 982596.041 | L10: ='Cash Flows'!N67 -> 1012073.922 | M10: ='Cash Flows'!O67 -> 1042436.14 | N10: 8875123.344
B11: Less: Debt Service | D11: =-'Cash Flows'!F90 -> 0 | E11: =-'Cash Flows'!G90 -> 0 | F11: =-'Cash Flows'!H90 -> 0 | G11: =-'Cash Flows'!I90 -> 0 | H11: =-'Cash Flows'!J90 -> 0 | I11: =-'Cash Flows'!K90 -> 0 | J11: =-'Cash Flows'!L90 -> 0 | K11: =-'Cash Flows'!M90 -> 0 | L11: =-'Cash Flows'!N90 -> 0 | M11: =-'Cash Flows'!O90 -> 0 | N11: 0
B12: Less: Fees | D12: ='Cash Flows'!F99 -> 0 | E12: ='Cash Flows'!G99 -> 0 | F12: ='Cash Flows'!H99 -> 0 | G12: ='Cash Flows'!I99 -> 0 | H12: ='Cash Flows'!J99 -> 0 | I12: ='Cash Flows'!K99 -> 0 | J12: ='Cash Flows'!L99 -> 0 | K12: ='Cash Flows'!M99 -> 0 | L12: ='Cash Flows'!N99 -> 0 | M12: ='Cash Flows'!O99 -> 0 | N12: 0
B13: Refinance Proceeds | D13: ='Cash Flows'!F98 -> 0 | E13: ='Cash Flows'!G98 -> 0 | F13: ='Cash Flows'!H98 -> 0 | G13: ='Cash Flows'!I98 -> 0 | H13: ='Cash Flows'!J98 -> 0 | I13: ='Cash Flows'!K98 -> 0 | J13: ='Cash Flows'!L98 -> 0 | K13: ='Cash Flows'!M98 -> 0 | L13: ='Cash Flows'!N98 -> 0 | M13: ='Cash Flows'!O98 -> 0 | N13: 0
B14: Cash Flow After Debt Service | D14: ='Cash Flows'!F101 -> 515106.375 | E14: ='Cash Flows'!G101 -> 822908.715 | F14: ='Cash Flows'!H101 -> 847595.9764 | G14: ='Cash Flows'!I101 -> 873023.8557 | H14: ='Cash Flows'!J101 -> 899214.5714 | I14: ='Cash Flows'!K101 -> 926191.0086 | J14: ='Cash Flows'!L101 -> 953976.7388 | K14: ='Cash Flows'!M101 -> 982596.041 | L14: ='Cash Flows'!N101 -> 1012073.922 | M14: ='Cash Flows'!O101 -> 1042436.14 | N14: 8875123.344
B15: Capital Expenses | D15: =-'Cash Flows'!F112 -> 0 | E15: =-'Cash Flows'!G112 -> 0 | F15: =-'Cash Flows'!H112 -> 0 | G15: =-'Cash Flows'!I112 -> 0 | H15: =-'Cash Flows'!J112 -> 0 | I15: =-'Cash Flows'!K112 -> 0 | J15: =-'Cash Flows'!L112 -> 0 | K15: =-'Cash Flows'!M112 -> 0 | L15: =-'Cash Flows'!N112 -> 0 | M15: =-'Cash Flows'!O112 -> 0 | N15: 0
B16: Other Non-Regular Income | D16: ='Cash Flows'!F$119 -> 0 | E16: ='Cash Flows'!G$119 -> 0 | F16: ='Cash Flows'!H$119 -> 0 | G16: ='Cash Flows'!I$119 -> 0 | H16: ='Cash Flows'!J$119 -> 0 | I16: ='Cash Flows'!K$119 -> 0 | J16: ='Cash Flows'!L$119 -> 0 | K16: ='Cash Flows'!M$119 -> 0 | L16: ='Cash Flows'!N$119 -> 0 | M16: ='Cash Flows'!O$119 -> 0 | N16: 0
B17: =IF(Disposition="Cap Rate","Sale Price Based on "&ROUND(Exit_Rate*100,2)&"% Exit Cap Rate","Sale Price Based on "&ROUND(Exit_Rate*100,2)&"% Annual Growth Rate") -> Sale Price Based on 10% Exit Cap Rate | D17: ='Return Detail'!F$33 -> 0 | E17: ='Return Detail'!G$33 -> 0 | F17: ='Return Detail'!H$33 -> 0 | G17: ='Return Detail'!I$33 -> 0 | H17: ='Return Detail'!J$33 -> 0 | I17: ='Return Detail'!K$33 -> 0 | J17: ='Return Detail'!L$33 -> 0 | K17: ='Return Detail'!M$33 -> 0 | L17: ='Return Detail'!N$33 -> 0 | M17: ='Return Detail'!O$33 -> 10737092.24 | N17: 10737092.24
B18: Less: Mortgage Balance | D18: ='Return Detail'!F$35 -> 0 | E18: ='Return Detail'!G$35 -> 0 | F18: ='Return Detail'!H$35 -> 0 | G18: ='Return Detail'!I$35 -> 0 | H18: ='Return Detail'!J$35 -> 0 | I18: ='Return Detail'!K$35 -> 0 | J18: ='Return Detail'!L$35 -> 0 | K18: ='Return Detail'!M$35 -> 0 | L18: ='Return Detail'!N$35 -> 0 | M18: ='Return Detail'!O$35 -> 0 | N18: 0
B19: Less: Cost of Sale | D19: =SUM('Return Detail'!F$34,'Return Detail'!F$36) -> 0 | E19: =SUM('Return Detail'!G$34,'Return Detail'!G$36) -> 0 | F19: =SUM('Return Detail'!H$34,'Return Detail'!H$36) -> 0 | G19: =SUM('Return Detail'!I$34,'Return Detail'!I$36) -> 0 | H19: =SUM('Return Detail'!J$34,'Return Detail'!J$36) -> 0 | I19: =SUM('Return Detail'!K$34,'Return Detail'!K$36) -> 0 | J19: =SUM('Return Detail'!L$34,'Return Detail'!L$36) -> 0 | K19: =SUM('Return Detail'!M$34,'Return Detail'!M$36) -> 0 | L19: =SUM('Return Detail'!N$34,'Return Detail'!N$36) -> 0 | M19: =SUM('Return Detail'!O$34,'Return Detail'!O$36) -> 0 | N19: 0
B20: Cash Flow Before Taxes | D20: =SUM(D14:D19) -> 515106.375 | E20: =SUM(E14:E19) -> 822908.715 | F20: 847595.9764 | G20: 873023.8557 | H20: 899214.5714 | I20: 926191.0086 | J20: 953976.7388 | K20: 982596.041 | L20: 1012073.922 | M20: 11779528.38 | N20: 19612215.58
B21: Less: Taxes | D21: =SUM('Return Detail'!F74:F76,'Return Detail'!F81:F82) -> -180287.2312 | E21: =SUM('Return Detail'!G74:G76,'Return Detail'!G81:G82) -> -288018.0502 | F21: =SUM('Return Detail'!H74:H76,'Return Detail'!H81:H82) -> -296658.5918 | G21: =SUM('Return Detail'!I74:I76,'Return Detail'!I81:I82) -> -305558.3495 | H21: =SUM('Return Detail'!J74:J76,'Return Detail'!J81:J82) -> -314725.1 | I21: =SUM('Return Detail'!K74:K76,'Return Detail'!K81:K82) -> -324166.853 | J21: =SUM('Return Detail'!L74:L76,'Return Detail'!L81:L82) -> -333891.8586 | K21: =SUM('Return Detail'!M74:M76,'Return Detail'!M81:M82) -> -343908.6143 | L21: =SUM('Return Detail'!N74:N76,'Return Detail'!N81:N82) -> -354225.8728 | M21: =SUM('Return Detail'!O74:O76,'Return Detail'!O81:O82) -> -2512271.097 | N21: =SUM(D21:M21) -> -5253711.619
B22: Cash Flow After Taxes | D22: =SUM(D20:D21) -> 334819.1438 | E22: =SUM(E20:E21) -> 534890.6647 | F22: 550937.3847 | G22: 567465.5062 | H22: 584489.4714 | I22: 602024.1556 | J22: 620084.8802 | K22: 638687.4266 | L22: 657848.0494 | M22: 9267257.283 | N22: =SUM(D22:M22) -> 14358503.97
B24: Value Summary
B25: =IF(Project_Type="Acquisition","Cap Rate Based on Acquisition Cost","Cap Rate Based on Development Cost") -> Cap Rate Based on Acquisition Cost | D25: =IFERROR(SUM(D7:D8)/Acquisition_Levered,"-") -> - | E25: - | F25: - | G25: - | H25: - | I25: - | J25: - | K25: - | L25: - | M25: -
B26: =IF(Disposition="Cap Rate","Value Based on "&ROUND(Exit_Rate*100,2)&"% Exit Cap Rate","Value Based on "&ROUND(Exit_Rate*100,2)&"% Annual Growth Rate") -> Value Based on 10% Exit Cap Rate | D26: =IFERROR(IF(Disposition="Cap Rate",'Cash Flows'!G$67/Exit_Rate,FV(Exit_Rate,D$4,0,-Acquisition_Gross)),"-") -> 8229087.15 | E26: =IFERROR(IF(Disposition="Cap Rate",'Cash Flows'!H$67/Exit_Rate,FV(Exit_Rate,E$4,0,-Acquisition_Gross)),"-") -> 8475959.764 | F26: =IFERROR(IF(Disposition="Cap Rate",'Cash Flows'!I$67/Exit_Rate,FV(Exit_Rate,F$4,0,-Acquisition_Gross)),"-") -> 8730238.557 | G26: =IFERROR(IF(Disposition="Cap Rate",'Cash Flows'!J$67/Exit_Rate,FV(Exit_Rate,G$4,0,-Acquisition_Gross)),"-") -> 8992145.714 | H26: =IFERROR(IF(Disposition="Cap Rate",'Cash Flows'!K$67/Exit_Rate,FV(Exit_Rate,H$4,0,-Acquisition_Gross)),"-") -> 9261910.086 | I26: =IFERROR(IF(Disposition="Cap Rate",'Cash Flows'!L$67/Exit_Rate,FV(Exit_Rate,I$4,0,-Acquisition_Gross)),"-") -> 9539767.388 | J26: =IFERROR(IF(Disposition="Cap Rate",'Cash Flows'!M$67/Exit_Rate,FV(Exit_Rate,J$4,0,-Acquisition_Gross)),"-") -> 9825960.41 | K26: =IFERROR(IF(Disposition="Cap Rate",'Cash Flows'!N$67/Exit_Rate,FV(Exit_Rate,K$4,0,-Acquisition_Gross)),"-") -> 10120739.22 | L26: =IFERROR(IF(Disposition="Cap Rate",'Cash Flows'!O$67/Exit_Rate,FV(Exit_Rate,L$4,0,-Acquisition_Gross)),"-") -> 10424361.4 | M26: =IFERROR(IF(Disposition="Cap Rate",'Cash Flows'!P$67/Exit_Rate,FV(Exit_Rate,M$4,0,-Acquisition_Gross)),"-") -> 10737092.24
B27: Mortgage Balance (EOY) | D27: =IFERROR(VLOOKUP(D$4,Amortization_Schedule_Annual,9,FALSE),"-") -> 0 | E27: 0 | F27: 0 | G27: 0 | H27: 0 | I27: 0 | J27: 0 | K27: 0 | L27: 0 | M27: 0
B28: Equity (EOY) | D28: =IFERROR(D26-D27,"-") -> 8229087.15 | E28: =IFERROR(E26-E27,"-") -> 8475959.764 | F28: 8730238.557 | G28: 8992145.714 | H28: 9261910.086 | I28: 9539767.388 | J28: 9825960.41 | K28: 10120739.22 | L28: 10424361.4 | M28: 10737092.24
B30: Operating Ratios
B31: Net Income Multiplier* | D31: =IFERROR(Acquisition_Levered/D10,"-") -> 0 | E31: 0 | F31: 0 | G31: 0 | H31: 0 | I31: 0 | J31: 0 | K31: 0 | L31: 0 | M31: 0
B32: Operating Expense Ratio | D32: =IFERROR(-D8/D7,"-") -> 0.03 | E32: 0.03 | F32: 0.03 | G32: 0.03 | H32: 0.03 | I32: 0.03 | J32: 0.03 | K32: 0.03 | L32: 0.03 | M32: 0.03
B33: Cash on Cash Return (Pre Tax) | D33: =IFERROR('Return Detail'!F32/Equity_Amount,"-") -> - | E33: =IFERROR('Return Detail'!G32/Equity_Amount,"-") -> - | F33: =IFERROR('Return Detail'!H32/Equity_Amount,"-") -> - | G33: =IFERROR('Return Detail'!I32/Equity_Amount,"-") -> - | H33: =IFERROR('Return Detail'!J32/Equity_Amount,"-") -> - | I33: =IFERROR('Return Detail'!K32/Equity_Amount,"-") -> - | J33: =IFERROR('Return Detail'!L32/Equity_Amount,"-") -> - | K33: =IFERROR('Return Detail'!M32/Equity_Amount,"-") -> - | L33: =IFERROR('Return Detail'!N32/Equity_Amount,"-") -> - | M33: =IFERROR('Return Detail'!O32/Equity_Amount,"-") -> -
B34: Cash on Cash Return (Post Tax) | D34: =IFERROR('Return Detail'!F$83/Equity_Amount,"-") -> - | E34: =IFERROR('Return Detail'!G$83/Equity_Amount,"-") -> - | F34: =IFERROR('Return Detail'!H$83/Equity_Amount,"-") -> - | G34: =IFERROR('Return Detail'!I$83/Equity_Amount,"-") -> - | H34: =IFERROR('Return Detail'!J$83/Equity_Amount,"-") -> - | I34: =IFERROR('Return Detail'!K$83/Equity_Amount,"-") -> - | J34: =IFERROR('Return Detail'!L$83/Equity_Amount,"-") -> - | K34: =IFERROR('Return Detail'!M$83/Equity_Amount,"-") -> - | L34: =IFERROR('Return Detail'!N$83/Equity_Amount,"-") -> - | M34: =IFERROR('Return Detail'!O$83/Equity_Amount,"-") -> -
B35: =IF(Project_Type="Acquisition","*Based on Acquisition Cost","*Based on Development Cost") -> *Based on Acquisition Cost
B37: Lender Ratios
B38: Loan to Value Ratio | D38: =IFERROR(D27/D26,"-") -> 0 | E38: =IFERROR(E27/E26,"-") -> 0 | F38: 0 | G38: 0 | H38: 0 | I38: 0 | J38: 0 | K38: 0 | L38: 0 | M38: 0
B39: Debt to Equity Ratio | D39: =IFERROR(D27/D28,"-") -> 0 | E39: =IFERROR(E27/E28,"-") -> 0 | F39: 0 | G39: 0 | H39: 0 | I39: 0 | J39: 0 | K39: 0 | L39: 0 | M39: 0
B40: Debt Service Coverage Ratio | D40: =IFERROR(D$10/-D$11,"-") -> - | E40: =IFERROR(E$10/-E$11,"-") -> - | F40: - | G40: - | H40: - | I40: - | J40: - | K40: - | L40: - | M40: -
B41: Break Even Occupancy (Pre Tax) | D41: =IFERROR(SUM('Cash Flows'!F55,'Cash Flows'!F90,'Cash Flows'!F99)/SUM('Cash Flows'!F24,'Cash Flows'!F33),"-") -> 0.018375 | E41: =IFERROR(SUM('Cash Flows'!G55,'Cash Flows'!G90,'Cash Flows'!G99)/SUM('Cash Flows'!G24,'Cash Flows'!G33),"-") -> 0.0285 | F41: =IFERROR(SUM('Cash Flows'!H55,'Cash Flows'!H90,'Cash Flows'!H99)/SUM('Cash Flows'!H24,'Cash Flows'!H33),"-") -> 0.0285 | G41: =IFERROR(SUM('Cash Flows'!I55,'Cash Flows'!I90,'Cash Flows'!I99)/SUM('Cash Flows'!I24,'Cash Flows'!I33),"-") -> 0.0285 | H41: =IFERROR(SUM('Cash Flows'!J55,'Cash Flows'!J90,'Cash Flows'!J99)/SUM('Cash Flows'!J24,'Cash Flows'!J33),"-") -> 0.0285 | I41: =IFERROR(SUM('Cash Flows'!K55,'Cash Flows'!K90,'Cash Flows'!K99)/SUM('Cash Flows'!K24,'Cash Flows'!K33),"-") -> 0.0285 | J41: =IFERROR(SUM('Cash Flows'!L55,'Cash Flows'!L90,'Cash Flows'!L99)/SUM('Cash Flows'!L24,'Cash Flows'!L33),"-") -> 0.0285 | K41: =IFERROR(SUM('Cash Flows'!M55,'Cash Flows'!M90,'Cash Flows'!M99)/SUM('Cash Flows'!M24,'Cash Flows'!M33),"-") -> 0.0285 | L41: =IFERROR(SUM('Cash Flows'!N55,'Cash Flows'!N90,'Cash Flows'!N99)/SUM('Cash Flows'!N24,'Cash Flows'!N33),"-") -> 0.0285 | M41: =IFERROR(SUM('Cash Flows'!O55,'Cash Flows'!O90,'Cash Flows'!O99)/SUM('Cash Flows'!O24,'Cash Flows'!O33),"-") -> 0.0285
B42: Break Even Occupancy (Post Tax) | D42: =IFERROR(SUM('Cash Flows'!F55,'Cash Flows'!F90,'Cash Flows'!F99,'Cash Flows'!F129)/SUM('Cash Flows'!F24,'Cash Flows'!F33),"-") -> -0.18956875 | E42: =IFERROR(SUM('Cash Flows'!G55,'Cash Flows'!G90,'Cash Flows'!G99,'Cash Flows'!G129)/SUM('Cash Flows'!G24,'Cash Flows'!G33),"-") -> -0.294025 | F42: =IFERROR(SUM('Cash Flows'!H55,'Cash Flows'!H90,'Cash Flows'!H99,'Cash Flows'!H129)/SUM('Cash Flows'!H24,'Cash Flows'!H33),"-") -> -0.294025 | G42: =IFERROR(SUM('Cash Flows'!I55,'Cash Flows'!I90,'Cash Flows'!I99,'Cash Flows'!I129)/SUM('Cash Flows'!I24,'Cash Flows'!I33),"-") -> -0.294025 | H42: =IFERROR(SUM('Cash Flows'!J55,'Cash Flows'!J90,'Cash Flows'!J99,'Cash Flows'!J129)/SUM('Cash Flows'!J24,'Cash Flows'!J33),"-") -> -0.294025 | I42: =IFERROR(SUM('Cash Flows'!K55,'Cash Flows'!K90,'Cash Flows'!K99,'Cash Flows'!K129)/SUM('Cash Flows'!K24,'Cash Flows'!K33),"-") -> -0.294025 | J42: =IFERROR(SUM('Cash Flows'!L55,'Cash Flows'!L90,'Cash Flows'!L99,'Cash Flows'!L129)/SUM('Cash Flows'!L24,'Cash Flows'!L33),"-") -> -0.294025 | K42: =IFERROR(SUM('Cash Flows'!M55,'Cash Flows'!M90,'Cash Flows'!M99,'Cash Flows'!M129)/SUM('Cash Flows'!M24,'Cash Flows'!M33),"-") -> -0.294025 | L42: =IFERROR(SUM('Cash Flows'!N55,'Cash Flows'!N90,'Cash Flows'!N99,'Cash Flows'!N129)/SUM('Cash Flows'!N24,'Cash Flows'!N33),"-") -> -0.294025 | M42: =IFERROR(SUM('Cash Flows'!O55,'Cash Flows'!O90,'Cash Flows'!O99,'Cash Flows'!O129)/SUM('Cash Flows'!O24,'Cash Flows'!O33),"-") -> -0.294025
B43: Debt Yield | D43: =IFERROR(D10/D27,"-") -> - | E43: - | F43: - | G43: - | H43: - | I43: - | J43: - | K43: - | L43: - | M43: -
B45: ="Performance Summary over " & Hold & " Years" -> Performance Summary over 10 Years | D45: Pre Tax | E45: Post Tax
B46: Initial Equity | D46: =-Equity_Amount -> 0 | E46: =-Equity_Amount -> 0
B47: Operating Cash Flows | D47: =SUM('Return Detail'!$F$32:$O$32) -> 8875123.344 | E47: =SUM('Return Detail'!$F$83:$O$83) -> 5768830.174
B48: Net Reversion Proceeds | D48: =SUM('Return Detail'!$F$33:$O$36) -> 10737092.24 | E48: =SUM('Return Detail'!$F$84:$O$84) -> 8589673.793
B49: Net Cash Flow | D49: =SUM(D46:D48) -> 19612215.58 | E49: =SUM(E46:E48) -> 14358503.97
B50: ="Net Present Value at "&ROUND(Equity_Rate*100,2)&"%" -> Net Present Value at 10% | D50: ='Return Detail'!$C$41 -> 9381284.465 | E50: ='Return Detail'!$C$89 -> 6718776.982
B51: Leveraged IRR | D51: ='Return Detail'!$C$42 -> - | E51: ='Return Detail'!C91 -> -
B56: www.realpropmetrics.com
B57: ="Version: "&Version -> Version: 9.42 SH | © 2022
B58: =TODAY() -> 2022-02-23
B59: This pro forma does not constitute tax advice. Please consult a professional tax advisor.

Sheet Return Detail
B2: Project Return Details
B4: Unlevered Returns
F5: 1 | G5: 2 | H5: 3 | I5: 4 | J5: 5 | K5: 6 | L5: 7 | M5: 8 | N5: 9 | O5: 10
B6: Net Operating Income | F6: =IF($F$5<=Hold,'Cash Flows'!F$67,0) -> 515106.375 | G6: =IF(G5<=Hold,'Cash Flows'!G$67,0) -> 822908.715 | H6: =IF(H5<=Hold,'Cash Flows'!H$67,0) -> 847595.9764 | I6: =IF(I5<=Hold,'Cash Flows'!I$67,0) -> 873023.8557 | J6: =IF(J5<=Hold,'Cash Flows'!J$67,0) -> 899214.5714 | K6: =IF(K5<=Hold,'Cash Flows'!K$67,0) -> 926191.0086 | L6: =IF(L5<=Hold,'Cash Flows'!L$67,0) -> 953976.7388 | M6: =IF(M5<=Hold,'Cash Flows'!M$67,0) -> 982596.041 | N6: =IF(N5<=Hold,'Cash Flows'!N$67,0) -> 1012073.922 | O6: =IF(O5<=Hold,'Cash Flows'!O$67,0) -> 1042436.14
B7: Less: Capital Expenses | F7: =IF(F$5<=Hold,'Cash Flows'!F112*-1,0) -> 0 | G7: =IF(G$5<=Hold,'Cash Flows'!G112*-1,0) -> 0 | H7: =IF(H$5<=Hold,'Cash Flows'!H112*-1,0) -> 0 | I7: =IF(I$5<=Hold,'Cash Flows'!I112*-1,0) -> 0 | J7: =IF(J$5<=Hold,'Cash Flows'!J112*-1,0) -> 0 | K7: =IF(K$5<=Hold,'Cash Flows'!K112*-1,0) -> 0 | L7: =IF(L$5<=Hold,'Cash Flows'!L112*-1,0) -> 0 | M7: =IF(M$5<=Hold,'Cash Flows'!M112*-1,0) -> 0 | N7: =IF(N$5<=Hold,'Cash Flows'!N112*-1,0) -> 0 | O7: =IF(O$5<=Hold,'Cash Flows'!O112*-1,0) -> 0
B8: Non-Regular Income | F8: =IF(F5>Hold,0,'Cash Flows'!F$119) -> 0 | G8: =IF(G5>Hold,0,'Cash Flows'!G$119) -> 0 | H8: =IF(H5>Hold,0,'Cash Flows'!H$119) -> 0 | I8: =IF(I5>Hold,0,'Cash Flows'!I$119) -> 0 | J8: =IF(J5>Hold,0,'Cash Flows'!J$119) -> 0 | K8: =IF(K5>Hold,0,'Cash Flows'!K$119) -> 0 | L8: =IF(L5>Hold,0,'Cash Flows'!L$119) -> 0 | M8: =IF(M5>Hold,0,'Cash Flows'!M$119) -> 0 | N8: =IF(N5>Hold,0,'Cash Flows'!N$119) -> 0 | O8: =IF(O5>Hold,0,'Cash Flows'!O$119) -> 0
B9: Operating Cash Flow | F9: =SUM(F6:F8) -> 515106.375 | G9: =SUM(G6:G8) -> 822908.715 | H9: 847595.9764 | I9: 873023.8557 | J9: 899214.5714 | K9: 926191.0086 | L9: 953976.7388 | M9: 982596.041 | N9: 1012073.922 | O9: 1042436.14
B10: Reversion Cash Flow | F10: =IFERROR(IF(F$5=Hold,IF(Disposition="Cap Rate",'Cash Flows'!G$59/Exit_Rate,FV(Exit_Rate,Hold,0,-Acquisition_Gross)),0),0) -> 0 | G10: =IFERROR(IF(G$5=Hold,IF(Disposition="Cap Rate",'Cash Flows'!H$59/Exit_Rate,FV(Exit_Rate,Hold,0,-Acquisition_Gross)),0),0) -> 0 | H10: =IFERROR(IF(H$5=Hold,IF(Disposition="Cap Rate",'Cash Flows'!I$59/Exit_Rate,FV(Exit_Rate,Hold,0,-Acquisition_Gross)),0),0) -> 0 | I10: =IFERROR(IF(I$5=Hold,IF(Disposition="Cap Rate",'Cash Flows'!J$59/Exit_Rate,FV(Exit_Rate,Hold,0,-Acquisition_Gross)),0),0) -> 0 | J10: =IFERROR(IF(J$5=Hold,IF(Disposition="Cap Rate",'Cash Flows'!K$59/Exit_Rate,FV(Exit_Rate,Hold,0,-Acquisition_Gross)),0),0) -> 0 | K10: =IFERROR(IF(K$5=Hold,IF(Disposition="Cap Rate",'Cash Flows'!L$59/Exit_Rate,FV(Exit_Rate,Hold,0,-Acquisition_Gross)),0),0) -> 0 | L10: =IFERROR(IF(L$5=Hold,IF(Disposition="Cap Rate",'Cash Flows'!M$59/Exit_Rate,FV(Exit_Rate,Hold,0,-Acquisition_Gross)),0),0) -> 0 | M10: =IFERROR(IF(M$5=Hold,IF(Disposition="Cap Rate",'Cash Flows'!N$59/Exit_Rate,FV(Exit_Rate,Hold,0,-Acquisition_Gross)),0),0) -> 0 | N10: =IFERROR(IF(N$5=Hold,IF(Disposition="Cap Rate",'Cash Flows'!O$59/Exit_Rate,FV(Exit_Rate,Hold,0,-Acquisition_Gross)),0),0) -> 0 | O10: =IFERROR(IF(O$5=Hold,IF(Disposition="Cap Rate",'Cash Flows'!P$59/Exit_Rate,FV(Exit_Rate,Hold,0,-Acquisition_Gross)),0),0) -> 10737092.24
B11: Less: Cost of Sale | F11: =F10*-Sale_Cost -> 0 | G11: 0 | H11: 0 | I11: 0 | J11: 0 | K11: 0 | L11: 0 | M11: 0 | N11: 0 | O11: 0
B12: Net Cash Flow | E12: =-Acquisition_Unlevered -> 0 | F12: =SUM(F9:F11) -> 515106.375 | G12: 822908.715 | H12: 847595.9764 | I12: 873023.8557 | J12: 899214.5714 | K12: 926191.0086 | L12: 953976.7388 | M12: 982596.041 | N12: 1012073.922 | O12: 11779528.38
B13: Cash on Cash Return | F13: =IFERROR(F9/Acquisition_Unlevered,"-") -> - | G13: - | H13: - | I13: - | J13: - | K13: - | L13: - | M13: - | N13: - | O13: -
B15: Net Cash Flow | C15: =SUM(E12:O12) -> 19612215.58
B16: ="Net Present Value at "&ROUND(Equity_Rate*100,2)&"%" -> Net Present Value at 10% | C16: =SUM(E12,NPV(Equity_Rate,F12:O12)) -> 9381284.465
B17: Unleveraged IRR | C17: =IFERROR(IRR(E12:O12),"-") -> -
B18: Avg. Operating Cash on Cash | C18: =IFERROR(((SUM($F$9:$O$9)/Hold)/Acquisition_Unlevered),"-") -> -
B19: Avg. Cash on Cash | C19: =IFERROR(((SUM($F$12:$O$12)/Hold)/Acquisition_Unlevered),"-") -> -
B20: ="Unleveraged PV at " & TEXT(Equity_Rate,"#%") & IF(LEN(C20)>=7," Rounded ($10,000's)"," Rounded ($1,000's)") -> Unleveraged PV at 10% Rounded ($10,000's) | C20: =IF(LEN(INT(NPV(Equity_Rate,F12:O12)))>=7,ROUND(NPV(Equity_Rate,F12:O12),-4),ROUND(NPV(Equity_Rate,F12:O12),-3)) -> 9380000
B21: =IF(Property_Use="Commercial","Per Square Feet","Per Unit") -> Per Unit | C21: =IFERROR(C20/Size_Total,0) -> 93800
B23: Levered Cash Flow
F24: 1 | G24: 2 | H24: 3 | I24: 4 | J24: 5 | K24: 6 | L24: 7 | M24: 8 | N24: 9 | O24: 10
B25: Net Operating Income | F25: =F6 -> 515106.375 | G25: =G6 -> 822908.715 | H25: 847595.9764 | I25: 873023.8557 | J25: 899214.5714 | K25: 926191.0086 | L25: 953976.7388 | M25: 982596.041 | N25: 1012073.922 | O25: 1042436.14
B26: Refinance Proceeds | F26: =IF(Hold<F24,0,IF(ROUNDUP((Loan_IO_Term+1)/12,0)=F24,Loan_Amount_Amortizing-Loan_Amount,0)) -> 0 | G26: 0 | H26: 0 | I26: 0 | J26: 0 | K26: 0 | L26: 0 | M26: 0 | N26: 0 | O26: 0
B27: Less: Debt Service | F27: =IF(F24<=Hold,-'Cash Flows'!F$90,0) -> 0 | G27: =IF(G24<=Hold,-'Cash Flows'!G$90,0) -> 0 | H27: =IF(H24<=Hold,-'Cash Flows'!H$90,0) -> 0 | I27: =IF(I24<=Hold,-'Cash Flows'!I$90,0) -> 0 | J27: =IF(J24<=Hold,-'Cash Flows'!J$90,0) -> 0 | K27: =IF(K24<=Hold,-'Cash Flows'!K$90,0) -> 0 | L27: =IF(L24<=Hold,-'Cash Flows'!L$90,0) -> 0 | M27: =IF(M24<=Hold,-'Cash Flows'!M$90,0) -> 0 | N27: =IF(N24<=Hold,-'Cash Flows'!N$90,0) -> 0 | O27: =IF(O24<=Hold,-'Cash Flows'!O$90,0) -> 0
B28: Less: Mortgage Origination Fee | F28: =IF(OR(F24>Hold,Loan_IO_Approval="No"),0,IF(AND(Loan_IO_Term<>0,(Loan_IO_Term+1)/12<=F24,(Loan_IO_Term+1)/12>F24-1),Loan_Amor_Fee*-Loan_Amount_Amortizing,0)) -> 0 | G28: 0 | H28: 0 | I28: 0 | J28: 0 | K28: 0 | L28: 0 | M28: 0 | N28: 0 | O28: 0
B29: Cash Flow After Debt Service | F29: =SUM(F25:F28) -> 515106.375 | G29: =SUM(G25:G28) -> 822908.715 | H29: 847595.9764 | I29: 873023.8557 | J29: 899214.5714 | K29: 926191.0086 | L29: 953976.7388 | M29: 982596.041 | N29: 1012073.922 | O29: 1042436.14
B30: Less: Capital Expenses | F30: =F$7 -> 0 | G30: =G$7 -> 0 | H30: 0 | I30: 0 | J30: 0 | K30: 0 | L30: 0 | M30: 0 | N30: 0 | O30: 0
B31: Non-Regular Income | F31: =F8 -> 0 | G31: =G8 -> 0 | H31: 0 | I31: 0 | J31: 0 | K31: 0 | L31: 0 | M31: 0 | N31: 0 | O31: 0
B32: Distributable Cash Flow | F32: =SUM(F29:F31) -> 515106.375 | G32: =SUM(G29:G31) -> 822908.715 | H32: 847595.9764 | I32: 873023.8557 | J32: 899214.5714 | K32: 926191.0086 | L32: 953976.7388 | M32: 982596.041 | N32: 1012073.922 | O32: 1042436.14
B33: Reversion Cash Flow | F33: =F10 -> 0 | G33: =G10 -> 0 | H33: 0 | I33: 0 | J33: 0 | K33: 0 | L33: 0 | M33: 0 | N33: 0 | O33: 10737092.24
B34: Less: Cost of Sale | F34: =F33*-Sale_Cost -> 0 | G34: 0 | H34: 0 | I34: 0 | J34: 0 | K34: 0 | L34: 0 | M34: 0 | N34: 0 | O34: 0
B35: Less: Mortgage Balance | F35: =IF(F$24=Hold,-VLOOKUP(F$24,Amortization_Schedule_Annual,9,FALSE),0) -> 0 | G35: 0 | H35: 0 | I35: 0 | J35: 0 | K35: 0 | L35: 0 | M35: 0 | N35: 0 | O35: 0
B36: Less: Mortgage Exit Fee | F36: =F35*Loan_Exit_Fee -> 0 | G36: =G35*Loan_Exit_Fee -> 0 | H36: 0 | I36: 0 | J36: 0 | K36: 0 | L36: 0 | M36: 0 | N36: 0 | O36: 0
B37: Net Cash Flow | E37: =-Equity_Amount -> 0 | F37: =SUM(F32:F36) -> 515106.375 | G37: 822908.715 | H37: 847595.9764 | I37: 873023.8557 | J37: 899214.5714 | K37: 926191.0086 | L37: 953976.7388 | M37: 982596.041 | N37: 1012073.922 | O37: 11779528.38
B38: Cash on Cash Return | F38: =IFERROR(F32/Equity_Amount,"-") -> - | G38: - | H38: - | I38: - | J38: - | K38: - | L38: - | M38: - | N38: - | O38: -
B40: Net Leveraged Cash Flow | C40: =SUM(E37:O37) -> 19612215.58
B41: ="Net Present Value at "&ROUND(Equity_Rate*100,2)&"%" -> Net Present Value at 10% | C41: =SUM(E37,NPV(Equity_Rate,F37:O37)) -> 9381284.465
B42: Leveraged IRR | C42: =IFERROR(IRR(E37:O37),"-") -> -
B43: Avg. Operating Cash on Cash | C43: =IFERROR(((SUM($F$32:$O$32)/Hold)/-E37),"-") -> -
B44: Avg. Cash on Cash | C44: =IFERROR(((SUM($F$37:$O$37)/Hold)/-E37),"-") -> -
B45: ="Present Value of Cash Flows at "&ROUND(Equity_Rate*100,0)&"%" -> Present Value of Cash Flows at 10% | C45: =NPV(Equity_Rate,F37:O37) -> 9381284.465
B46: Plus: Original Loan Amount | C46: =Loan_Amount -> 0
B47: Total Leveraged Present Value | C47: =SUM(C45:C46) -> 9381284.465
B48: =IF(LEN(C48)>=7,"Rounded ($10,000's)","Rounded ($1,000's)") -> Rounded ($10,000's) | C48: =IF(LEN(INT(C47))>=7,ROUND(C47,-4),ROUND(C47,-3)) -> 9380000
B49: =IF(Property_Use="Commercial","Per Square Feet","Per Unit") -> Per Unit | C49: =IFERROR(C48/Size_Total,0) -> 93800
B51: After Tax Returns
F52: 1 | G52: 2 | H52: 3 | I52: 4 | J52: 5 | K52: 6 | L52: 7 | M52: 8 | N52: 9 | O52: 10
B53: Basis Calculation
B54: Basis at Acquisition | F54: =IF(F52=Hold,Acquisition_Unlevered,0) -> 0 | G54: 0 | H54: 0 | I54: 0 | J54: 0 | K54: 0 | L54: 0 | M54: 0 | N54: 0 | O54: 0
B55: + Capital Additions | F55: =IF(F52=Hold,SUM('Cash Flows'!$F$105:F$105),0) -> 0 | G55: =IF(G52=Hold,SUM('Cash Flows'!$F$105:G$105),0) -> 0 | H55: =IF(H52=Hold,SUM('Cash Flows'!$F$105:H$105),0) -> 0 | I55: =IF(I52=Hold,SUM('Cash Flows'!$F$105:I$105),0) -> 0 | J55: =IF(J52=Hold,SUM('Cash Flows'!$F$105:J$105),0) -> 0 | K55: =IF(K52=Hold,SUM('Cash Flows'!$F$105:K$105),0) -> 0 | L55: =IF(L52=Hold,SUM('Cash Flows'!$F$105:L$105),0) -> 0 | M55: =IF(M52=Hold,SUM('Cash Flows'!$F$105:M$105),0) -> 0 | N55: =IF(N52=Hold,SUM('Cash Flows'!$F$105:N$105),0) -> 0 | O55: =IF(O52=Hold,SUM('Cash Flows'!$F$105:O$105),0) -> 0
B56: Cost Recovery (Depreciation) Taken | F56: =IF(F52=Hold,SUM('Cash Flows'!$F$126:F$126)*-1,0) -> 0 | G56: =IF(G52=Hold,SUM('Cash Flows'!$F$126:G$126)*-1,0) -> 0 | H56: =IF(H52=Hold,SUM('Cash Flows'!$F$126:H$126)*-1,0) -> 0 | I56: =IF(I52=Hold,SUM('Cash Flows'!$F$126:I$126)*-1,0) -> 0 | J56: =IF(J52=Hold,SUM('Cash Flows'!$F$126:J$126)*-1,0) -> 0 | K56: =IF(K52=Hold,SUM('Cash Flows'!$F$126:K$126)*-1,0) -> 0 | L56: =IF(L52=Hold,SUM('Cash Flows'!$F$126:L$126)*-1,0) -> 0 | M56: =IF(M52=Hold,SUM('Cash Flows'!$F$126:M$126)*-1,0) -> 0 | N56: =IF(N52=Hold,SUM('Cash Flows'!$F$126:N$126)*-1,0) -> 0 | O56: =IF(O52=Hold,SUM('Cash Flows'!$F$126:O$126)*-1,0) -> 0
B57: Adjusted Basis at Sale | F57: =SUM(F54:F56) -> 0 | G57: =SUM(G54:G56) -> 0 | H57: 0 | I57: 0 | J57: 0 | K57: 0 | L57: 0 | M57: 0 | N57: 0 | O57: 0
B59: Capital Gain Calculation
B60: Sale Price | F60: =F10 -> 0 | G60: 0 | H60: 0 | I60: 0 | J60: 0 | K60: 0 | L60: 0 | M60: 0 | N60: 0 | O60: 10737092.24
B61: Less Cost of Sale | F61: =F11 -> 0 | G61: 0 | H61: 0 | I61: 0 | J61: 0 | K61: 0 | L61: 0 | M61: 0 | N61: 0 | O61: 0
B62: Less Adjusted Basis at Sale | F62: =IF(F52=Hold,SUM($F$57:F57)*-1,0) -> 0 | G62: =IF(G52=Hold,SUM($F$57:G57)*-1,0) -> 0 | H62: =IF(H52=Hold,SUM($F$57:H57)*-1,0) -> 0 | I62: =IF(I52=Hold,SUM($F$57:I57)*-1,0) -> 0 | J62: =IF(J52=Hold,SUM($F$57:J57)*-1,0) -> 0 | K62: =IF(K52=Hold,SUM($F$57:K57)*-1,0) -> 0 | L62: =IF(L52=Hold,SUM($F$57:L57)*-1,0) -> 0 | M62: =IF(M52=Hold,SUM($F$57:M57)*-1,0) -> 0 | N62: =IF(N52=Hold,SUM($F$57:N57)*-1,0) -> 0 | O62: =IF(O52=Hold,SUM($F$57:O57)*-1,0) -> 0
B63: Gain (Loss) | F63: =SUM(F60:F62) -> 0 | G63: =SUM(G60:G62) -> 0 | H63: 0 | I63: 0 | J63: 0 | K63: 0 | L63: 0 | M63: 0 | N63: 0 | O63: 10737092.24
B64: Straight Line Cost Recovery (Limited to Gain) | F64: =IF(F63<=0,0,IF(F63<SUM($F$56:F56)*-1,F63,SUM($F$56:F56)*-1)) -> 0 | G64: =IF(G63<=0,0,IF(G63<SUM($F$56:G56)*-1,G63,SUM($F$56:G56)*-1)) -> 0 | H64: =IF(H63<=0,0,IF(H63<SUM($F$56:H56)*-1,H63,SUM($F$56:H56)*-1)) -> 0 | I64: =IF(I63<=0,0,IF(I63<SUM($F$56:I56)*-1,I63,SUM($F$56:I56)*-1)) -> 0 | J64: =IF(J63<=0,0,IF(J63<SUM($F$56:J56)*-1,J63,SUM($F$56:J56)*-1)) -> 0 | K64: =IF(K63<=0,0,IF(K63<SUM($F$56:K56)*-1,K63,SUM($F$56:K56)*-1)) -> 0 | L64: =IF(L63<=0,0,IF(L63<SUM($F$56:L56)*-1,L63,SUM($F$56:L56)*-1)) -> 0 | M64: =IF(M63<=0,0,IF(M63<SUM($F$56:M56)*-1,M63,SUM($F$56:M56)*-1)) -> 0 | N64: =IF(N63<=0,0,IF(N63<SUM($F$56:N56)*-1,N63,SUM($F$56:N56)*-1)) -> 0 | O64: =IF(O63<=0,0,IF(O63<SUM($F$56:O56)*-1,O63,SUM($F$56:O56)*-1)) -> 0
B65: Capital Gain from Appreciation | F65: =IF(F63<=0,0,F63-F64) -> 0 | G65: =IF(G63<=0,0,G63-G64) -> 0 | H65: 0 | I65: 0 | J65: 0 | K65: 0 | L65: 0 | M65: 0 | N65: 0 | O65: 10737092.24
B66: Unamortized Loan Fees (Costs) | F66: =IF(F52=Hold,SUM('Cash Flows'!G$127:$P$127)*-1,0) -> 0 | G66: =IF(G52=Hold,SUM('Cash Flows'!H$127:$P$127)*-1,0) -> 0 | H66: =IF(H52=Hold,SUM('Cash Flows'!I$127:$P$127)*-1,0) -> 0 | I66: =IF(I52=Hold,SUM('Cash Flows'!J$127:$P$127)*-1,0) -> 0 | J66: =IF(J52=Hold,SUM('Cash Flows'!K$127:$P$127)*-1,0) -> 0 | K66: =IF(K52=Hold,SUM('Cash Flows'!L$127:$P$127)*-1,0) -> 0 | L66: =IF(L52=Hold,SUM('Cash Flows'!M$127:$P$127)*-1,0) -> 0 | M66: =IF(M52=Hold,SUM('Cash Flows'!N$127:$P$127)*-1,0) -> 0 | N66: =IF(N52=Hold,SUM('Cash Flows'!O$127:$P$127)*-1,0) -> 0 | O66: =IF(O52=Hold,SUM('Cash Flows'!P$127:$P$127)*-1,0) -> 0
B68: Sale Proceeds Calculation
B69: Sale Price | F69: =F60 -> 0 | G69: =G60 -> 0 | H69: 0 | I69: 0 | J69: 0 | K69: 0 | L69: 0 | M69: 0 | N69: 0 | O69: 10737092.24
B70: Less Cost of Sale | F70: =F61 -> 0 | G70: =G61 -> 0 | H70: 0 | I70: 0 | J70: 0 | K70: 0 | L70: 0 | M70: 0 | N70: 0 | O70: 0
B71: Less Mortgage Exit Fee | F71: =F72*Loan_Exit_Fee -> 0 | G71: 0 | H71: 0 | I71: 0 | J71: 0 | K71: 0 | L71: 0 | M71: 0 | N71: 0 | O71: 0
B72: Less Mortgage Balance | F72: =F35 -> 0 | G72: 0 | H72: 0 | I72: 0 | J72: 0 | K72: 0 | L72: 0 | M72: 0 | N72: 0 | O72: 0
B73: Sale Proceeds Before Tax | F73: =SUM(F69:F72) -> 0 | G73: =SUM(G69:G72) -> 0 | H73: 0 | I73: 0 | J73: 0 | K73: 0 | L73: 0 | M73: 0 | N73: 0 | O73: 10737092.24
B74: ="Less Tax on Ordinary Income at "&ROUND(Tax_Ordinary*100,0)&"%" -> Less Tax on Ordinary Income at 35% | F74: =-F66*Tax_Ordinary -> 0 | G74: 0 | H74: 0 | I74: 0 | J74: 0 | K74: 0 | L74: 0 | M74: 0 | N74: 0 | O74: 0
B75: ="Less Tax on Cost Recovery Recapture at "&ROUND(Tax_CR*100,0)&"%" -> Less Tax on Cost Recovery Recapture at 25% | F75: =-F64*Tax_CR -> 0 | G75: 0 | H75: 0 | I75: 0 | J75: 0 | K75: 0 | L75: 0 | M75: 0 | N75: 0 | O75: 0
B76: ="Less Tax on Capital Gain at "&ROUND(Tax_CG*100,0)&"%" -> Less Tax on Capital Gain at 20% | F76: =-F65*Tax_CG -> 0 | G76: 0 | H76: 0 | I76: 0 | J76: 0 | K76: 0 | L76: 0 | M76: 0 | N76: 0 | O76: -2147418.448
B77: Sale Proceeds After Tax | F77: =SUM(F73:F76) -> 0 | G77: =SUM(G73:G76) -> 0 | H77: 0 | I77: 0 | J77: 0 | K77: 0 | L77: 0 | M77: 0 | N77: 0 | O77: 8589673.793
B79: Proceeds After Taxes
B80: Cash Flow Before Taxes | F80: =IF(F$52<=Hold,'Cash Flows'!F$121,0) -> 515106.375 | G80: =IF(G$52<=Hold,'Cash Flows'!G$121,0) -> 822908.715 | H80: =IF(H$52<=Hold,'Cash Flows'!H$121,0) -> 847595.9764 | I80: =IF(I$52<=Hold,'Cash Flows'!I$121,0) -> 873023.8557 | J80: =IF(J$52<=Hold,'Cash Flows'!J$121,0) -> 899214.5714 | K80: =IF(K$52<=Hold,'Cash Flows'!K$121,0) -> 926191.0086 | L80: =IF(L$52<=Hold,'Cash Flows'!L$121,0) -> 953976.7388 | M80: =IF(M$52<=Hold,'Cash Flows'!M$121,0) -> 982596.041 | N80: =IF(N$52<=Hold,'Cash Flows'!N$121,0) -> 1012073.922 | O80: =IF(O$52<=Hold,'Cash Flows'!O$121,0) -> 1042436.14
B81: Less: Annual Operating Tax Liability | F81: =IF(F$52<=Hold,'Cash Flows'!F$129,0) -> -180287.2312 | G81: =IF(G$52<=Hold,'Cash Flows'!G$129,0) -> -288018.0502 | H81: =IF(H$52<=Hold,'Cash Flows'!H$129,0) -> -296658.5918 | I81: =IF(I$52<=Hold,'Cash Flows'!I$129,0) -> -305558.3495 | J81: =IF(J$52<=Hold,'Cash Flows'!J$129,0) -> -314725.1 | K81: =IF(K$52<=Hold,'Cash Flows'!K$129,0) -> -324166.853 | L81: =IF(L$52<=Hold,'Cash Flows'!L$129,0) -> -333891.8586 | M81: =IF(M$52<=Hold,'Cash Flows'!M$129,0) -> -343908.6143 | N81: =IF(N$52<=Hold,'Cash Flows'!N$129,0) -> -354225.8728 | O81: =IF(O$52<=Hold,'Cash Flows'!O$129,0) -> -364852.649
B82: Draw from Operating Reserve | F82: =IF(F$52<=Hold,'Cash Flows'!F$131,0) -> 0 | G82: =IF(G$52<=Hold,'Cash Flows'!G$131,0) -> 0 | H82: =IF(H$52<=Hold,'Cash Flows'!H$131,0) -> 0 | I82: =IF(I$52<=Hold,'Cash Flows'!I$131,0) -> 0 | J82: =IF(J$52<=Hold,'Cash Flows'!J$131,0) -> 0 | K82: =IF(K$52<=Hold,'Cash Flows'!K$131,0) -> 0 | L82: =IF(L$52<=Hold,'Cash Flows'!L$131,0) -> 0 | M82: =IF(M$52<=Hold,'Cash Flows'!M$131,0) -> 0 | N82: =IF(N$52<=Hold,'Cash Flows'!N$131,0) -> 0 | O82: =IF(O$52<=Hold,'Cash Flows'!O$131,0) -> 0
B83: Cash Flow After Taxes | F83: =SUM(F80:F82) -> 334819.1438 | G83: =SUM(G80:G82) -> 534890.6647 | H83: 550937.3847 | I83: 567465.5062 | J83: 584489.4714 | K83: 602024.1556 | L83: 620084.8802 | M83: 638687.4266 | N83: 657848.0494 | O83: 677583.4909
B84: Sale Proceeds After Taxes | F84: =F77 -> 0 | G84: =G77 -> 0 | H84: 0 | I84: 0 | J84: 0 | K84: 0 | L84: 0 | M84: 0 | N84: 0 | O84: 8589673.793
B85: Annual Proceeds After Taxes | E85: =-Equity_Amount -> 0 | F85: =SUM(F83:F84) -> 334819.1438 | G85: =SUM(G83:G84) -> 534890.6647 | H85: 550937.3847 | I85: 567465.5062 | J85: 584489.4714 | K85: 602024.1556 | L85: 620084.8802 | M85: 638687.4266 | N85: 657848.0494 | O85: 9267257.283
B86: Cash on Cash Return | F86: =IFERROR(F83/Equity_Amount,"-") -> - | G86: - | H86: - | I86: - | J86: - | K86: - | L86: - | M86: - | N86: - | O86: -
B88: Net Cash Flows | C88: =SUM(E85:O85) -> 14358503.97
B89: ="Net Present Value at "&ROUND(Equity_Rate*100,2)&"%" -> Net Present Value at 10% | C89: =SUM(E85,NPV(Equity_Rate,F85:O85)) -> 6718776.982
B90: Effective Tax Rate | C90: =IFERROR(IF(C42=0,0,(C42-C91)/C42),"-") -> -
B91: After Tax Leveraged IRR | C91: =IFERROR(IRR(E85:O85),"-") -> -
B92: Avg. Operating Cash on Cash | C92: =IFERROR((SUM(F83:O83)/Hold)/Equity_Amount,"-") -> -
B93: Avg. Cash on Cash | C93: =IFERROR((SUM(F85:O85)/Hold)/Equity_Amount,"-") -> -
B94: ="Present Value of Cash Flows at "&ROUND(Equity_Rate*100,0)&"%" -> Present Value of Cash Flows at 10% | C94: =NPV(Equity_Rate,F85:O85) -> 6718776.982
B95: Plus: Original Loan Amount | C95: =Loan_Amount -> 0
B96: Total After Tax Leveraged Present Value | C96: =SUM(C94:C95) -> 6718776.982
B97: =IF(LEN(C97)>=7,"Rounded ($10,000's)","Rounded ($1,000's)") -> Rounded ($10,000's) | C97: =IF(LEN(INT(C96))>=7,ROUND(C96,-4),ROUND(C96,-3)) -> 6720000
B98: =IF(Property_Use="Commercial","Per Square Feet","Per Unit") -> Per Unit | C98: =IFERROR(C97/Size_Total,0) -> 67200
B102: www.realpropmetrics.com
B103: ="Version: "&Version -> Version: 9.42 SH | © 2022
B104: =TODAY() -> 2022-02-23
B105: This pro forma does not constitute tax advice. Please consult a professional tax advisor.

Sheet Loan Amortization
B3: Loan Amortization Schedule
C5: Interest Only Loan | H5: Amortizing Loan
C6: Loan Amount | D6: =IF(Loan_IO_Approval="no","-",Loan_Amount) -> - | H6: Loan Amount | I6: =Loan_Amount_Amortizing -> 0
C7: Term | D7: =IF(Loan_IO_Approval="no","-",Loan_IO_Term) -> - | H7: Term | I7: =Loan_Amor_Term -> 0
C8: Rate | D8: =IF(Loan_IO_Approval="no","-",Loan_IO_Rate) -> - | H8: Amortization | I8: =Loan_Amortization -> 0
C9: Funding Status | D9: =IF(Loan_IO_Approval="no","-",IF(Loan_IO_Status=0,"Fund Up (Default)",Loan_IO_Status)) -> - | H9: Rate | I9: =Loan_Amor_Rate -> 0
H10: Rate Type | I10: =Loan_Amor_Type -> Fixed
B12: Annual Summary
B13: Period | C13: Dates | D13: Loan Type | E13: Effective Rate | F13: Beginning Balance | G13: Interest | H13: Principal | I13: Total Payments | J13: Ending Balance | L13: IO Interest Due | M13: I/O Interest Due | N13: Spent | O13: Ending Budget
B14: 1 | C14: =RPMDateSpan(B14,1) -> Jan 22 - Dec 22 | D14: =IFERROR(RPMAnnualLoanType(B14),"Enable Macros") -> Partial Amor. | E14: =IFERROR(RPMAnnualRate(B14,D14,F14,I14,J14),"Enable Macros") -> 0 | F14: =VLOOKUP((B14*12)-11,Amortization_Schedule_Monthly,5,FALSE) -> 0 | G14: =SUM(OFFSET($G$51:$G$62,(B14-1)*12,0)) -> 0 | H14: =SUM(OFFSET($H$51:$H$62,(B14-1)*12,0)) -> 0 | I14: =SUM(G14:H14) -> 0 | J14: =VLOOKUP(B14*12,Amortization_Schedule_Monthly,9,FALSE) -> 0 | L14: =SUM(IF(B14>Hold,0,IF($B$51:$B$170>($B14-1)*12,IF($B$51:$B$170<=$B14*12,IF($D$51:$D$170="I/O",$G$51:$G$170,0),0),0))) -> 0 | M14: =Loan_IO_IntCarry -> 100000 | N14: =IF(M14>=L14,L14,M14)*-1 -> 0 | O14: =SUM(M14:N14) -> 100000
B15: 2 | C15: =RPMDateSpan(B15,1) -> Jan 23 - Dec 23 | D15: =IFERROR(RPMAnnualLoanType(B15),"Enable Macros") -> Matured | E15: =IFERROR(RPMAnnualRate(B15,D15,F15,I15,J15),"Enable Macros") -> - | F15: 0 | G15: =SUM(OFFSET($G$51:$G$62,(B15-1)*12,0)) -> 0 | H15: =SUM(OFFSET($H$51:$H$62,(B15-1)*12,0)) -> 0 | I15: =SUM(G15:H15) -> 0 | J15: 0 | L15: =SUM(IF(B15>Hold,0,IF($B$51:$B$170>($B15-1)*12,IF($B$51:$B$170<=$B15*12,IF($D$51:$D$170="I/O",$G$51:$G$170,0),0),0))) -> 0 | M15: =O14 -> 100000 | N15: =IF(M15>=L15,L15,M15)*-1 -> 0 | O15: =SUM(M15:N15) -> 100000
B16: 3 | C16: Jan 24 - Dec 24 | D16: =IFERROR(RPMAnnualLoanType(B16),"Enable Macros") -> Matured | E16: =IFERROR(RPMAnnualRate(B16,D16,F16,I16,J16),"Enable Macros") -> - | F16: 0 | G16: 0 | H16: 0 | I16: 0 | J16: 0 | L16: =SUM(IF(B16>Hold,0,IF($B$51:$B$170>($B16-1)*12,IF($B$51:$B$170<=$B16*12,IF($D$51:$D$170="I/O",$G$51:$G$170,0),0),0))) -> 0 | M16: =O15 -> 100000 | N16: =IF(M16>=L16,L16,M16)*-1 -> 0 | O16: =SUM(M16:N16) -> 100000
B17: 4 | C17: Jan 25 - Dec 25 | D17: =IFERROR(RPMAnnualLoanType(B17),"Enable Macros") -> Matured | E17: =IFERROR(RPMAnnualRate(B17,D17,F17,I17,J17),"Enable Macros") -> - | F17: 0 | G17: 0 | H17: 0 | I17: 0 | J17: 0 | L17: =SUM(IF(B17>Hold,0,IF($B$51:$B$170>($B17-1)*12,IF($B$51:$B$170<=$B17*12,IF($D$51:$D$170="I/O",$G$51:$G$170,0),0),0))) -> 0 | M17: 100000 | N17: 0 | O17: 100000
B18: 5 | C18: Jan 26 - Dec 26 | D18: =IFERROR(RPMAnnualLoanType(B18),"Enable Macros") -> Matured | E18: =IFERROR(RPMAnnualRate(B18,D18,F18,I18,J18),"Enable Macros") -> - | F18: 0 | G18: 0 | H18: 0 | I18: 0 | J18: 0 | L18: =SUM(IF(B18>Hold,0,IF($B$51:$B$170>($B18-1)*12,IF($B$51:$B$170<=$B18*12,IF($D$51:$D$170="I/O",$G$51:$G$170,0),0),0))) -> 0 | M18: 100000 | N18: 0 | O18: 100000
B19: 6 | C19: Jan 27 - Dec 27 | D19: =IFERROR(RPMAnnualLoanType(B19),"Enable Macros") -> Matured | E19: =IFERROR(RPMAnnualRate(B19,D19,F19,I19,J19),"Enable Macros") -> - | F19: 0 | G19: 0 | H19: 0 | I19: 0 | J19: 0 | L19: =SUM(IF(B19>Hold,0,IF($B$51:$B$170>($B19-1)*12,IF($B$51:$B$170<=$B19*12,IF($D$51:$D$170="I/O",$G$51:$G$170,0),0),0))) -> 0 | M19: 100000 | N19: 0 | O19: 100000
B20: 7 | C20: Jan 28 - Dec 28 | D20: =IFERROR(RPMAnnualLoanType(B20),"Enable Macros") -> Matured | E20: =IFERROR(RPMAnnualRate(B20,D20,F20,I20,J20),"Enable Macros") -> - | F20: 0 | G20: 0 | H20: 0 | I20: 0 | J20: 0 | L20: =SUM(IF(B20>Hold,0,IF($B$51:$B$170>($B20-1)*12,IF($B$51:$B$170<=$B20*12,IF($D$51:$D$170="I/O",$G$51:$G$170,0),0),0))) -> 0 | M20: 100000 | N20: 0 | O20: 100000
B21: 8 | C21: Jan 29 - Dec 29 | D21: =IFERROR(RPMAnnualLoanType(B21),"Enable Macros") -> Matured | E21: =IFERROR(RPMAnnualRate(B21,D21,F21,I21,J21),"Enable Macros") -> - | F21: 0 | G21: 0 | H21: 0 | I21: 0 | J21: 0 | L21: =SUM(IF(B21>Hold,0,IF($B$51:$B$170>($B21-1)*12,IF($B$51:$B$170<=$B21*12,IF($D$51:$D$170="I/O",$G$51:$G$170,0),0),0))) -> 0 | M21: 100000 | N21: 0 | O21: 100000
B22: 9 | C22: Jan 30 - Dec 30 | D22: =IFERROR(RPMAnnualLoanType(B22),"Enable Macros") -> Matured | E22: =IFERROR(RPMAnnualRate(B22,D22,F22,I22,J22),"Enable Macros") -> - | F22: 0 | G22: 0 | H22: 0 | I22: 0 | J22: 0 | L22: =SUM(IF(B22>Hold,0,IF($B$51:$B$170>($B22-1)*12,IF($B$51:$B$170<=$B22*12,IF($D$51:$D$170="I/O",$G$51:$G$170,0),0),0))) -> 0 | M22: 100000 | N22: 0 | O22: 100000
B23: 10 | C23: Jan 31 - Dec 31 | D23: =IFERROR(RPMAnnualLoanType(B23),"Enable Macros") -> Matured | E23: =IFERROR(RPMAnnualRate(B23,D23,F23,I23,J23),"Enable Macros") -> - | F23: 0 | G23: 0 | H23: 0 | I23: 0 | J23: 0 | L23: =SUM(IF(B23>Hold,0,IF($B$51:$B$170>($B23-1)*12,IF($B$51:$B$170<=$B23*12,IF($D$51:$D$170="I/O",$G$51:$G$170,0),0),0))) -> 0 | M23: 100000 | N23: 0 | O23: 100000
B24: Total | E24: =IFERROR(RATE(Hold*12,-I24/(Hold*12),Loan_Amount,-VLOOKUP(Hold,Amortization_Schedule_Annual,9,FALSE))*12,"-") -> - | F24: - | G24: =SUMPRODUCT(--($B$14:$B$23<=Hold),G14:G23) -> 0 | H24: =SUMPRODUCT(--($B$14:$B$23<=Hold),H14:H23) -> 0 | I24: =SUMPRODUCT(--($B$14:$B$23<=Hold),I14:I23) -> 0 | J24: -
I44: www.realpropmetrics.com
I45: ="Version: "&Version -> Version: 9.42 SH | © 2022
I46: =TODAY() -> 2022-02-23
B49: Monthly Summary
B50: Month | C50: Date | D50: Loan Type | E50: Interest Rate | F50: Beginning Balance | G50: Interest | H50: Principal | I50: Total Payment | J50: Ending Balance
B51: 1 | C51: =RPMDateSpan(B51,3) -> Jan 2022 | D51: =IFERROR(RPMLoanType(B51),"Enable Macros") -> I/O | E51: =IFERROR(RPMInterestRate(B51),"Enable Macros") -> 0 | F51: =IFERROR(RPMBeginningBalance(B51,D51),"Enable Macros") -> 0 | G51: =F51*(RPMCanadian(D51,E51)/12) -> 0 | H51: =I51-G51 -> 0 | I51: =IFERROR(RPMTotalPayment(B51,D51,E51,F51),"Enable Macros") -> 0 | J51: =IF(B51<=SUM(Loan_Amortization,Loan_IO_Term),F51-H51,0) -> 0
B52: 2 | C52: =RPMDateSpan(B52,3) -> Feb 2022 | D52: =IFERROR(RPMLoanType(B52),"Enable Macros") -> I/O | E52: =IFERROR(RPMInterestRate(B52),"Enable Macros") -> 0 | F52: =RPMBeginningBalance(B52,D52,J51) -> 0 | G52: =F52*(RPMCanadian(D52,E52)/12) -> 0 | H52: =I52-G52 -> 0 | I52: =IFERROR(RPMTotalPayment(B52,D52,E52,F52),"Enable Macros") -> 0 | J52: 0
B53: 3 | C53: Mar 2022 | D53: =IFERROR(RPMLoanType(B53),"Enable Macros") -> I/O | E53: =IFERROR(RPMInterestRate(B53),"Enable Macros") -> 0 | F53: =RPMBeginningBalance(B53,D53,J52) -> 0 | G53: 0 | H53: 0 | I53: =IFERROR(RPMTotalPayment(B53,D53,E53,F53),"Enable Macros") -> 0 | J53: 0
B54: 4 | C54: Apr 2022 | D54: =IFERROR(RPMLoanType(B54),"Enable Macros") -> I/O | E54: =IFERROR(RPMInterestRate(B54),"Enable Macros") -> 0 | F54: =RPMBeginningBalance(B54,D54,J53) -> 0 | G54: 0 | H54: 0 | I54: =IFERROR(RPMTotalPayment(B54,D54,E54,F54),"Enable Macros") -> 0 | J54: 0
B55: 5 | C55: May 2022 | D55: =IFERROR(RPMLoanType(B55),"Enable Macros") -> I/O | E55: =IFERROR(RPMInterestRate(B55),"Enable Macros") -> 0 | F55: =RPMBeginningBalance(B55,D55,J54) -> 0 | G55: 0 | H55: 0 | I55: =IFERROR(RPMTotalPayment(B55,D55,E55,F55),"Enable Macros") -> 0 | J55: 0
B56: 6 | C56: Jun 2022 | D56: =IFERROR(RPMLoanType(B56),"Enable Macros") -> I/O | E56: =IFERROR(RPMInterestRate(B56),"Enable Macros") -> 0 | F56: =RPMBeginningBalance(B56,D56,J55) -> 0 | G56: 0 | H56: 0 | I56: =IFERROR(RPMTotalPayment(B56,D56,E56,F56),"Enable Macros") -> 0 | J56: 0
B57: 7 | C57: Jul 2022 | D57: =IFERROR(RPMLoanType(B57),"Enable Macros") -> Amortizing | E57: =IFERROR(RPMInterestRate(B57),"Enable Macros") -> 0 | F57: =RPMBeginningBalance(B57,D57,J56) -> 0 | G57: 0 | H57: 0 | I57: =IFERROR(RPMTotalPayment(B57,D57,E57,F57),"Enable Macros") -> 0 | J57: 0
B58: 8 | C58: Aug 2022 | D58: =IFERROR(RPMLoanType(B58),"Enable Macros") -> Amortizing | E58: =IFERROR(RPMInterestRate(B58),"Enable Macros") -> 0 | F58: =RPMBeginningBalance(B58,D58,J57) -> 0 | G58: 0 | H58: 0 | I58: =IFERROR(RPMTotalPayment(B58,D58,E58,F58),"Enable Macros") -> 0 | J58: 0
B59: 9 | C59: Sep 2022 | D59: =IFERROR(RPMLoanType(B59),"Enable Macros") -> Amortizing | E59: =IFERROR(RPMInterestRate(B59),"Enable Macros") -> 0 | F59: =RPMBeginningBalance(B59,D59,J58) -> 0 | G59: 0 | H59: 0 | I59: =IFERROR(RPMTotalPayment(B59,D59,E59,F59),"Enable Macros") -> 0 | J59: 0
B60: 10 | C60: Oct 2022 | D60: =IFERROR(RPMLoanType(B60),"Enable Macros") -> Amortizing | E60: =IFERROR(RPMInterestRate(B60),"Enable Macros") -> 0 | F60: =RPMBeginningBalance(B60,D60,J59) -> 0 | G60: 0 | H60: 0 | I60: =IFERROR(RPMTotalPayment(B60,D60,E60,F60),"Enable Macros") -> 0 | J60: 0
B61: 11 | C61: Nov 2022 | D61: =IFERROR(RPMLoanType(B61),"Enable Macros") -> Amortizing | E61: =IFERROR(RPMInterestRate(B61),"Enable Macros") -> 0 | F61: =RPMBeginningBalance(B61,D61,J60) -> 0 | G61: 0 | H61: 0 | I61: =IFERROR(RPMTotalPayment(B61,D61,E61,F61),"Enable Macros") -> 0 | J61: 0
B62: 12 | C62: Dec 2022 | D62: =IFERROR(RPMLoanType(B62),"Enable Macros") -> Amortizing | E62: =IFERROR(RPMInterestRate(B62),"Enable Macros") -> 0 | F62: =RPMBeginningBalance(B62,D62,J61) -> 0 | G62: 0 | H62: 0 | I62: =IFERROR(RPMTotalPayment(B62,D62,E62,F62),"Enable Macros") -> 0 | J62: 0
B63: 13 | C63: Jan 2023 | D63: =IFERROR(RPMLoanType(B63),"Enable Macros") -> Amortizing | E63: =IFERROR(RPMInterestRate(B63),"Enable Macros") -> 0 | F63: =RPMBeginningBalance(B63,D63,J62) -> 0 | G63: 0 | H63: 0 | I63: =IFERROR(RPMTotalPayment(B63,D63,E63,F63),"Enable Macros") -> 0 | J63: 0
B64: 14 | C64: Feb 2023 | D64: =IFERROR(RPMLoanType(B64),"Enable Macros") -> Amortizing | E64: =IFERROR(RPMInterestRate(B64),"Enable Macros") -> 0 | F64: =RPMBeginningBalance(B64,D64,J63) -> 0 | G64: 0 | H64: 0 | I64: =IFERROR(RPMTotalPayment(B64,D64,E64,F64),"Enable Macros") -> 0 | J64: 0
B65: 15 | C65: Mar 2023 | D65: =IFERROR(RPMLoanType(B65),"Enable Macros") -> Amortizing | E65: =IFERROR(RPMInterestRate(B65),"Enable Macros") -> 0 | F65: =RPMBeginningBalance(B65,D65,J64) -> 0 | G65: 0 | H65: 0 | I65: =IFERROR(RPMTotalPayment(B65,D65,E65,F65),"Enable Macros") -> 0 | J65: 0
B66: 16 | C66: Apr 2023 | D66: =IFERROR(RPMLoanType(B66),"Enable Macros") -> Amortizing | E66: =IFERROR(RPMInterestRate(B66),"Enable Macros") -> 0 | F66: =RPMBeginningBalance(B66,D66,J65) -> 0 | G66: 0 | H66: 0 | I66: =IFERROR(RPMTotalPayment(B66,D66,E66,F66),"Enable Macros") -> 0 | J66: 0
B67: 17 | C67: May 2023 | D67: =IFERROR(RPMLoanType(B67),"Enable Macros") -> Amortizing | E67: =IFERROR(RPMInterestRate(B67),"Enable Macros") -> 0 | F67: =RPMBeginningBalance(B67,D67,J66) -> 0 | G67: 0 | H67: 0 | I67: =IFERROR(RPMTotalPayment(B67,D67,E67,F67),"Enable Macros") -> 0 | J67: 0
B68: 18 | C68: Jun 2023 | D68: =IFERROR(RPMLoanType(B68),"Enable Macros") -> Amortizing | E68: =IFERROR(RPMInterestRate(B68),"Enable Macros") -> 0 | F68: =RPMBeginningBalance(B68,D68,J67) -> 0 | G68: 0 | H68: 0 | I68: =IFERROR(RPMTotalPayment(B68,D68,E68,F68),"Enable Macros") -> 0 | J68: 0
B69: 19 | C69: Jul 2023 | D69: =IFERROR(RPMLoanType(B69),"Enable Macros") -> Matured | E69: =IFERROR(RPMInterestRate(B69),"Enable Macros") -> 0 | F69: =RPMBeginningBalance(B69,D69,J68) -> 0 | G69: 0 | H69: 0 | I69: =IFERROR(RPMTotalPayment(B69,D69,E69,F69),"Enable Macros") -> 0 | J69: 0
B70: 20 | C70: Aug 2023 | D70: =IFERROR(RPMLoanType(B70),"Enable Macros") -> Matured | E70: =IFERROR(RPMInterestRate(B70),"Enable Macros") -> 0 | F70: =RPMBeginningBalance(B70,D70,J69) -> 0 | G70: 0 | H70: 0 | I70: =IFERROR(RPMTotalPayment(B70,D70,E70,F70),"Enable Macros") -> 0 | J70: 0
B71: 21 | C71: Sep 2023 | D71: =IFERROR(RPMLoanType(B71),"Enable Macros") -> Matured | E71: =IFERROR(RPMInterestRate(B71),"Enable Macros") -> 0 | F71: =RPMBeginningBalance(B71,D71,J70) -> 0 | G71: 0 | H71: 0 | I71: =IFERROR(RPMTotalPayment(B71,D71,E71,F71),"Enable Macros") -> 0 | J71: 0
B72: 22 | C72: Oct 2023 | D72: =IFERROR(RPMLoanType(B72),"Enable Macros") -> Matured | E72: =IFERROR(RPMInterestRate(B72),"Enable Macros") -> 0 | F72: =RPMBeginningBalance(B72,D72,J71) -> 0 | G72: 0 | H72: 0 | I72: =IFERROR(RPMTotalPayment(B72,D72,E72,F72),"Enable Macros") -> 0 | J72: 0
B73: 23 | C73: Nov 2023 | D73: =IFERROR(RPMLoanType(B73),"Enable Macros") -> Matured | E73: =IFERROR(RPMInterestRate(B73),"Enable Macros") -> 0 | F73: =RPMBeginningBalance(B73,D73,J72) -> 0 | G73: 0 | H73: 0 | I73: =IFERROR(RPMTotalPayment(B73,D73,E73,F73),"Enable Macros") -> 0 | J73: 0
B74: 24 | C74: Dec 2023 | D74: =IFERROR(RPMLoanType(B74),"Enable Macros") -> Matured | E74: =IFERROR(RPMInterestRate(B74),"Enable Macros") -> 0 | F74: =RPMBeginningBalance(B74,D74,J73) -> 0 | G74: 0 | H74: 0 | I74: =IFERROR(RPMTotalPayment(B74,D74,E74,F74),"Enable Macros") -> 0 | J74: 0
B75: 25 | C75: Jan 2024 | D75: =IFERROR(RPMLoanType(B75),"Enable Macros") -> Matured | E75: =IFERROR(RPMInterestRate(B75),"Enable Macros") -> 0 | F75: =RPMBeginningBalance(B75,D75,J74) -> 0 | G75: 0 | H75: 0 | I75: =IFERROR(RPMTotalPayment(B75,D75,E75,F75),"Enable Macros") -> 0 | J75: 0
B76: 26 | C76: Feb 2024 | D76: =IFERROR(RPMLoanType(B76),"Enable Macros") -> Matured | E76: =IFERROR(RPMInterestRate(B76),"Enable Macros") -> 0 | F76: =RPMBeginningBalance(B76,D76,J75) -> 0 | G76: 0 | H76: 0 | I76: =IFERROR(RPMTotalPayment(B76,D76,E76,F76),"Enable Macros") -> 0 | J76: 0
B77: 27 | C77: Mar 2024 | D77: =IFERROR(RPMLoanType(B77),"Enable Macros") -> Matured | E77: =IFERROR(RPMInterestRate(B77),"Enable Macros") -> 0 | F77: =RPMBeginningBalance(B77,D77,J76) -> 0 | G77: 0 | H77: 0 | I77: =IFERROR(RPMTotalPayment(B77,D77,E77,F77),"Enable Macros") -> 0 | J77: 0
B78: 28 | C78: Apr 2024 | D78: =IFERROR(RPMLoanType(B78),"Enable Macros") -> Matured | E78: =IFERROR(RPMInterestRate(B78),"Enable Macros") -> 0 | F78: =RPMBeginningBalance(B78,D78,J77) -> 0 | G78: 0 | H78: 0 | I78: =IFERROR(RPMTotalPayment(B78,D78,E78,F78),"Enable Macros") -> 0 | J78: 0
B79: 29 | C79: May 2024 | D79: =IFERROR(RPMLoanType(B79),"Enable Macros") -> Matured | E79: =IFERROR(RPMInterestRate(B79),"Enable Macros") -> 0 | F79: =RPMBeginningBalance(B79,D79,J78) -> 0 | G79: 0 | H79: 0 | I79: =IFERROR(RPMTotalPayment(B79,D79,E79,F79),"Enable Macros") -> 0 | J79: 0
B80: 30 | C80: Jun 2024 | D80: =IFERROR(RPMLoanType(B80),"Enable Macros") -> Matured | E80: =IFERROR(RPMInterestRate(B80),"Enable Macros") -> 0 | F80: =RPMBeginningBalance(B80,D80,J79) -> 0 | G80: 0 | H80: 0 | I80: =IFERROR(RPMTotalPayment(B80,D80,E80,F80),"Enable Macros") -> 0 | J80: 0
B81: 31 | C81: Jul 2024 | D81: =IFERROR(RPMLoanType(B81),"Enable Macros") -> Matured | E81: =IFERROR(RPMInterestRate(B81),"Enable Macros") -> 0 | F81: =RPMBeginningBalance(B81,D81,J80) -> 0 | G81: 0 | H81: 0 | I81: =IFERROR(RPMTotalPayment(B81,D81,E81,F81),"Enable Macros") -> 0 | J81: 0
B82: 32 | C82: Aug 2024 | D82: =IFERROR(RPMLoanType(B82),"Enable Macros") -> Matured | E82: =IFERROR(RPMInterestRate(B82),"Enable Macros") -> 0 | F82: =RPMBeginningBalance(B82,D82,J81) -> 0 | G82: 0 | H82: 0 | I82: =IFERROR(RPMTotalPayment(B82,D82,E82,F82),"Enable Macros") -> 0 | J82: 0
B83: 33 | C83: Sep 2024 | D83: =IFERROR(RPMLoanType(B83),"Enable Macros") -> Matured | E83: =IFERROR(RPMInterestRate(B83),"Enable Macros") -> 0 | F83: =RPMBeginningBalance(B83,D83,J82) -> 0 | G83: 0 | H83: 0 | I83: =IFERROR(RPMTotalPayment(B83,D83,E83,F83),"Enable Macros") -> 0 | J83: =IF(B83<=SUM(Loan_Amortization,Loan_IO_Term),F83-H83,0) -> 0
B84: 34 | C84: Oct 2024 | D84: =IFERROR(RPMLoanType(B84),"Enable Macros") -> Matured | E84: =IFERROR(RPMInterestRate(B84),"Enable Macros") -> 0 | F84: =RPMBeginningBalance(B84,D84,J83) -> 0 | G84: 0 | H84: 0 | I84: =IFERROR(RPMTotalPayment(B84,D84,E84,F84),"Enable Macros") -> 0 | J84: 0
B85: 35 | C85: Nov 2024 | D85: =IFERROR(RPMLoanType(B85),"Enable Macros") -> Matured | E85: =IFERROR(RPMInterestRate(B85),"Enable Macros") -> 0 | F85: =RPMBeginningBalance(B85,D85,J84) -> 0 | G85: 0 | H85: 0 | I85: =IFERROR(RPMTotalPayment(B85,D85,E85,F85),"Enable Macros") -> 0 | J85: 0
B86: 36 | C86: Dec 2024 | D86: =IFERROR(RPMLoanType(B86),"Enable Macros") -> Matured | E86: =IFERROR(RPMInterestRate(B86),"Enable Macros") -> 0 | F86: =RPMBeginningBalance(B86,D86,J85) -> 0 | G86: 0 | H86: 0 | I86: =IFERROR(RPMTotalPayment(B86,D86,E86,F86),"Enable Macros") -> 0 | J86: 0
B87: 37 | C87: Jan 2025 | D87: =IFERROR(RPMLoanType(B87),"Enable Macros") -> Matured | E87: =IFERROR(RPMInterestRate(B87),"Enable Macros") -> 0 | F87: =RPMBeginningBalance(B87,D87,J86) -> 0 | G87: 0 | H87: 0 | I87: =IFERROR(RPMTotalPayment(B87,D87,E87,F87),"Enable Macros") -> 0 | J87: 0
B88: 38 | C88: Feb 2025 | D88: =IFERROR(RPMLoanType(B88),"Enable Macros") -> Matured | E88: =IFERROR(RPMInterestRate(B88),"Enable Macros") -> 0 | F88: =RPMBeginningBalance(B88,D88,J87) -> 0 | G88: 0 | H88: 0 | I88: =IFERROR(RPMTotalPayment(B88,D88,E88,F88),"Enable Macros") -> 0 | J88: 0
B89: 39 | C89: Mar 2025 | D89: =IFERROR(RPMLoanType(B89),"Enable Macros") -> Matured | E89: =IFERROR(RPMInterestRate(B89),"Enable Macros") -> 0 | F89: =RPMBeginningBalance(B89,D89,J88) -> 0 | G89: 0 | H89: 0 | I89: =IFERROR(RPMTotalPayment(B89,D89,E89,F89),"Enable Macros") -> 0 | J89: 0
B90: 40 | C90: Apr 2025 | D90: =IFERROR(RPMLoanType(B90),"Enable Macros") -> Matured | E90: =IFERROR(RPMInterestRate(B90),"Enable Macros") -> 0 | F90: =RPMBeginningBalance(B90,D90,J89) -> 0 | G90: 0 | H90: 0 | I90: =IFERROR(RPMTotalPayment(B90,D90,E90,F90),"Enable Macros") -> 0 | J90: 0
B91: 41 | C91: May 2025 | D91: =IFERROR(RPMLoanType(B91),"Enable Macros") -> Matured | E91: =IFERROR(RPMInterestRate(B91),"Enable Macros") -> 0 | F91: =RPMBeginningBalance(B91,D91,J90) -> 0 | G91: 0 | H91: 0 | I91: =IFERROR(RPMTotalPayment(B91,D91,E91,F91),"Enable Macros") -> 0 | J91: 0
B92: 42 | C92: Jun 2025 | D92: =IFERROR(RPMLoanType(B92),"Enable Macros") -> Matured | E92: =IFERROR(RPMInterestRate(B92),"Enable Macros") -> 0 | F92: =RPMBeginningBalance(B92,D92,J91) -> 0 | G92: 0 | H92: 0 | I92: =IFERROR(RPMTotalPayment(B92,D92,E92,F92),"Enable Macros") -> 0 | J92: 0
B93: 43 | C93: Jul 2025 | D93: =IFERROR(RPMLoanType(B93),"Enable Macros") -> Matured | E93: =IFERROR(RPMInterestRate(B93),"Enable Macros") -> 0 | F93: =RPMBeginningBalance(B93,D93,J92) -> 0 | G93: 0 | H93: 0 | I93: =IFERROR(RPMTotalPayment(B93,D93,E93,F93),"Enable Macros") -> 0 | J93: 0
B94: 44 | C94: Aug 2025 | D94: =IFERROR(RPMLoanType(B94),"Enable Macros") -> Matured | E94: =IFERROR(RPMInterestRate(B94),"Enable Macros") -> 0 | F94: =RPMBeginningBalance(B94,D94,J93) -> 0 | G94: 0 | H94: 0 | I94: =IFERROR(RPMTotalPayment(B94,D94,E94,F94),"Enable Macros") -> 0 | J94: 0
B95: 45 | C95: Sep 2025 | D95: =IFERROR(RPMLoanType(B95),"Enable Macros") -> Matured | E95: =IFERROR(RPMInterestRate(B95),"Enable Macros") -> 0 | F95: =RPMBeginningBalance(B95,D95,J94) -> 0 | G95: 0 | H95: 0 | I95: =IFERROR(RPMTotalPayment(B95,D95,E95,F95),"Enable Macros") -> 0 | J95: 0
B96: 46 | C96: Oct 2025 | D96: =IFERROR(RPMLoanType(B96),"Enable Macros") -> Matured | E96: =IFERROR(RPMInterestRate(B96),"Enable Macros") -> 0 | F96: =RPMBeginningBalance(B96,D96,J95) -> 0 | G96: 0 | H96: 0 | I96: =IFERROR(RPMTotalPayment(B96,D96,E96,F96),"Enable Macros") -> 0 | J96: 0
B97: 47 | C97: Nov 2025 | D97: =IFERROR(RPMLoanType(B97),"Enable Macros") -> Matured | E97: =IFERROR(RPMInterestRate(B97),"Enable Macros") -> 0 | F97: =RPMBeginningBalance(B97,D97,J96) -> 0 | G97: 0 | H97: 0 | I97: =IFERROR(RPMTotalPayment(B97,D97,E97,F97),"Enable Macros") -> 0 | J97: 0
B98: 48 | C98: Dec 2025 | D98: =IFERROR(RPMLoanType(B98),"Enable Macros") -> Matured | E98: =IFERROR(RPMInterestRate(B98),"Enable Macros") -> 0 | F98: =RPMBeginningBalance(B98,D98,J97) -> 0 | G98: 0 | H98: 0 | I98: =IFERROR(RPMTotalPayment(B98,D98,E98,F98),"Enable Macros") -> 0 | J98: 0
B99: 49 | C99: Jan 2026 | D99: =IFERROR(RPMLoanType(B99),"Enable Macros") -> Matured | E99: =IFERROR(RPMInterestRate(B99),"Enable Macros") -> 0 | F99: =RPMBeginningBalance(B99,D99,J98) -> 0 | G99: 0 | H99: 0 | I99: =IFERROR(RPMTotalPayment(B99,D99,E99,F99),"Enable Macros") -> 0 | J99: 0
B100: 50 | C100: Feb 2026 | D100: =IFERROR(RPMLoanType(B100),"Enable Macros") -> Matured | E100: =IFERROR(RPMInterestRate(B100),"Enable Macros") -> 0 | F100: =RPMBeginningBalance(B100,D100,J99) -> 0 | G100: 0 | H100: 0 | I100: =IFERROR(RPMTotalPayment(B100,D100,E100,F100),"Enable Macros") -> 0 | J100: 0
B101: 51 | C101: Mar 2026 | D101: =IFERROR(RPMLoanType(B101),"Enable Macros") -> Matured | E101: =IFERROR(RPMInterestRate(B101),"Enable Macros") -> 0 | F101: =RPMBeginningBalance(B101,D101,J100) -> 0 | G101: 0 | H101: 0 | I101: =IFERROR(RPMTotalPayment(B101,D101,E101,F101),"Enable Macros") -> 0 | J101: 0
B102: 52 | C102: Apr 2026 | D102: =IFERROR(RPMLoanType(B102),"Enable Macros") -> Matured | E102: =IFERROR(RPMInterestRate(B102),"Enable Macros") -> 0 | F102: =RPMBeginningBalance(B102,D102,J101) -> 0 | G102: 0 | H102: 0 | I102: =IFERROR(RPMTotalPayment(B102,D102,E102,F102),"Enable Macros") -> 0 | J102: 0
B103: 53 | C103: May 2026 | D103: =IFERROR(RPMLoanType(B103),"Enable Macros") -> Matured | E103: =IFERROR(RPMInterestRate(B103),"Enable Macros") -> 0 | F103: =RPMBeginningBalance(B103,D103,J102) -> 0 | G103: 0 | H103: 0 | I103: =IFERROR(RPMTotalPayment(B103,D103,E103,F103),"Enable Macros") -> 0 | J103: 0
B104: 54 | C104: Jun 2026 | D104: =IFERROR(RPMLoanType(B104),"Enable Macros") -> Matured | E104: =IFERROR(RPMInterestRate(B104),"Enable Macros") -> 0 | F104: =RPMBeginningBalance(B104,D104,J103) -> 0 | G104: 0 | H104: 0 | I104: =IFERROR(RPMTotalPayment(B104,D104,E104,F104),"Enable Macros") -> 0 | J104: 0
B105: 55 | C105: Jul 2026 | D105: =IFERROR(RPMLoanType(B105),"Enable Macros") -> Matured | E105: =IFERROR(RPMInterestRate(B105),"Enable Macros") -> 0 | F105: =RPMBeginningBalance(B105,D105,J104) -> 0 | G105: 0 | H105: 0 | I105: =IFERROR(RPMTotalPayment(B105,D105,E105,F105),"Enable Macros") -> 0 | J105: 0
B106: 56 | C106: Aug 2026 | D106: =IFERROR(RPMLoanType(B106),"Enable Macros") -> Matured | E106: =IFERROR(RPMInterestRate(B106),"Enable Macros") -> 0 | F106: =RPMBeginningBalance(B106,D106,J105) -> 0 | G106: 0 | H106: 0 | I106: =IFERROR(RPMTotalPayment(B106,D106,E106,F106),"Enable Macros") -> 0 | J106: 0
B107: 57 | C107: Sep 2026 | D107: =IFERROR(RPMLoanType(B107),"Enable Macros") -> Matured | E107: =IFERROR(RPMInterestRate(B107),"Enable Macros") -> 0 | F107: =RPMBeginningBalance(B107,D107,J106) -> 0 | G107: 0 | H107: 0 | I107: =IFERROR(RPMTotalPayment(B107,D107,E107,F107),"Enable Macros") -> 0 | J107: 0
B108: 58 | C108: Oct 2026 | D108: =IFERROR(RPMLoanType(B108),"Enable Macros") -> Matured | E108: =IFERROR(RPMInterestRate(B108),"Enable Macros") -> 0 | F108: =RPMBeginningBalance(B108,D108,J107) -> 0 | G108: 0 | H108: 0 | I108: =IFERROR(RPMTotalPayment(B108,D108,E108,F108),"Enable Macros") -> 0 | J108: 0
B109: 59 | C109: Nov 2026 | D109: =IFERROR(RPMLoanType(B109),"Enable Macros") -> Matured | E109: =IFERROR(RPMInterestRate(B109),"Enable Macros") -> 0 | F109: =RPMBeginningBalance(B109,D109,J108) -> 0 | G109: 0 | H109: 0 | I109: =IFERROR(RPMTotalPayment(B109,D109,E109,F109),"Enable Macros") -> 0 | J109: 0
B110: 60 | C110: Dec 2026 | D110: =IFERROR(RPMLoanType(B110),"Enable Macros") -> Matured | E110: =IFERROR(RPMInterestRate(B110),"Enable Macros") -> 0 | F110: =RPMBeginningBalance(B110,D110,J109) -> 0 | G110: 0 | H110: 0 | I110: =IFERROR(RPMTotalPayment(B110,D110,E110,F110),"Enable Macros") -> 0 | J110: 0
B111: 61 | C111: Jan 2027 | D111: =IFERROR(RPMLoanType(B111),"Enable Macros") -> Matured | E111: =IFERROR(RPMInterestRate(B111),"Enable Macros") -> 0 | F111: =RPMBeginningBalance(B111,D111,J110) -> 0 | G111: 0 | H111: 0 | I111: =IFERROR(RPMTotalPayment(B111,D111,E111,F111),"Enable Macros") -> 0 | J111: 0
B112: 62 | C112: Feb 2027 | D112: =IFERROR(RPMLoanType(B112),"Enable Macros") -> Matured | E112: =IFERROR(RPMInterestRate(B112),"Enable Macros") -> 0 | F112: =RPMBeginningBalance(B112,D112,J111) -> 0 | G112: 0 | H112: 0 | I112: =IFERROR(RPMTotalPayment(B112,D112,E112,F112),"Enable Macros") -> 0 | J112: 0
B113: 63 | C113: Mar 2027 | D113: =IFERROR(RPMLoanType(B113),"Enable Macros") -> Matured | E113: =IFERROR(RPMInterestRate(B113),"Enable Macros") -> 0 | F113: =RPMBeginningBalance(B113,D113,J112) -> 0 | G113: 0 | H113: 0 | I113: =IFERROR(RPMTotalPayment(B113,D113,E113,F113),"Enable Macros") -> 0 | J113: 0
B114: 64 | C114: Apr 2027 | D114: =IFERROR(RPMLoanType(B114),"Enable Macros") -> Matured | E114: =IFERROR(RPMInterestRate(B114),"Enable Macros") -> 0 | F114: =RPMBeginningBalance(B114,D114,J113) -> 0 | G114: 0 | H114: 0 | I114: =IFERROR(RPMTotalPayment(B114,D114,E114,F114),"Enable Macros") -> 0 | J114: 0
B115: 65 | C115: May 2027 | D115: =IFERROR(RPMLoanType(B115),"Enable Macros") -> Matured | E115: =IFERROR(RPMInterestRate(B115),"Enable Macros") -> 0 | F115: =RPMBeginningBalance(B115,D115,J114) -> 0 | G115: 0 | H115: 0 | I115: =IFERROR(RPMTotalPayment(B115,D115,E115,F115),"Enable Macros") -> 0 | J115: =IF(B115<=SUM(Loan_Amortization,Loan_IO_Term),F115-H115,0) -> 0
B116: 66 | C116: =RPMDateSpan(B116,3) -> Jun 2027 | D116: =IFERROR(RPMLoanType(B116),"Enable Macros") -> Matured | E116: =IFERROR(RPMInterestRate(B116),"Enable Macros") -> 0 | F116: =RPMBeginningBalance(B116,D116,J115) -> 0 | G116: =F116*(RPMCanadian(D116,E116)/12) -> 0 | H116: =I116-G116 -> 0 | I116: =IFERROR(RPMTotalPayment(B116,D116,E116,F116),"Enable Macros") -> 0 | J116: 0
B117: 67 | C117: Jul 2027 | D117: =IFERROR(RPMLoanType(B117),"Enable Macros") -> Matured | E117: =IFERROR(RPMInterestRate(B117),"Enable Macros") -> 0 | F117: =RPMBeginningBalance(B117,D117,J116) -> 0 | G117: 0 | H117: 0 | I117: =IFERROR(RPMTotalPayment(B117,D117,E117,F117),"Enable Macros") -> 0 | J117: 0
B118: 68 | C118: Aug 2027 | D118: =IFERROR(RPMLoanType(B118),"Enable Macros") -> Matured | E118: =IFERROR(RPMInterestRate(B118),"Enable Macros") -> 0 | F118: =RPMBeginningBalance(B118,D118,J117) -> 0 | G118: 0 | H118: 0 | I118: =IFERROR(RPMTotalPayment(B118,D118,E118,F118),"Enable Macros") -> 0 | J118: 0
B119: 69 | C119: Sep 2027 | D119: =IFERROR(RPMLoanType(B119),"Enable Macros") -> Matured | E119: =IFERROR(RPMInterestRate(B119),"Enable Macros") -> 0 | F119: =RPMBeginningBalance(B119,D119,J118) -> 0 | G119: 0 | H119: 0 | I119: =IFERROR(RPMTotalPayment(B119,D119,E119,F119),"Enable Macros") -> 0 | J119: 0
B120: 70 | C120: Oct 2027 | D120: =IFERROR(RPMLoanType(B120),"Enable Macros") -> Matured | E120: =IFERROR(RPMInterestRate(B120),"Enable Macros") -> 0 | F120: =RPMBeginningBalance(B120,D120,J119) -> 0 | G120: 0 | H120: 0 | I120: =IFERROR(RPMTotalPayment(B120,D120,E120,F120),"Enable Macros") -> 0 | J120: 0
B121: 71 | C121: Nov 2027 | D121: =IFERROR(RPMLoanType(B121),"Enable Macros") -> Matured | E121: =IFERROR(RPMInterestRate(B121),"Enable Macros") -> 0 | F121: =RPMBeginningBalance(B121,D121,J120) -> 0 | G121: 0 | H121: 0 | I121: =IFERROR(RPMTotalPayment(B121,D121,E121,F121),"Enable Macros") -> 0 | J121: 0
B122: 72 | C122: Dec 2027 | D122: =IFERROR(RPMLoanType(B122),"Enable Macros") -> Matured | E122: =IFERROR(RPMInterestRate(B122),"Enable Macros") -> 0 | F122: =RPMBeginningBalance(B122,D122,J121) -> 0 | G122: 0 | H122: 0 | I122: =IFERROR(RPMTotalPayment(B122,D122,E122,F122),"Enable Macros") -> 0 | J122: 0
B123: 73 | C123: Jan 2028 | D123: =IFERROR(RPMLoanType(B123),"Enable Macros") -> Matured | E123: =IFERROR(RPMInterestRate(B123),"Enable Macros") -> 0 | F123: =RPMBeginningBalance(B123,D123,J122) -> 0 | G123: 0 | H123: 0 | I123: =IFERROR(RPMTotalPayment(B123,D123,E123,F123),"Enable Macros") -> 0 | J123: 0
B124: 74 | C124: Feb 2028 | D124: =IFERROR(RPMLoanType(B124),"Enable Macros") -> Matured | E124: =IFERROR(RPMInterestRate(B124),"Enable Macros") -> 0 | F124: =RPMBeginningBalance(B124,D124,J123) -> 0 | G124: 0 | H124: 0 | I124: =IFERROR(RPMTotalPayment(B124,D124,E124,F124),"Enable Macros") -> 0 | J124: 0
B125: 75 | C125: Mar 2028 | D125: =IFERROR(RPMLoanType(B125),"Enable Macros") -> Matured | E125: =IFERROR(RPMInterestRate(B125),"Enable Macros") -> 0 | F125: =RPMBeginningBalance(B125,D125,J124) -> 0 | G125: 0 | H125: 0 | I125: =IFERROR(RPMTotalPayment(B125,D125,E125,F125),"Enable Macros") -> 0 | J125: 0
B126: 76 | C126: Apr 2028 | D126: =IFERROR(RPMLoanType(B126),"Enable Macros") -> Matured | E126: =IFERROR(RPMInterestRate(B126),"Enable Macros") -> 0 | F126: =RPMBeginningBalance(B126,D126,J125) -> 0 | G126: 0 | H126: 0 | I126: =IFERROR(RPMTotalPayment(B126,D126,E126,F126),"Enable Macros") -> 0 | J126: 0
B127: 77 | C127: May 2028 | D127: =IFERROR(RPMLoanType(B127),"Enable Macros") -> Matured | E127: =IFERROR(RPMInterestRate(B127),"Enable Macros") -> 0 | F127: =RPMBeginningBalance(B127,D127,J126) -> 0 | G127: 0 | H127: 0 | I127: =IFERROR(RPMTotalPayment(B127,D127,E127,F127),"Enable Macros") -> 0 | J127: 0
B128: 78 | C128: Jun 2028 | D128: =IFERROR(RPMLoanType(B128),"Enable Macros") -> Matured | E128: =IFERROR(RPMInterestRate(B128),"Enable Macros") -> 0 | F128: =RPMBeginningBalance(B128,D128,J127) -> 0 | G128: 0 | H128: 0 | I128: =IFERROR(RPMTotalPayment(B128,D128,E128,F128),"Enable Macros") -> 0 | J128: 0
B129: 79 | C129: Jul 2028 | D129: =IFERROR(RPMLoanType(B129),"Enable Macros") -> Matured | E129: =IFERROR(RPMInterestRate(B129),"Enable Macros") -> 0 | F129: =RPMBeginningBalance(B129,D129,J128) -> 0 | G129: 0 | H129: 0 | I129: =IFERROR(RPMTotalPayment(B129,D129,E129,F129),"Enable Macros") -> 0 | J129: 0
B130: 80 | C130: Aug 2028 | D130: =IFERROR(RPMLoanType(B130),"Enable Macros") -> Matured | E130: =IFERROR(RPMInterestRate(B130),"Enable Macros") -> 0 | F130: =RPMBeginningBalance(B130,D130,J129) -> 0 | G130: 0 | H130: 0 | I130: =IFERROR(RPMTotalPayment(B130,D130,E130,F130),"Enable Macros") -> 0 | J130: 0
B131: 81 | C131: Sep 2028 | D131: =IFERROR(RPMLoanType(B131),"Enable Macros") -> Matured | E131: =IFERROR(RPMInterestRate(B131),"Enable Macros") -> 0 | F131: =RPMBeginningBalance(B131,D131,J130) -> 0 | G131: 0 | H131: 0 | I131: =IFERROR(RPMTotalPayment(B131,D131,E131,F131),"Enable Macros") -> 0 | J131: 0
B132: 82 | C132: Oct 2028 | D132: =IFERROR(RPMLoanType(B132),"Enable Macros") -> Matured | E132: =IFERROR(RPMInterestRate(B132),"Enable Macros") -> 0 | F132: =RPMBeginningBalance(B132,D132,J131) -> 0 | G132: 0 | H132: 0 | I132: =IFERROR(RPMTotalPayment(B132,D132,E132,F132),"Enable Macros") -> 0 | J132: 0
B133: 83 | C133: Nov 2028 | D133: =IFERROR(RPMLoanType(B133),"Enable Macros") -> Matured | E133: =IFERROR(RPMInterestRate(B133),"Enable Macros") -> 0 | F133: =RPMBeginningBalance(B133,D133,J132) -> 0 | G133: 0 | H133: 0 | I133: =IFERROR(RPMTotalPayment(B133,D133,E133,F133),"Enable Macros") -> 0 | J133: 0
B134: 84 | C134: Dec 2028 | D134: =IFERROR(RPMLoanType(B134),"Enable Macros") -> Matured | E134: =IFERROR(RPMInterestRate(B134),"Enable Macros") -> 0 | F134: =RPMBeginningBalance(B134,D134,J133) -> 0 | G134: 0 | H134: 0 | I134: =IFERROR(RPMTotalPayment(B134,D134,E134,F134),"Enable Macros") -> 0 | J134: 0
B135: 85 | C135: Jan 2029 | D135: =IFERROR(RPMLoanType(B135),"Enable Macros") -> Matured | E135: =IFERROR(RPMInterestRate(B135),"Enable Macros") -> 0 | F135: =RPMBeginningBalance(B135,D135,J134) -> 0 | G135: 0 | H135: 0 | I135: =IFERROR(RPMTotalPayment(B135,D135,E135,F135),"Enable Macros") -> 0 | J135: 0
B136: 86 | C136: Feb 2029 | D136: =IFERROR(RPMLoanType(B136),"Enable Macros") -> Matured | E136: =IFERROR(RPMInterestRate(B136),"Enable Macros") -> 0 | F136: =RPMBeginningBalance(B136,D136,J135) -> 0 | G136: 0 | H136: 0 | I136: =IFERROR(RPMTotalPayment(B136,D136,E136,F136),"Enable Macros") -> 0 | J136: 0
B137: 87 | C137: Mar 2029 | D137: =IFERROR(RPMLoanType(B137),"Enable Macros") -> Matured | E137: =IFERROR(RPMInterestRate(B137),"Enable Macros") -> 0 | F137: =RPMBeginningBalance(B137,D137,J136) -> 0 | G137: 0 | H137: 0 | I137: =IFERROR(RPMTotalPayment(B137,D137,E137,F137),"Enable Macros") -> 0 | J137: 0
B138: 88 | C138: Apr 2029 | D138: =IFERROR(RPMLoanType(B138),"Enable Macros") -> Matured | E138: =IFERROR(RPMInterestRate(B138),"Enable Macros") -> 0 | F138: =RPMBeginningBalance(B138,D138,J137) -> 0 | G138: 0 | H138: 0 | I138: =IFERROR(RPMTotalPayment(B138,D138,E138,F138),"Enable Macros") -> 0 | J138: 0
B139: 89 | C139: May 2029 | D139: =IFERROR(RPMLoanType(B139),"Enable Macros") -> Matured | E139: =IFERROR(RPMInterestRate(B139),"Enable Macros") -> 0 | F139: =RPMBeginningBalance(B139,D139,J138) -> 0 | G139: 0 | H139: 0 | I139: =IFERROR(RPMTotalPayment(B139,D139,E139,F139),"Enable Macros") -> 0 | J139: 0
B140: 90 | C140: Jun 2029 | D140: =IFERROR(RPMLoanType(B140),"Enable Macros") -> Matured | E140: =IFERROR(RPMInterestRate(B140),"Enable Macros") -> 0 | F140: =RPMBeginningBalance(B140,D140,J139) -> 0 | G140: 0 | H140: 0 | I140: =IFERROR(RPMTotalPayment(B140,D140,E140,F140),"Enable Macros") -> 0 | J140: 0
B141: 91 | C141: Jul 2029 | D141: =IFERROR(RPMLoanType(B141),"Enable Macros") -> Matured | E141: =IFERROR(RPMInterestRate(B141),"Enable Macros") -> 0 | F141: =RPMBeginningBalance(B141,D141,J140) -> 0 | G141: 0 | H141: 0 | I141: =IFERROR(RPMTotalPayment(B141,D141,E141,F141),"Enable Macros") -> 0 | J141: 0
B142: 92 | C142: Aug 2029 | D142: =IFERROR(RPMLoanType(B142),"Enable Macros") -> Matured | E142: =IFERROR(RPMInterestRate(B142),"Enable Macros") -> 0 | F142: =RPMBeginningBalance(B142,D142,J141) -> 0 | G142: 0 | H142: 0 | I142: =IFERROR(RPMTotalPayment(B142,D142,E142,F142),"Enable Macros") -> 0 | J142: 0
B143: 93 | C143: Sep 2029 | D143: =IFERROR(RPMLoanType(B143),"Enable Macros") -> Matured | E143: =IFERROR(RPMInterestRate(B143),"Enable Macros") -> 0 | F143: =RPMBeginningBalance(B143,D143,J142) -> 0 | G143: 0 | H143: 0 | I143: =IFERROR(RPMTotalPayment(B143,D143,E143,F143),"Enable Macros") -> 0 | J143: 0
B144: 94 | C144: Oct 2029 | D144: =IFERROR(RPMLoanType(B144),"Enable Macros") -> Matured | E144: =IFERROR(RPMInterestRate(B144),"Enable Macros") -> 0 | F144: =RPMBeginningBalance(B144,D144,J143) -> 0 | G144: 0 | H144: 0 | I144: =IFERROR(RPMTotalPayment(B144,D144,E144,F144),"Enable Macros") -> 0 | J144: 0
B145: 95 | C145: Nov 2029 | D145: =IFERROR(RPMLoanType(B145),"Enable Macros") -> Matured | E145: =IFERROR(RPMInterestRate(B145),"Enable Macros") -> 0 | F145: =RPMBeginningBalance(B145,D145,J144) -> 0 | G145: 0 | H145: 0 | I145: =IFERROR(RPMTotalPayment(B145,D145,E145,F145),"Enable Macros") -> 0 | J145: 0
B146: 96 | C146: Dec 2029 | D146: =IFERROR(RPMLoanType(B146),"Enable Macros") -> Matured | E146: =IFERROR(RPMInterestRate(B146),"Enable Macros") -> 0 | F146: =RPMBeginningBalance(B146,D146,J145) -> 0 | G146: 0 | H146: 0 | I146: =IFERROR(RPMTotalPayment(B146,D146,E146,F146),"Enable Macros") -> 0 | J146: 0
B147: 97 | C147: Jan 2030 | D147: =IFERROR(RPMLoanType(B147),"Enable Macros") -> Matured | E147: =IFERROR(RPMInterestRate(B147),"Enable Macros") -> 0 | F147: =RPMBeginningBalance(B147,D147,J146) -> 0 | G147: 0 | H147: 0 | I147: =IFERROR(RPMTotalPayment(B147,D147,E147,F147),"Enable Macros") -> 0 | J147: =IF(B147<=SUM(Loan_Amortization,Loan_IO_Term),F147-H147,0) -> 0
B148: 98 | C148: Feb 2030 | D148: =IFERROR(RPMLoanType(B148),"Enable Macros") -> Matured | E148: =IFERROR(RPMInterestRate(B148),"Enable Macros") -> 0 | F148: =RPMBeginningBalance(B148,D148,J147) -> 0 | G148: 0 | H148: 0 | I148: =IFERROR(RPMTotalPayment(B148,D148,E148,F148),"Enable Macros") -> 0 | J148: 0
B149: 99 | C149: Mar 2030 | D149: =IFERROR(RPMLoanType(B149),"Enable Macros") -> Matured | E149: =IFERROR(RPMInterestRate(B149),"Enable Macros") -> 0 | F149: =RPMBeginningBalance(B149,D149,J148) -> 0 | G149: 0 | H149: 0 | I149: =IFERROR(RPMTotalPayment(B149,D149,E149,F149),"Enable Macros") -> 0 | J149: 0
B150: 100 | C150: Apr 2030 | D150: =IFERROR(RPMLoanType(B150),"Enable Macros") -> Matured | E150: =IFERROR(RPMInterestRate(B150),"Enable Macros") -> 0 | F150: =RPMBeginningBalance(B150,D150,J149) -> 0 | G150: 0 | H150: 0 | I150: =IFERROR(RPMTotalPayment(B150,D150,E150,F150),"Enable Macros") -> 0 | J150: 0
B151: 101 | C151: May 2030 | D151: =IFERROR(RPMLoanType(B151),"Enable Macros") -> Matured | E151: =IFERROR(RPMInterestRate(B151),"Enable Macros") -> 0 | F151: =RPMBeginningBalance(B151,D151,J150) -> 0 | G151: 0 | H151: 0 | I151: =IFERROR(RPMTotalPayment(B151,D151,E151,F151),"Enable Macros") -> 0 | J151: 0
B152: 102 | C152: Jun 2030 | D152: =IFERROR(RPMLoanType(B152),"Enable Macros") -> Matured | E152: =IFERROR(RPMInterestRate(B152),"Enable Macros") -> 0 | F152: =RPMBeginningBalance(B152,D152,J151) -> 0 | G152: 0 | H152: 0 | I152: =IFERROR(RPMTotalPayment(B152,D152,E152,F152),"Enable Macros") -> 0 | J152: 0
B153: 103 | C153: Jul 2030 | D153: =IFERROR(RPMLoanType(B153),"Enable Macros") -> Matured | E153: =IFERROR(RPMInterestRate(B153),"Enable Macros") -> 0 | F153: =RPMBeginningBalance(B153,D153,J152) -> 0 | G153: 0 | H153: 0 | I153: =IFERROR(RPMTotalPayment(B153,D153,E153,F153),"Enable Macros") -> 0 | J153: 0
B154: 104 | C154: Aug 2030 | D154: =IFERROR(RPMLoanType(B154),"Enable Macros") -> Matured | E154: =IFERROR(RPMInterestRate(B154),"Enable Macros") -> 0 | F154: =RPMBeginningBalance(B154,D154,J153) -> 0 | G154: 0 | H154: 0 | I154: =IFERROR(RPMTotalPayment(B154,D154,E154,F154),"Enable Macros") -> 0 | J154: 0
B155: 105 | C155: Sep 2030 | D155: =IFERROR(RPMLoanType(B155),"Enable Macros") -> Matured | E155: =IFERROR(RPMInterestRate(B155),"Enable Macros") -> 0 | F155: =RPMBeginningBalance(B155,D155,J154) -> 0 | G155: 0 | H155: 0 | I155: =IFERROR(RPMTotalPayment(B155,D155,E155,F155),"Enable Macros") -> 0 | J155: 0
B156: 106 | C156: Oct 2030 | D156: =IFERROR(RPMLoanType(B156),"Enable Macros") -> Matured | E156: =IFERROR(RPMInterestRate(B156),"Enable Macros") -> 0 | F156: =RPMBeginningBalance(B156,D156,J155) -> 0 | G156: 0 | H156: 0 | I156: =IFERROR(RPMTotalPayment(B156,D156,E156,F156),"Enable Macros") -> 0 | J156: 0
B157: 107 | C157: Nov 2030 | D157: =IFERROR(RPMLoanType(B157),"Enable Macros") -> Matured | E157: =IFERROR(RPMInterestRate(B157),"Enable Macros") -> 0 | F157: =RPMBeginningBalance(B157,D157,J156) -> 0 | G157: 0 | H157: 0 | I157: =IFERROR(RPMTotalPayment(B157,D157,E157,F157),"Enable Macros") -> 0 | J157: 0
B158: 108 | C158: Dec 2030 | D158: =IFERROR(RPMLoanType(B158),"Enable Macros") -> Matured | E158: =IFERROR(RPMInterestRate(B158),"Enable Macros") -> 0 | F158: =RPMBeginningBalance(B158,D158,J157) -> 0 | G158: 0 | H158: 0 | I158: =IFERROR(RPMTotalPayment(B158,D158,E158,F158),"Enable Macros") -> 0 | J158: 0
B159: 109 | C159: Jan 2031 | D159: =IFERROR(RPMLoanType(B159),"Enable Macros") -> Matured | E159: =IFERROR(RPMInterestRate(B159),"Enable Macros") -> 0 | F159: =RPMBeginningBalance(B159,D159,J158) -> 0 | G159: 0 | H159: 0 | I159: =IFERROR(RPMTotalPayment(B159,D159,E159,F159),"Enable Macros") -> 0 | J159: 0
B160: 110 | C160: Feb 2031 | D160: =IFERROR(RPMLoanType(B160),"Enable Macros") -> Matured | E160: =IFERROR(RPMInterestRate(B160),"Enable Macros") -> 0 | F160: =RPMBeginningBalance(B160,D160,J159) -> 0 | G160: 0 | H160: 0 | I160: =IFERROR(RPMTotalPayment(B160,D160,E160,F160),"Enable Macros") -> 0 | J160: 0
B161: 111 | C161: Mar 2031 | D161: =IFERROR(RPMLoanType(B161),"Enable Macros") -> Matured | E161: =IFERROR(RPMInterestRate(B161),"Enable Macros") -> 0 | F161: =RPMBeginningBalance(B161,D161,J160) -> 0 | G161: 0 | H161: 0 | I161: =IFERROR(RPMTotalPayment(B161,D161,E161,F161),"Enable Macros") -> 0 | J161: 0
B162: 112 | C162: Apr 2031 | D162: =IFERROR(RPMLoanType(B162),"Enable Macros") -> Matured | E162: =IFERROR(RPMInterestRate(B162),"Enable Macros") -> 0 | F162: =RPMBeginningBalance(B162,D162,J161) -> 0 | G162: 0 | H162: 0 | I162: =IFERROR(RPMTotalPayment(B162,D162,E162,F162),"Enable Macros") -> 0 | J162: 0
B163: 113 | C163: May 2031 | D163: =IFERROR(RPMLoanType(B163),"Enable Macros") -> Matured | E163: =IFERROR(RPMInterestRate(B163),"Enable Macros") -> 0 | F163: =RPMBeginningBalance(B163,D163,J162) -> 0 | G163: 0 | H163: 0 | I163: =IFERROR(RPMTotalPayment(B163,D163,E163,F163),"Enable Macros") -> 0 | J163: 0
B164: 114 | C164: Jun 2031 | D164: =IFERROR(RPMLoanType(B164),"Enable Macros") -> Matured | E164: =IFERROR(RPMInterestRate(B164),"Enable Macros") -> 0 | F164: =RPMBeginningBalance(B164,D164,J163) -> 0 | G164: 0 | H164: 0 | I164: =IFERROR(RPMTotalPayment(B164,D164,E164,F164),"Enable Macros") -> 0 | J164: 0
B165: 115 | C165: Jul 2031 | D165: =IFERROR(RPMLoanType(B165),"Enable Macros") -> Matured | E165: =IFERROR(RPMInterestRate(B165),"Enable Macros") -> 0 | F165: =RPMBeginningBalance(B165,D165,J164) -> 0 | G165: 0 | H165: 0 | I165: =IFERROR(RPMTotalPayment(B165,D165,E165,F165),"Enable Macros") -> 0 | J165: 0
B166: 116 | C166: Aug 2031 | D166: =IFERROR(RPMLoanType(B166),"Enable Macros") -> Matured | E166: =IFERROR(RPMInterestRate(B166),"Enable Macros") -> 0 | F166: =RPMBeginningBalance(B166,D166,J165) -> 0 | G166: 0 | H166: 0 | I166: =IFERROR(RPMTotalPayment(B166,D166,E166,F166),"Enable Macros") -> 0 | J166: 0
B167: 117 | C167: Sep 2031 | D167: =IFERROR(RPMLoanType(B167),"Enable Macros") -> Matured | E167: =IFERROR(RPMInterestRate(B167),"Enable Macros") -> 0 | F167: =RPMBeginningBalance(B167,D167,J166) -> 0 | G167: 0 | H167: 0 | I167: =IFERROR(RPMTotalPayment(B167,D167,E167,F167),"Enable Macros") -> 0 | J167: 0
B168: 118 | C168: Oct 2031 | D168: =IFERROR(RPMLoanType(B168),"Enable Macros") -> Matured | E168: =IFERROR(RPMInterestRate(B168),"Enable Macros") -> 0 | F168: =RPMBeginningBalance(B168,D168,J167) -> 0 | G168: 0 | H168: 0 | I168: =IFERROR(RPMTotalPayment(B168,D168,E168,F168),"Enable Macros") -> 0 | J168: 0
B169: 119 | C169: Nov 2031 | D169: =IFERROR(RPMLoanType(B169),"Enable Macros") -> Matured | E169: =IFERROR(RPMInterestRate(B169),"Enable Macros") -> 0 | F169: =RPMBeginningBalance(B169,D169,J168) -> 0 | G169: 0 | H169: 0 | I169: =IFERROR(RPMTotalPayment(B169,D169,E169,F169),"Enable Macros") -> 0 | J169: 0
B170: 120 | C170: Dec 2031 | D170: =IFERROR(RPMLoanType(B170),"Enable Macros") -> Matured | E170: =IFERROR(RPMInterestRate(B170),"Enable Macros") -> 0 | F170: =RPMBeginningBalance(B170,D170,J169) -> 0 | G170: 0 | H170: 0 | I170: =IFERROR(RPMTotalPayment(B170,D170,E170,F170),"Enable Macros") -> 0 | J170: 0

Sheet Sources & Uses
B2: Sources & Uses
B4: Period | C4: 0 | D4: 1 | E4: 2 | F4: 3 | G4: 4 | H4: 5 | I4: 6 | J4: 7 | K4: 8 | L4: 9 | M4: 10 | N4: Total
D5: =RPMDateSpan(D4,1) -> Jan 22 - Dec 22 | E5: =RPMDateSpan(E4,1) -> Jan 23 - Dec 23 | F5: Jan 24 - Dec 24 | G5: Jan 25 - Dec 25 | H5: Jan 26 - Dec 26 | I5: Jan 27 - Dec 27 | J5: Jan 28 - Dec 28 | K5: Jan 29 - Dec 29 | L5: Jan 30 - Dec 30 | M5: Jan 31 - Dec 31
B7: Sources Of Capital
B8: Debt Proceeds | C8: =IF(AND(Loan_IO_Status="Fund Up",Loan_IO_Term>0,Loan_IO_Approval="Yes"),0,Loan_Amount) -> 0 | D8: =IF(OR(Loan_IO_Status<>"Fund Up",Loan_IO_Approval="No"),0,IF(D4*12<=Loan_IO_MonthFunded,VLOOKUP(D4,Amortization_Schedule_Annual,9,FALSE)-SUM($C$8:C8),IF(AND(Loan_IO_MonthFunded>C4*12,Loan_IO_MonthFunded<=D4*12),Loan_Amount-SUM($C$8:C8),0))) -> 0 | E8: =IF(OR(Loan_IO_Status<>"Fund Up",Loan_IO_Approval="No"),0,IF(E4*12<=Loan_IO_MonthFunded,VLOOKUP(E4,Amortization_Schedule_Annual,9,FALSE)-SUM($C$8:D8),IF(AND(Loan_IO_MonthFunded>D4*12,Loan_IO_MonthFunded<=E4*12),Loan_Amount-SUM($C$8:D8),0))) -> 0 | F8: =IF(OR(Loan_IO_Status<>"Fund Up",Loan_IO_Approval="No"),0,IF(F4*12<=Loan_IO_MonthFunded,VLOOKUP(F4,Amortization_Schedule_Annual,9,FALSE)-SUM($C$8:E8),IF(AND(Loan_IO_MonthFunded>E4*12,Loan_IO_MonthFunded<=F4*12),Loan_Amount-SUM($C$8:E8),0))) -> 0 | G8: =IF(OR(Loan_IO_Status<>"Fund Up",Loan_IO_Approval="No"),0,IF(G4*12<=Loan_IO_MonthFunded,VLOOKUP(G4,Amortization_Schedule_Annual,9,FALSE)-SUM($C$8:F8),IF(AND(Loan_IO_MonthFunded>F4*12,Loan_IO_MonthFunded<=G4*12),Loan_Amount-SUM($C$8:F8),0))) -> 0 | H8: =IF(OR(Loan_IO_Status<>"Fund Up",Loan_IO_Approval="No"),0,IF(H4*12<=Loan_IO_MonthFunded,VLOOKUP(H4,Amortization_Schedule_Annual,9,FALSE)-SUM($C$8:G8),IF(AND(Loan_IO_MonthFunded>G4*12,Loan_IO_MonthFunded<=H4*12),Loan_Amount-SUM($C$8:G8),0))) -> 0 | I8: =IF(OR(Loan_IO_Status<>"Fund Up",Loan_IO_Approval="No"),0,IF(I4*12<=Loan_IO_MonthFunded,VLOOKUP(I4,Amortization_Schedule_Annual,9,FALSE)-SUM($C$8:H8),IF(AND(Loan_IO_MonthFunded>H4*12,Loan_IO_MonthFunded<=I4*12),Loan_Amount-SUM($C$8:H8),0))) -> 0 | J8: =IF(OR(Loan_IO_Status<>"Fund Up",Loan_IO_Approval="No"),0,IF(J4*12<=Loan_IO_MonthFunded,VLOOKUP(J4,Amortization_Schedule_Annual,9,FALSE)-SUM($C$8:I8),IF(AND(Loan_IO_MonthFunded>I4*12,Loan_IO_MonthFunded<=J4*12),Loan_Amount-SUM($C$8:I8),0))) -> 0 | K8: =IF(OR(Loan_IO_Status<>"Fund Up",Loan_IO_Approval="No"),0,IF(K4*12<=Loan_IO_MonthFunded,VLOOKUP(K4,Amortization_Schedule_Annual,9,FALSE)-SUM($C$8:J8),IF(AND(Loan_IO_MonthFunded>J4*12,Loan_IO_MonthFunded<=K4*12),Loan_Amount-SUM($C$8:J8),0))) -> 0 | L8: =IF(OR(Loan_IO_Status<>"Fund Up",Loan_IO_Approval="No"),0,IF(L4*12<=Loan_IO_MonthFunded,VLOOKUP(L4,Amortization_Schedule_Annual,9,FALSE)-SUM($C$8:K8),IF(AND(Loan_IO_MonthFunded>K4*12,Loan_IO_MonthFunded<=L4*12),Loan_Amount-SUM($C$8:K8),0))) -> 0 | M8: =IF(OR(Loan_IO_Status<>"Fund Up",Loan_IO_Approval="No"),0,IF(M4*12<=Loan_IO_MonthFunded,VLOOKUP(M4,Amortization_Schedule_Annual,9,FALSE)-SUM($C$8:L8),IF(AND(Loan_IO_MonthFunded>L4*12,Loan_IO_MonthFunded<=M4*12),Loan_Amount-SUM($C$8:L8),0))) -> 0 | N8: =SUM(C8:M8) -> 0
B9: Refinance Proceeds | C9: 0 | D9: =IF(Hold<D4,0,IF(ROUNDUP((Loan_IO_Term+1)/12,0)=D4,Loan_Amount_Amortizing-Loan_Amount,0)) -> 0 | E9: 0 | F9: 0 | G9: 0 | H9: 0 | I9: 0 | J9: 0 | K9: 0 | L9: 0 | M9: 0 | N9: 0
B10: Equity Contributions | C10: =Equity_Amount -> 0 | D10: =IF('Return Detail'!F85<0,-'Return Detail'!F85,0) -> 0 | E10: =IF('Return Detail'!G85<0,-'Return Detail'!G85,0) -> 0 | F10: =IF('Return Detail'!H85<0,-'Return Detail'!H85,0) -> 0 | G10: =IF('Return Detail'!I85<0,-'Return Detail'!I85,0) -> 0 | H10: =IF('Return Detail'!J85<0,-'Return Detail'!J85,0) -> 0 | I10: =IF('Return Detail'!K85<0,-'Return Detail'!K85,0) -> 0 | J10: =IF('Return Detail'!L85<0,-'Return Detail'!L85,0) -> 0 | K10: =IF('Return Detail'!M85<0,-'Return Detail'!M85,0) -> 0 | L10: =IF('Return Detail'!N85<0,-'Return Detail'!N85,0) -> 0 | M10: =IF('Return Detail'!O85<0,-'Return Detail'!O85,0) -> 0 | N10: 0
B11: Net Operating Income | C11: 0 | D11: =IF('Return Detail'!F$6>0,'Return Detail'!F$6,0) -> 515106.375 | E11: =IF('Return Detail'!G$6>0,'Return Detail'!G$6,0) -> 822908.715 | F11: =IF('Return Detail'!H$6>0,'Return Detail'!H$6,0) -> 847595.9764 | G11: =IF('Return Detail'!I$6>0,'Return Detail'!I$6,0) -> 873023.8557 | H11: =IF('Return Detail'!J$6>0,'Return Detail'!J$6,0) -> 899214.5714 | I11: =IF('Return Detail'!K$6>0,'Return Detail'!K$6,0) -> 926191.0086 | J11: =IF('Return Detail'!L$6>0,'Return Detail'!L$6,0) -> 953976.7388 | K11: =IF('Return Detail'!M$6>0,'Return Detail'!M$6,0) -> 982596.041 | L11: =IF('Return Detail'!N$6>0,'Return Detail'!N$6,0) -> 1012073.922 | M11: =IF('Return Detail'!O$6>0,'Return Detail'!O$6,0) -> 1042436.14 | N11: 8875123.344
B12: Non-Regular Income | C12: 0 | D12: ='Return Detail'!F$8 -> 0 | E12: ='Return Detail'!G$8 -> 0 | F12: ='Return Detail'!H$8 -> 0 | G12: ='Return Detail'!I$8 -> 0 | H12: ='Return Detail'!J$8 -> 0 | I12: ='Return Detail'!K$8 -> 0 | J12: ='Return Detail'!L$8 -> 0 | K12: ='Return Detail'!M$8 -> 0 | L12: ='Return Detail'!N$8 -> 0 | M12: ='Return Detail'!O$8 -> 0 | N12: 0
B13: Reserve Draw for Taxes | C13: 0 | D13: ='Return Detail'!F82 -> 0 | E13: ='Return Detail'!G82 -> 0 | F13: ='Return Detail'!H82 -> 0 | G13: ='Return Detail'!I82 -> 0 | H13: ='Return Detail'!J82 -> 0 | I13: ='Return Detail'!K82 -> 0 | J13: ='Return Detail'!L82 -> 0 | K13: ='Return Detail'!M82 -> 0 | L13: ='Return Detail'!N82 -> 0 | M13: ='Return Detail'!O82 -> 0 | N13: 0
B14: Gross Proceeds from Sale | C14: 0 | D14: ='Return Detail'!F$10 -> 0 | E14: ='Return Detail'!G$10 -> 0 | F14: ='Return Detail'!H$10 -> 0 | G14: ='Return Detail'!I$10 -> 0 | H14: ='Return Detail'!J$10 -> 0 | I14: ='Return Detail'!K$10 -> 0 | J14: ='Return Detail'!L$10 -> 0 | K14: ='Return Detail'!M$10 -> 0 | L14: ='Return Detail'!N$10 -> 0 | M14: ='Return Detail'!O$10 -> 10737092.24 | N14: 10737092.24
B15: Total Sources Of Capital | C15: =SUM(C8:C14) -> 0 | D15: 515106.375 | E15: 822908.715 | F15: 847595.9764 | G15: 873023.8557 | H15: 899214.5714 | I15: 926191.0086 | J15: 953976.7388 | K15: 982596.041 | L15: 1012073.922 | M15: 11779528.38 | N15: 19612215.58
B17: Uses Of Capital
B18: =IF(Project_Type="Acquisition","Acquisition Price","Development Costs") -> Acquisition Price | C18: =IF(AND(Loan_IO_Status="Fund Up",Loan_IO_Term>0,Loan_IO_Approval="yes"),Equity_Amount-SUM(C19:C32),Acquisition_Gross) -> 0 | D18: =D8 -> 0 | E18: =E8 -> 0 | F18: 0 | G18: 0 | H18: 0 | I18: 0 | J18: 0 | K18: 0 | L18: 0 | M18: 0 | N18: =SUM(C18:M18) -> 0
B19: Costs and Fees | C19: =SUM(Due_Diligence_Cost,Loan_Fee) -> 0 | D19: =-SUM('Return Detail'!F34,'Return Detail'!F28) -> 0 | E19: =-SUM('Return Detail'!G34,'Return Detail'!G28) -> 0 | F19: =-SUM('Return Detail'!H34,'Return Detail'!H28) -> 0 | G19: =-SUM('Return Detail'!I34,'Return Detail'!I28) -> 0 | H19: =-SUM('Return Detail'!J34,'Return Detail'!J28) -> 0 | I19: =-SUM('Return Detail'!K34,'Return Detail'!K28) -> 0 | J19: =-SUM('Return Detail'!L34,'Return Detail'!L28) -> 0 | K19: =-SUM('Return Detail'!M34,'Return Detail'!M28) -> 0 | L19: =-SUM('Return Detail'!N34,'Return Detail'!N28) -> 0 | M19: =-SUM('Return Detail'!O34,'Return Detail'!O28) -> 0 | N19: =SUM(C19:M19) -> 0
B20: Initial Reserve Accounts | C20: =SUM(Reserve_CapEx,Reserve_Operating,Reserve_Replacement) -> 0 | D20: 0 | E20: 0 | F20: 0 | G20: 0 | H20: 0 | I20: 0 | J20: 0 | K20: 0 | L20: 0 | M20: 0 | N20: 0
B21: Operating Requirements | C21: 0 | D21: =IF('Return Detail'!F$6<0,-'Return Detail'!F$6,0) -> 0 | E21: =IF('Return Detail'!G$6<0,-'Return Detail'!G$6,0) -> 0 | F21: =IF('Return Detail'!H$6<0,-'Return Detail'!H$6,0) -> 0 | G21: =IF('Return Detail'!I$6<0,-'Return Detail'!I$6,0) -> 0 | H21: =IF('Return Detail'!J$6<0,-'Return Detail'!J$6,0) -> 0 | I21: =IF('Return Detail'!K$6<0,-'Return Detail'!K$6,0) -> 0 | J21: =IF('Return Detail'!L$6<0,-'Return Detail'!L$6,0) -> 0 | K21: =IF('Return Detail'!M$6<0,-'Return Detail'!M$6,0) -> 0 | L21: =IF('Return Detail'!N$6<0,-'Return Detail'!N$6,0) -> 0 | M21: =IF('Return Detail'!O$6<0,-'Return Detail'!O$6,0) -> 0 | N21: =SUM(C21:M21) -> 0
B22: Mortgage Balance | C22: 0 | D22: =-'Return Detail'!F$35 -> 0 | E22: =-'Return Detail'!G$35 -> 0 | F22: =-'Return Detail'!H$35 -> 0 | G22: =-'Return Detail'!I$35 -> 0 | H22: =-'Return Detail'!J$35 -> 0 | I22: =-'Return Detail'!K$35 -> 0 | J22: =-'Return Detail'!L$35 -> 0 | K22: =-'Return Detail'!M$35 -> 0 | L22: =-'Return Detail'!N$35 -> 0 | M22: =-'Return Detail'!O$35 -> 0 | N22: =SUM(C22:M22) -> 0
B23: Mortgage Exit Fee | C23: 0 | D23: =-'Return Detail'!F36 -> 0 | E23: =-'Return Detail'!G36 -> 0 | F23: =-'Return Detail'!H36 -> 0 | G23: =-'Return Detail'!I36 -> 0 | H23: =-'Return Detail'!J36 -> 0 | I23: =-'Return Detail'!K36 -> 0 | J23: =-'Return Detail'!L36 -> 0 | K23: =-'Return Detail'!M36 -> 0 | L23: =-'Return Detail'!N36 -> 0 | M23: =-'Return Detail'!O36 -> 0 | N23: =SUM(C23:M23) -> 0
B24: Annual Interest Expense | C24: 0 | D24: =IF(D4>Hold,0,VLOOKUP(D$4,Amortization_Schedule_Annual,6,FALSE)) -> 0 | E24: 0 | F24: 0 | G24: 0 | H24: 0 | I24: 0 | J24: 0 | K24: 0 | L24: 0 | M24: 0 | N24: 0
B25: Less: Budgeted Interest | C25: 0 | D25: =IF(D4>Hold,0,'Cash Flows'!F89) -> 0 | E25: =IF(E4>Hold,0,'Cash Flows'!G89) -> 0 | F25: =IF(F4>Hold,0,'Cash Flows'!H89) -> 0 | G25: =IF(G4>Hold,0,'Cash Flows'!I89) -> 0 | H25: =IF(H4>Hold,0,'Cash Flows'!J89) -> 0 | I25: =IF(I4>Hold,0,'Cash Flows'!K89) -> 0 | J25: =IF(J4>Hold,0,'Cash Flows'!L89) -> 0 | K25: =IF(K4>Hold,0,'Cash Flows'!M89) -> 0 | L25: =IF(L4>Hold,0,'Cash Flows'!N89) -> 0 | M25: =IF(M4>Hold,0,'Cash Flows'!O89) -> 0 | N25: 0
B26: Annual Principal Paydown | C26: 0 | D26: =IF(D4>Hold,0,VLOOKUP(D$4,Amortization_Schedule_Annual,7,FALSE)) -> 0 | E26: 0 | F26: 0 | G26: 0 | H26: 0 | I26: 0 | J26: 0 | K26: 0 | L26: 0 | M26: 0 | N26: 0
B27: Capital Expenses | C27: 0 | D27: =-'Return Detail'!F$7 -> 0 | E27: =-'Return Detail'!G$7 -> 0 | F27: =-'Return Detail'!H$7 -> 0 | G27: =-'Return Detail'!I$7 -> 0 | H27: =-'Return Detail'!J$7 -> 0 | I27: =-'Return Detail'!K$7 -> 0 | J27: =-'Return Detail'!L$7 -> 0 | K27: =-'Return Detail'!M$7 -> 0 | L27: =-'Return Detail'!N$7 -> 0 | M27: =-'Return Detail'!O$7 -> 0 | N27: 0
B28: Operating Tax Liability | C28: 0 | D28: =-'Return Detail'!F81 -> 180287.2312 | E28: =-'Return Detail'!G81 -> 288018.0502 | F28: =-'Return Detail'!H81 -> 296658.5918 | G28: =-'Return Detail'!I81 -> 305558.3495 | H28: =-'Return Detail'!J81 -> 314725.1 | I28: =-'Return Detail'!K81 -> 324166.853 | J28: =-'Return Detail'!L81 -> 333891.8586 | K28: =-'Return Detail'!M81 -> 343908.6143 | L28: =-'Return Detail'!N81 -> 354225.8728 | M28: =-'Return Detail'!O81 -> 364852.649 | N28: 3106293.17
B29: Ordinary Income Tax Liability | C29: 0 | D29: =-'Return Detail'!F74 -> 0 | E29: =-'Return Detail'!G74 -> 0 | F29: =-'Return Detail'!H74 -> 0 | G29: =-'Return Detail'!I74 -> 0 | H29: =-'Return Detail'!J74 -> 0 | I29: =-'Return Detail'!K74 -> 0 | J29: =-'Return Detail'!L74 -> 0 | K29: =-'Return Detail'!M74 -> 0 | L29: =-'Return Detail'!N74 -> 0 | M29: =-'Return Detail'!O74 -> 0 | N29: 0
B30: Cost Recovery Tax Liability | C30: 0 | D30: =-'Return Detail'!F75 -> 0 | E30: =-'Return Detail'!G75 -> 0 | F30: =-'Return Detail'!H75 -> 0 | G30: =-'Return Detail'!I75 -> 0 | H30: =-'Return Detail'!J75 -> 0 | I30: =-'Return Detail'!K75 -> 0 | J30: =-'Return Detail'!L75 -> 0 | K30: =-'Return Detail'!M75 -> 0 | L30: =-'Return Detail'!N75 -> 0 | M30: =-'Return Detail'!O75 -> 0 | N30: 0
B31: Capital Gains Tax Liability | C31: 0 | D31: =-'Return Detail'!F76 -> 0 | E31: =-'Return Detail'!G76 -> 0 | F31: =-'Return Detail'!H76 -> 0 | G31: =-'Return Detail'!I76 -> 0 | H31: =-'Return Detail'!J76 -> 0 | I31: =-'Return Detail'!K76 -> 0 | J31: =-'Return Detail'!L76 -> 0 | K31: =-'Return Detail'!M76 -> 0 | L31: =-'Return Detail'!N76 -> 0 | M31: =-'Return Detail'!O76 -> 2147418.448 | N31: 2147418.448
B32: Equity Returns | C32: 0 | D32: =IF('Return Detail'!F$85>0,'Return Detail'!F$85,0) -> 334819.1438 | E32: =IF('Return Detail'!G$85>0,'Return Detail'!G$85,0) -> 534890.6647 | F32: =IF('Return Detail'!H$85>0,'Return Detail'!H$85,0) -> 550937.3847 | G32: =IF('Return Detail'!I$85>0,'Return Detail'!I$85,0) -> 567465.5062 | H32: =IF('Return Detail'!J$85>0,'Return Detail'!J$85,0) -> 584489.4714 | I32: =IF('Return Detail'!K$85>0,'Return Detail'!K$85,0) -> 602024.1556 | J32: =IF('Return Detail'!L$85>0,'Return Detail'!L$85,0) -> 620084.8802 | K32: =IF('Return Detail'!M$85>0,'Return Detail'!M$85,0) -> 638687.4266 | L32: =IF('Return Detail'!N$85>0,'Return Detail'!N$85,0) -> 657848.0494 | M32: =IF('Return Detail'!O$85>0,'Return Detail'!O$85,0) -> 9267257.283 | N32: 14358503.97
B33: Total Uses Of Capital | C33: =SUM(C18:C32) -> 0 | D33: =SUM(D18:D32) -> 515106.375 | E33: 822908.715 | F33: 847595.9764 | G33: 873023.8557 | H33: 899214.5714 | I33: 926191.0086 | J33: 953976.7388 | K33: 982596.041 | L33: 1012073.922 | M33: 11779528.38 | N33: 19612215.58
B37: www.realpropmetrics.com
B38: ="Version: "&Version -> Version: 9.42 SH | © 2022
B39: =TODAY() -> 2022-02-23

Sheet Equity Investor Returns
B2: =IF(LEFT(B21,3)="Pre","Pre-Tax Equity Investor Returns","Post-Tax Equity Investor Returns") -> Pre-Tax Equity Investor Returns
Q3: Year | R3: 1 | S3: 2 | T3: 3 | U3: 4 | V3: 5 | W3: 6 | X3: 7 | Y3: 8 | Z3: 9 | AA3: 10
Q4: =Name_Partner -> JV Partner | R4: =E32 -> 309063.825 | S4: =F32 -> 493745.229 | T4: 508557.5859 | U4: 523814.3134 | V4: 539528.7428 | W4: 555714.6051 | X4: 572386.0433 | Y4: 589557.6246 | Z4: 607244.3533 | AA4: 5994007.804
Q5: =Name_Developer -> Developer | R5: =E47 -> 206042.55 | S5: =F47 -> 329163.486 | T5: 339038.3906 | U5: 349209.5423 | V5: 359685.8286 | W5: 370476.4034 | X5: 381590.6955 | Y5: 393038.4164 | Z5: 404829.5689 | AA5: 5785520.576
E6: Cash Flow Distribution
C7: Method | D7: Basis | E7: Rate | F7: =Name_Partner&" Split" -> JV Partner Split | G7: =Name_Developer&" Split" -> Developer Split
B8: Initial Equity Contribution | F8: =Contribution_JV -> 0.9 | G8: =Contribution_Developer -> 0.1
B9: Preferred Return | C9: Cumulative | D9: Cash on Cash | E9: =Equity_Rate -> 0.1 | F9: 1 | G9: =1-Pref_Investor -> 0
B10: Hurdle 1 | D10: =D9 -> Cash on Cash | E10: =Preferred_Return_Rate+0.02 -> 0.12 | F10: =F8 -> 0.9 | G10: =1-F10 -> 0.1
B11: Hurdle 2 | D11: =D10 -> Cash on Cash | E11: =Hurdle1_Rate+0.02 -> 0.14 | F11: =Hurdle1_Investor-0.1 -> 0.8 | G11: =1-F11 -> 0.2
B12: Hurdle 3 | D12: =D11 -> Cash on Cash | E12: =Hurdle2_Rate+0.02 -> 0.16 | F12: =Hurdle2_Investor-0.1 -> 0.7 | G12: 0.3
B13: Final Split | F13: =Hurdle3_Investor-0.1 -> 0.6 | G13: 0.4
B14: Reversion (Sale) Proceeds | C14: Independent | F14: 0.5 | G14: =1-F14 -> 0.5
B19: Cash Flow Waterfall Summary
B20: Period | D20: 0 | E20: 1 | F20: 2 | G20: 3 | H20: 4 | I20: 5 | J20: 6 | K20: 7 | L20: 8 | M20: 9 | N20: 10
B21: Pre-Tax Net Cash Flow | D21: =IF(LEFT($B$21,3)="Pre",'Return Detail'!E37,'Return Detail'!E85) -> 0 | E21: =IF(LEFT($B$21,3)="Pre",'Return Detail'!F$32,'Return Detail'!F$83) -> 515106.375 | F21: =IF(LEFT($B$21,3)="Pre",'Return Detail'!G$32,'Return Detail'!G$83) -> 822908.715 | G21: =IF(LEFT($B$21,3)="Pre",'Return Detail'!H$32,'Return Detail'!H$83) -> 847595.9764 | H21: =IF(LEFT($B$21,3)="Pre",'Return Detail'!I$32,'Return Detail'!I$83) -> 873023.8557 | I21: =IF(LEFT($B$21,3)="Pre",'Return Detail'!J$32,'Return Detail'!J$83) -> 899214.5714 | J21: =IF(LEFT($B$21,3)="Pre",'Return Detail'!K$32,'Return Detail'!K$83) -> 926191.0086 | K21: =IF(LEFT($B$21,3)="Pre",'Return Detail'!L$32,'Return Detail'!L$83) -> 953976.7388 | L21: =IF(LEFT($B$21,3)="Pre",'Return Detail'!M$32,'Return Detail'!M$83) -> 982596.041 | M21: =IF(LEFT($B$21,3)="Pre",'Return Detail'!N$32,'Return Detail'!N$83) -> 1012073.922 | N21: =IF(LEFT($B$21,3)="Pre",'Return Detail'!O$32,'Return Detail'!O$83) -> 1042436.14
B22: =IF(LEFT($B$21,3)="Pre","Pre-Tax Sale Proceeds","Post-Tax Sale Proceeds") -> Pre-Tax Sale Proceeds | D22: 0 | E22: =IF(LEFT($B$21,3)="Pre",'Return Detail'!F$73,'Return Detail'!F$77) -> 0 | F22: =IF(LEFT($B$21,3)="Pre",'Return Detail'!G$73,'Return Detail'!G$77) -> 0 | G22: =IF(LEFT($B$21,3)="Pre",'Return Detail'!H$73,'Return Detail'!H$77) -> 0 | H22: =IF(LEFT($B$21,3)="Pre",'Return Detail'!I$73,'Return Detail'!I$77) -> 0 | I22: =IF(LEFT($B$21,3)="Pre",'Return Detail'!J$73,'Return Detail'!J$77) -> 0 | J22: =IF(LEFT($B$21,3)="Pre",'Return Detail'!K$73,'Return Detail'!K$77) -> 0 | K22: =IF(LEFT($B$21,3)="Pre",'Return Detail'!L$73,'Return Detail'!L$77) -> 0 | L22: =IF(LEFT($B$21,3)="Pre",'Return Detail'!M$73,'Return Detail'!M$77) -> 0 | M22: =IF(LEFT($B$21,3)="Pre",'Return Detail'!N$73,'Return Detail'!N$77) -> 0 | N22: =IF(LEFT($B$21,3)="Pre",'Return Detail'!O$73,'Return Detail'!O$77) -> 10737092.24
B23: Total Cash Flow | D23: =SUM(D21:D22) -> 0 | E23: =SUM(E21:E22) -> 515106.375 | F23: 822908.715 | G23: 847595.9764 | H23: 873023.8557 | I23: 899214.5714 | J23: 926191.0086 | K23: 953976.7388 | L23: 982596.041 | M23: 1012073.922 | N23: 11779528.38
B25: =Name_Partner -> JV Partner
B26: Cash Flow Paid at Preferred Return | D26: =D80 -> 0 | E26: =SUM(E76:E77,E87) -> 0 | F26: 0 | G26: 0 | H26: 0 | I26: 0 | J26: 0 | K26: 0 | L26: 0 | M26: 0 | N26: 0
B27: Cash Flow Paid at Hurdle 1 | D27: =D113 -> 0 | E27: =SUM(E113:E114) -> 0 | F27: =SUM(F113:F114) -> 0 | G27: 0 | H27: 0 | I27: 0 | J27: 0 | K27: 0 | L27: 0 | M27: 0 | N27: 0
B28: Cash Flow Paid at Hurdle 2 | D28: =D134 -> 0 | E28: =SUM(E134:E135) -> 0 | F28: =SUM(F134:F135) -> 0 | G28: 0 | H28: 0 | I28: 0 | J28: 0 | K28: 0 | L28: 0 | M28: 0 | N28: 0
B29: Cash Flow Paid at Hurdle 3 | D29: =D155 -> 0 | E29: =SUM(E155:E156) -> 0 | F29: =SUM(F155:F156) -> 0 | G29: 0 | H29: 0 | I29: 0 | J29: 0 | K29: 0 | L29: 0 | M29: 0 | N29: 0
B30: Cash Flow Paid at Final Split | D30: =D175 -> 0 | E30: =E175 -> 309063.825 | F30: 493745.229 | G30: 508557.5859 | H30: 523814.3134 | I30: 539528.7428 | J30: 555714.6051 | K30: 572386.0433 | L30: 589557.6246 | M30: 607244.3533 | N30: 625461.6839
B31: Cash Flow Paid at Reversion (Sale) | D31: 0 | E31: =IF(Reversion_Method="Independent",E$22*Reversion_Split_Equity,0) -> 0 | F31: 0 | G31: 0 | H31: 0 | I31: 0 | J31: 0 | K31: 0 | L31: 0 | M31: 0 | N31: 5368546.12
B32: ="Total Cash Flow to "&Name_Partner -> Total Cash Flow to JV Partner | D32: =SUM(D26:D31) -> 0 | E32: =SUM(E26:E31) -> 309063.825 | F32: 493745.229 | G32: 508557.5859 | H32: 523814.3134 | I32: 539528.7428 | J32: 555714.6051 | K32: 572386.0433 | L32: 589557.6246 | M32: 607244.3533 | N32: 5994007.804
B33: Annual Cash on Cash | E33: =IFERROR(E32/(Equity_Amount*Contribution_JV),"-") -> - | F33: - | G33: - | H33: - | I33: - | J33: - | K33: - | L33: - | M33: - | N33: -
B35: Net Cash Flow | C35: =SUM(D32:N32) -> 10693620.13
B36: IRR | C36: =IFERROR(IRR(D32:N32),"-") -> -
B37: Equity Multiple | C37: =IFERROR(SUM(E32:N32)/(Equity_Amount*Contribution_JV),"-") -> -
B38: Average Annual Cash on Cash Return | C38: =IFERROR((SUM(E32:N32)/Hold)/(Equity_Amount*Contribution_JV),"-") -> -
B40: =Name_Developer -> Developer
B41: Cash Flow Paid at Preferred Return | D41: =D96 -> 0 | E41: =E96 -> 0 | F41: 0 | G41: 0 | H41: 0 | I41: 0 | J41: 0 | K41: 0 | L41: 0 | M41: 0 | N41: 0
B42: Cash Flow Paid at Hurdle 1 | D42: =D122 -> 0 | E42: =E122 -> 0 | F42: 0 | G42: 0 | H42: 0 | I42: 0 | J42: 0 | K42: 0 | L42: 0 | M42: 0 | N42: 0
B43: Cash Flow Paid at Hurdle 2 | D43: =D143 -> 0 | E43: =E143 -> 0 | F43: 0 | G43: 0 | H43: 0 | I43: 0 | J43: 0 | K43: 0 | L43: 0 | M43: 0 | N43: 0
B44: Cash Flow Paid at Hurdle 3 | D44: =D164 -> 0 | E44: =E164 -> 0 | F44: 0 | G44: 0 | H44: 0 | I44: 0 | J44: 0 | K44: 0 | L44: 0 | M44: 0 | N44: 0
B45: Cash Flow Paid at Final Split | D45: =D180 -> 0 | E45: =E180 -> 206042.55 | F45: 329163.486 | G45: 339038.3906 | H45: 349209.5423 | I45: 359685.8286 | J45: 370476.4034 | K45: 381590.6955 | L45: 393038.4164 | M45: 404829.5689 | N45: 416974.456
B46: Cash Flow Paid at Reversion (Sale) | D46: 0 | E46: =IF(Reversion_Method="Independent",E$22*Reversion_Split_Dev,0) -> 0 | F46: 0 | G46: 0 | H46: 0 | I46: 0 | J46: 0 | K46: 0 | L46: 0 | M46: 0 | N46: 5368546.12
B47: ="Total Cash Flow to "&Name_Developer -> Total Cash Flow to Developer | D47: =SUM(D41:D46) -> 0 | E47: =SUM(E41:E46) -> 206042.55 | F47: 329163.486 | G47: 339038.3906 | H47: 349209.5423 | I47: 359685.8286 | J47: 370476.4034 | K47: 381590.6955 | L47: 393038.4164 | M47: 404829.5689 | N47: 5785520.576
B48: Annual Cash on Cash | E48: =IFERROR(E47/(Equity_Amount*Contribution_Developer),"-") -> - | F48: - | G48: - | H48: - | I48: - | J48: - | K48: - | L48: - | M48: - | N48: -
B50: Net Cash Flow | C50: =SUM(D47:N47) -> 8918595.458
B51: IRR | C51: =IFERROR(IRR(D47:N47),"-") -> -
B52: Equity Multiple | C52: =IFERROR(SUM(E47:N47)/(Equity_Amount*Contribution_Developer),"-") -> -
B53: Average Annual Cash on Cash Return | C53: =IFERROR((SUM(E47:N47)/Hold)/(Equity_Amount*Contribution_Developer),"-") -> -
B59: www.realpropmetrics.com
B60: ="Version: "&Version -> Version: 9.42 SH | © 2022
B61: =TODAY() -> 2022-02-23
B62: This pro forma does not constitute tax advice. Please consult a professional tax advisor.
B66: =B2 -> Pre-Tax Equity Investor Returns
B68: Cash Flow Waterfall Detail Analysis
B70: =B20 -> Period | D70: =D20 -> 0 | E70: 1 | F70: 2 | G70: 3 | H70: 4 | I70: 5 | J70: 6 | K70: 7 | L70: 8 | M70: 9 | N70: 10
B71: =B21 -> Pre-Tax Net Cash Flow | D71: =IF(Reversion_Method="Independent",D$21,D$23) -> 0 | E71: 515106.375 | F71: 822908.715 | G71: 847595.9764 | H71: 873023.8557 | I71: 899214.5714 | J71: 926191.0086 | K71: 953976.7388 | L71: 982596.041 | M71: 1012073.922 | N71: 1042436.14
B73: Preferred Return
B74: =Name_Partner -> JV Partner
B75: ="CF Allocation at "&ROUND(Pref_Investor*100,1)&"%" -> CF Allocation at 100% | D75: =D$71*Contribution_JV -> 0 | E75: =E$71*Pref_Investor -> 515106.375 | F75: 822908.715 | G75: 847595.9764 | H75: 873023.8557 | I75: 899214.5714 | J75: 926191.0086 | K75: 953976.7388 | L75: 982596.041 | M75: 1012073.922 | N75: 1042436.14
B76: Amount Paid at Preferred Return (IRR) | D76: =IF($D$9="IRR",$D$21*Contribution_JV,0) -> 0 | E76: =IF(OR(E$20>Hold,Preferred_Return_Rate=0,$D$9<>"IRR"),0,IF(NPV(Preferred_Return_Rate,$E$75:E$75)+$D$75<0,E75,FV(Preferred_Return_Rate,E$20,,D75))) -> 0 | F76: =IF(OR(F$20>Hold,Preferred_Return_Rate=0,$D$9<>"IRR",SUM(NPV(Preferred_Return_Rate,$E$75:E$75),$D$75)>0),0,IF(NPV(Preferred_Return_Rate,$E$75:F$75)+$D$75<0,F75,FV(Preferred_Return_Rate,F$20,,NPV(Preferred_Return_Rate,$E$75:E$75)+$D75))) -> 0 | G76: =IF(OR(G$20>Hold,Preferred_Return_Rate=0,$D$9<>"IRR",SUM(NPV(Preferred_Return_Rate,$E$75:F$75),$D$75)>0),0,IF(NPV(Preferred_Return_Rate,$E$75:G$75)+$D$75<0,G75,FV(Preferred_Return_Rate,G$20,,NPV(Preferred_Return_Rate,$E$75:F$75)+$D75))) -> 0 | H76: =IF(OR(H$20>Hold,Preferred_Return_Rate=0,$D$9<>"IRR",SUM(NPV(Preferred_Return_Rate,$E$75:G$75),$D$75)>0),0,IF(NPV(Preferred_Return_Rate,$E$75:H$75)+$D$75<0,H75,FV(Preferred_Return_Rate,H$20,,NPV(Preferred_Return_Rate,$E$75:G$75)+$D75))) -> 0 | I76: =IF(OR(I$20>Hold,Preferred_Return_Rate=0,$D$9<>"IRR",SUM(NPV(Preferred_Return_Rate,$E$75:H$75),$D$75)>0),0,IF(NPV(Preferred_Return_Rate,$E$75:I$75)+$D$75<0,I75,FV(Preferred_Return_Rate,I$20,,NPV(Preferred_Return_Rate,$E$75:H$75)+$D75))) -> 0 | J76: =IF(OR(J$20>Hold,Preferred_Return_Rate=0,$D$9<>"IRR",SUM(NPV(Preferred_Return_Rate,$E$75:I$75),$D$75)>0),0,IF(NPV(Preferred_Return_Rate,$E$75:J$75)+$D$75<0,J75,FV(Preferred_Return_Rate,J$20,,NPV(Preferred_Return_Rate,$E$75:I$75)+$D75))) -> 0 | K76: =IF(OR(K$20>Hold,Preferred_Return_Rate=0,$D$9<>"IRR",SUM(NPV(Preferred_Return_Rate,$E$75:J$75),$D$75)>0),0,IF(NPV(Preferred_Return_Rate,$E$75:K$75)+$D$75<0,K75,FV(Preferred_Return_Rate,K$20,,NPV(Preferred_Return_Rate,$E$75:J$75)+$D75))) -> 0 | L76: =IF(OR(L$20>Hold,Preferred_Return_Rate=0,$D$9<>"IRR",SUM(NPV(Preferred_Return_Rate,$E$75:K$75),$D$75)>0),0,IF(NPV(Preferred_Return_Rate,$E$75:L$75)+$D$75<0,L75,FV(Preferred_Return_Rate,L$20,,NPV(Preferred_Return_Rate,$E$75:K$75)+$D75))) -> 0 | M76: =IF(OR(M$20>Hold,Preferred_Return_Rate=0,$D$9<>"IRR",SUM(NPV(Preferred_Return_Rate,$E$75:L$75),$D$75)>0),0,IF(NPV(Preferred_Return_Rate,$E$75:M$75)+$D$75<0,M75,FV(Preferred_Return_Rate,M$20,,NPV(Preferred_Return_Rate,$E$75:L$75)+$D75))) -> 0 | N76: =IF(OR(N$20>Hold,Preferred_Return_Rate=0,$D$9<>"IRR",SUM(NPV(Preferred_Return_Rate,$E$75:M$75),$D$75)>0),0,IF(NPV(Preferred_Return_Rate,$E$75:N$75)+$D$75<0,N75,FV(Preferred_Return_Rate,N$20,,NPV(Preferred_Return_Rate,$E$75:M$75)+$D75))) -> 0
B77: Amount Paid at Preferred Return (COC) | D77: =IF($D$9="Cash on Cash",$D$21*Contribution_JV,0) -> 0 | E77: =IF(OR(E$70>Hold,Preferred_Return_Rate=0,$D$9<>"Cash on Cash"),0,MIN(-$D$75*Preferred_Return_Rate,E75)) -> 0 | F77: 0 | G77: 0 | H77: 0 | I77: 0 | J77: 0 | K77: 0 | L77: 0 | M77: 0 | N77: 0
B78: CF Remaining for Next Hurdle | D78: =D75-SUM(D76:D77) -> 0 | E78: 515106.375 | F78: 822908.715 | G78: 847595.9764 | H78: 873023.8557 | I78: 899214.5714 | J78: 926191.0086 | K78: 953976.7388 | L78: 982596.041 | M78: 1012073.922 | N78: 1042436.14
B80: ="Cash Flow Received by "&Name_Partner -> Cash Flow Received by JV Partner | D80: =SUM(D76:D77) -> 0 | E80: 0 | F80: 0 | G80: 0 | H80: 0 | I80: 0 | J80: 0 | K80: 0 | L80: 0 | M80: 0 | N80: 0
B81: =Name_Partner&" IRR at "&B73 -> JV Partner IRR at Preferred Return | C81: =IFERROR(IRR(D80:N80),"-") -> -
B83: Cumulative Preferred Return Catchup
B84: Cumulative Amount Due as Preferred Return | E84: =IF(OR(Hold<E70,$D$9<>"Cash on Cash",Preferred_Return_Method<>"Cumulative"),0,(Equity_Amount*Contribution_JV)*Preferred_Return_Rate*E$70) -> 0 | F84: 0 | G84: 0 | H84: 0 | I84: 0 | J84: 0 | K84: 0 | L84: 0 | M84: 0 | N84: 0
B85: Cumulative Amount Paid as Preferred Return | E85: =IF(OR(Hold<E70,Preferred_Return_Method<>"Cumulative",$D$9<>"Cash on Cash"),0,SUM($E$77:E77,$D$87:D87)) -> 0 | F85: =IF(OR(Hold<F70,Preferred_Return_Method<>"Cumulative",$D$9<>"Cash on Cash"),0,SUM($E$77:F77,$D$87:E87)) -> 0 | G85: =IF(OR(Hold<G70,Preferred_Return_Method<>"Cumulative",$D$9<>"Cash on Cash"),0,SUM($E$77:G77,$D$87:F87)) -> 0 | H85: =IF(OR(Hold<H70,Preferred_Return_Method<>"Cumulative",$D$9<>"Cash on Cash"),0,SUM($E$77:H77,$D$87:G87)) -> 0 | I85: =IF(OR(Hold<I70,Preferred_Return_Method<>"Cumulative",$D$9<>"Cash on Cash"),0,SUM($E$77:I77,$D$87:H87)) -> 0 | J85: =IF(OR(Hold<J70,Preferred_Return_Method<>"Cumulative",$D$9<>"Cash on Cash"),0,SUM($E$77:J77,$D$87:I87)) -> 0 | K85: =IF(OR(Hold<K70,Preferred_Return_Method<>"Cumulative",$D$9<>"Cash on Cash"),0,SUM($E$77:K77,$D$87:J87)) -> 0 | L85: =IF(OR(Hold<L70,Preferred_Return_Method<>"Cumulative",$D$9<>"Cash on Cash"),0,SUM($E$77:L77,$D$87:K87)) -> 0 | M85: =IF(OR(Hold<M70,Preferred_Return_Method<>"Cumulative",$D$9<>"Cash on Cash"),0,SUM($E$77:M77,$D$87:L87)) -> 0 | N85: =IF(OR(Hold<N70,Preferred_Return_Method<>"Cumulative",$D$9<>"Cash on Cash"),0,SUM($E$77:N77,$D$87:M87)) -> 0
B86: Balance Remaining | E86: =E84-E85 -> 0 | F86: =F84-F85 -> 0 | G86: 0 | H86: 0 | I86: 0 | J86: 0 | K86: 0 | L86: 0 | M86: 0 | N86: 0
B87: Catch Up Paid | E87: =IF(AND(E86>0,E75>(Equity_Amount*Contribution_JV*Preferred_Return_Rate)),MIN(E78,E86),0) -> 0 | F87: 0 | G87: 0 | H87: 0 | I87: 0 | J87: 0 | K87: 0 | L87: 0 | M87: 0 | N87: 0
B88: ="Total Annual Cash Flow to "&Name_Partner -> Total Annual Cash Flow to JV Partner | E88: =SUM(E80,E87) -> 0 | F88: =SUM(F80,F87) -> 0 | G88: 0 | H88: 0 | I88: 0 | J88: 0 | K88: 0 | L88: 0 | M88: 0 | N88: 0
B90: =Name_Developer -> Developer
B91: ="CF Allocation at "&ROUND(Pref_Developer*100,1)&"%" -> CF Allocation at 0% | D91: =D$71*Contribution_Developer -> 0 | E91: =E$71*Pref_Developer -> 0 | F91: 0 | G91: 0 | H91: 0 | I91: 0 | J91: 0 | K91: 0 | L91: 0 | M91: 0 | N91: 0
B92: Amount Paid at Preferred Return (IRR) | D92: =IF($D$9="IRR",$D$21*Contribution_Developer,0) -> 0 | E92: =IF(OR(E$20>Hold,Preferred_Return_Rate=0,$D$9<>"IRR"),0,IF(NPV(Preferred_Return_Rate,$E$91:E$91)+$D$91<0,E91,FV(Preferred_Return_Rate,E$20,,D91))) -> 0 | F92: =IF(OR(F$20>Hold,Preferred_Return_Rate=0,$D$9<>"IRR",SUM(NPV(Preferred_Return_Rate,$E$91:E$91),$D$91)>0),0,IF(NPV(Preferred_Return_Rate,$E$91:F$91)+$D$91<0,F91,FV(Preferred_Return_Rate,F$20,,NPV(Preferred_Return_Rate,$E$91:E$91)+$D91))) -> 0 | G92: =IF(OR(G$20>Hold,Preferred_Return_Rate=0,$D$9<>"IRR",SUM(NPV(Preferred_Return_Rate,$E$91:F$91),$D$91)>0),0,IF(NPV(Preferred_Return_Rate,$E$91:G$91)+$D$91<0,G91,FV(Preferred_Return_Rate,G$20,,NPV(Preferred_Return_Rate,$E$91:F$91)+$D91))) -> 0 | H92: =IF(OR(H$20>Hold,Preferred_Return_Rate=0,$D$9<>"IRR",SUM(NPV(Preferred_Return_Rate,$E$91:G$91),$D$91)>0),0,IF(NPV(Preferred_Return_Rate,$E$91:H$91)+$D$91<0,H91,FV(Preferred_Return_Rate,H$20,,NPV(Preferred_Return_Rate,$E$91:G$91)+$D91))) -> 0 | I92: =IF(OR(I$20>Hold,Preferred_Return_Rate=0,$D$9<>"IRR",SUM(NPV(Preferred_Return_Rate,$E$91:H$91),$D$91)>0),0,IF(NPV(Preferred_Return_Rate,$E$91:I$91)+$D$91<0,I91,FV(Preferred_Return_Rate,I$20,,NPV(Preferred_Return_Rate,$E$91:H$91)+$D91))) -> 0 | J92: =IF(OR(J$20>Hold,Preferred_Return_Rate=0,$D$9<>"IRR",SUM(NPV(Preferred_Return_Rate,$E$91:I$91),$D$91)>0),0,IF(NPV(Preferred_Return_Rate,$E$91:J$91)+$D$91<0,J91,FV(Preferred_Return_Rate,J$20,,NPV(Preferred_Return_Rate,$E$91:I$91)+$D91))) -> 0 | K92: =IF(OR(K$20>Hold,Preferred_Return_Rate=0,$D$9<>"IRR",SUM(NPV(Preferred_Return_Rate,$E$91:J$91),$D$91)>0),0,IF(NPV(Preferred_Return_Rate,$E$91:K$91)+$D$91<0,K91,FV(Preferred_Return_Rate,K$20,,NPV(Preferred_Return_Rate,$E$91:J$91)+$D91))) -> 0 | L92: =IF(OR(L$20>Hold,Preferred_Return_Rate=0,$D$9<>"IRR",SUM(NPV(Preferred_Return_Rate,$E$91:K$91),$D$91)>0),0,IF(NPV(Preferred_Return_Rate,$E$91:L$91)+$D$91<0,L91,FV(Preferred_Return_Rate,L$20,,NPV(Preferred_Return_Rate,$E$91:K$91)+$D91))) -> 0 | M92: =IF(OR(M$20>Hold,Preferred_Return_Rate=0,$D$9<>"IRR",SUM(NPV(Preferred_Return_Rate,$E$91:L$91),$D$91)>0),0,IF(NPV(Preferred_Return_Rate,$E$91:M$91)+$D$91<0,M91,FV(Preferred_Return_Rate,M$20,,NPV(Preferred_Return_Rate,$E$91:L$91)+$D91))) -> 0 | N92: =IF(OR(N$20>Hold,Preferred_Return_Rate=0,$D$9<>"IRR",SUM(NPV(Preferred_Return_Rate,$E$91:M$91),$D$91)>0),0,IF(NPV(Preferred_Return_Rate,$E$91:N$91)+$D$91<0,N91,FV(Preferred_Return_Rate,N$20,,NPV(Preferred_Return_Rate,$E$91:M$91)+$D91))) -> 0
B93: Amount Paid at Preferred Return (COC) | D93: =IF($D$9="Cash on Cash",$D$21*Contribution_Developer,0) -> 0 | E93: =IF(OR(E$70>Hold,Preferred_Return_Rate=0,$D$9<>"Cash on Cash"),0,MIN(-$D$91*Preferred_Return_Rate,E91)) -> 0 | F93: 0 | G93: 0 | H93: 0 | I93: 0 | J93: 0 | K93: 0 | L93: 0 | M93: 0 | N93: 0
B94: CF Remaining for Next Hurdle | D94: =D91-SUM(D92:D93) -> 0 | E94: =E91-SUM(E92:E93) -> 0 | F94: 0 | G94: 0 | H94: 0 | I94: 0 | J94: 0 | K94: 0 | L94: 0 | M94: 0 | N94: 0
B96: ="Total CF Received by "&Name_Developer -> Total CF Received by Developer | D96: =SUM(D92:D93) -> 0 | E96: =SUM(E92:E93) -> 0 | F96: =SUM(F92:F93) -> 0 | G96: 0 | H96: 0 | I96: 0 | J96: 0 | K96: 0 | L96: 0 | M96: 0 | N96: 0
B97: =Name_Developer&" IRR at Preferred Return" -> Developer IRR at Preferred Return | C97: =IFERROR(IRR(D96:N96),"-") -> -
B99: Cumulative Preferred Return Catchup
B100: Cumulative Amount Due as Preferred Return | E100: =IF(OR(Hold<E70,$D$9<>"Cash on Cash",Preferred_Return_Method<>"Cumulative"),0,(Equity_Amount*Contribution_Developer)*Preferred_Return_Rate*E$70) -> 0 | F100: 0 | G100: 0 | H100: 0 | I100: 0 | J100: 0 | K100: 0 | L100: 0 | M100: 0 | N100: 0
B101: Cumulative Amount Paid as Preferred Return | E101: =IF(OR(Hold<E70,Preferred_Return_Method<>"Cumulative",$D$9<>"Cash on Cash"),0,SUM($E$93:E93,$D$103:D103)) -> 0 | F101: =IF(OR(Hold<F70,Preferred_Return_Method<>"Cumulative",$D$9<>"Cash on Cash"),0,SUM($E$93:F93,$D$103:E103)) -> 0 | G101: =IF(OR(Hold<G70,Preferred_Return_Method<>"Cumulative",$D$9<>"Cash on Cash"),0,SUM($E$93:G93,$D$103:F103)) -> 0 | H101: =IF(OR(Hold<H70,Preferred_Return_Method<>"Cumulative",$D$9<>"Cash on Cash"),0,SUM($E$93:H93,$D$103:G103)) -> 0 | I101: =IF(OR(Hold<I70,Preferred_Return_Method<>"Cumulative",$D$9<>"Cash on Cash"),0,SUM($E$93:I93,$D$103:H103)) -> 0 | J101: =IF(OR(Hold<J70,Preferred_Return_Method<>"Cumulative",$D$9<>"Cash on Cash"),0,SUM($E$93:J93,$D$103:I103)) -> 0 | K101: =IF(OR(Hold<K70,Preferred_Return_Method<>"Cumulative",$D$9<>"Cash on Cash"),0,SUM($E$93:K93,$D$103:J103)) -> 0 | L101: =IF(OR(Hold<L70,Preferred_Return_Method<>"Cumulative",$D$9<>"Cash on Cash"),0,SUM($E$93:L93,$D$103:K103)) -> 0 | M101: =IF(OR(Hold<M70,Preferred_Return_Method<>"Cumulative",$D$9<>"Cash on Cash"),0,SUM($E$93:M93,$D$103:L103)) -> 0 | N101: =IF(OR(Hold<N70,Preferred_Return_Method<>"Cumulative",$D$9<>"Cash on Cash"),0,SUM($E$93:N93,$D$103:M103)) -> 0
B102: Balance Remaining | E102: =E100-E101 -> 0 | F102: =F100-F101 -> 0 | G102: 0 | H102: 0 | I102: 0 | J102: 0 | K102: 0 | L102: 0 | M102: 0 | N102: 0
B103: Catch Up Paid | E103: =IF(AND(E102>0,E91>(Equity_Amount*Contribution_Developer*Preferred_Return_Rate)),MIN(E94,E102),0) -> 0 | F103: 0 | G103: 0 | H103: 0 | I103: 0 | J103: 0 | K103: 0 | L103: 0 | M103: 0 | N103: 0
B104: ="Total Annual Cash Flow to "&Name_Partner -> Total Annual Cash Flow to JV Partner | E104: =SUM(E96,E103) -> 0 | F104: =SUM(F96,F103) -> 0 | G104: 0 | H104: 0 | I104: 0 | J104: 0 | K104: 0 | L104: 0 | M104: 0 | N104: 0
B107: Total CF Paid at Preferred Return | D107: =SUM(D80,D96) -> 0 | E107: =SUM(E88,E104) -> 0 | F107: =SUM(F88,F104) -> 0 | G107: 0 | H107: 0 | I107: 0 | J107: 0 | K107: 0 | L107: 0 | M107: 0 | N107: 0
B108: CF Remaining for Next Hurdle | D108: =SUM(D78,D94) -> 0 | E108: =E$71-E$107 -> 515106.375 | F108: =F$71-F$107 -> 822908.715 | G108: 847595.9764 | H108: 873023.8557 | I108: 899214.5714 | J108: 926191.0086 | K108: 953976.7388 | L108: 982596.041 | M108: 1012073.922 | N108: 1042436.14
B110: Hurdle 1
B111: =Name_Partner -> JV Partner
B112: ="CF Allocation at "&ROUND(Hurdle1_Investor*100,1)&"%" -> CF Allocation at 90% | D112: =D108*Hurdle1_Investor -> 0 | E112: 463595.7375 | F112: 740617.8435 | G112: 762836.3788 | H112: 785721.4702 | I112: 809293.1143 | J112: 833571.9077 | K112: 858579.0649 | L112: 884336.4369 | M112: 910866.53 | N112: 938192.5259
B113: Amount Paid at Hurdle 1 (IRR) | D113: 0 | E113: =IF(OR(E$20>Hold,Hurdle1_Rate=0,$D$10<>"IRR"),0,MAX(0,MIN(E112,FV(Hurdle1_Rate,E$20,,NPV(Hurdle1_Rate,$E$80:E$80)+$D$80)))) -> 0 | F113: =IF(OR(F$20>Hold,Hurdle1_Rate=0,$D$10<>"IRR",SUM(NPV(Hurdle1_Rate,$E$117:E$117),$D$117)>=0),0,MAX(0,MIN(F112,FV(Hurdle1_Rate,F$20,,SUM(NPV(Hurdle1_Rate,$E$117:E$117,F80),$D$117))))) -> 0 | G113: =IF(OR(G$20>Hold,Hurdle1_Rate=0,$D$10<>"IRR",SUM(NPV(Hurdle1_Rate,$E$117:F$117),$D$117)>=0),0,MAX(0,MIN(G112,FV(Hurdle1_Rate,G$20,,SUM(NPV(Hurdle1_Rate,$E$117:F$117,G80),$D$117))))) -> 0 | H113: =IF(OR(H$20>Hold,Hurdle1_Rate=0,$D$10<>"IRR",SUM(NPV(Hurdle1_Rate,$E$117:G$117),$D$117)>=0),0,MAX(0,MIN(H112,FV(Hurdle1_Rate,H$20,,SUM(NPV(Hurdle1_Rate,$E$117:G$117,H80),$D$117))))) -> 0 | I113: =IF(OR(I$20>Hold,Hurdle1_Rate=0,$D$10<>"IRR",SUM(NPV(Hurdle1_Rate,$E$117:H$117),$D$117)>=0),0,MAX(0,MIN(I112,FV(Hurdle1_Rate,I$20,,SUM(NPV(Hurdle1_Rate,$E$117:H$117,I80),$D$117))))) -> 0 | J113: =IF(OR(J$20>Hold,Hurdle1_Rate=0,$D$10<>"IRR",SUM(NPV(Hurdle1_Rate,$E$117:I$117),$D$117)>=0),0,MAX(0,MIN(J112,FV(Hurdle1_Rate,J$20,,SUM(NPV(Hurdle1_Rate,$E$117:I$117,J80),$D$117))))) -> 0 | K113: =IF(OR(K$20>Hold,Hurdle1_Rate=0,$D$10<>"IRR",SUM(NPV(Hurdle1_Rate,$E$117:J$117),$D$117)>=0),0,MAX(0,MIN(K112,FV(Hurdle1_Rate,K$20,,SUM(NPV(Hurdle1_Rate,$E$117:J$117,K80),$D$117))))) -> 0 | L113: =IF(OR(L$20>Hold,Hurdle1_Rate=0,$D$10<>"IRR",SUM(NPV(Hurdle1_Rate,$E$117:K$117),$D$117)>=0),0,MAX(0,MIN(L112,FV(Hurdle1_Rate,L$20,,SUM(NPV(Hurdle1_Rate,$E$117:K$117,L80),$D$117))))) -> 0 | M113: =IF(OR(M$20>Hold,Hurdle1_Rate=0,$D$10<>"IRR",SUM(NPV(Hurdle1_Rate,$E$117:L$117),$D$117)>=0),0,MAX(0,MIN(M112,FV(Hurdle1_Rate,M$20,,SUM(NPV(Hurdle1_Rate,$E$117:L$117,M80),$D$117))))) -> 0 | N113: =IF(OR(N$20>Hold,Hurdle1_Rate=0,$D$10<>"IRR",SUM(NPV(Hurdle1_Rate,$E$117:M$117),$D$117)>=0),0,MAX(0,MIN(N112,FV(Hurdle1_Rate,N$20,,SUM(NPV(Hurdle1_Rate,$E$117:M$117,N80),$D$117))))) -> 0
B114: Amount Paid at Hurdle 1 (COC) | D114: 0 | E114: =IF(OR(E$70>Hold,Hurdle1_Rate=0,$D$10<>"Cash on Cash"),0,MIN(-$D$80*Hurdle1_Rate-E80,E112)) -> 0 | F114: 0 | G114: 0 | H114: 0 | I114: 0 | J114: 0 | K114: 0 | L114: 0 | M114: 0 | N114: 0
B115: CF Remaining for Next Hurdle | D115: =D112-SUM(D113:D114) -> 0 | E115: =E112-SUM(E113:E114) -> 463595.7375 | F115: 740617.8435 | G115: 762836.3788 | H115: 785721.4702 | I115: 809293.1143 | J115: 833571.9077 | K115: 858579.0649 | L115: 884336.4369 | M115: 910866.53 | N115: 938192.5259
B117: ="Cash Flow Received by "&Name_Partner -> Cash Flow Received by JV Partner | D117: =SUM(D80,D113:D114) -> 0 | E117: 0 | F117: 0 | G117: 0 | H117: 0 | I117: 0 | J117: 0 | K117: 0 | L117: 0 | M117: 0 | N117: 0
B118: =Name_Partner&" IRR at "&B110 -> JV Partner IRR at Hurdle 1 | C118: =IFERROR(IRR(D117:N117),"-") -> -
B120: =Name_Developer -> Developer
B121: ="CF Allocation at "&ROUND(Hurdle1_Developer*100,1)&"%" -> CF Allocation at 10% | D121: =D108*Hurdle1_Developer -> 0 | E121: 51510.6375 | F121: 82290.8715 | G121: 84759.59764 | H121: 87302.38557 | I121: 89921.45714 | J121: 92619.10086 | K121: 95397.67388 | L121: 98259.6041 | M121: 101207.3922 | N121: 104243.614
B122: Amount Paid at Hurdle 1 | D122: 0 | E122: =IF(OR(E$20>Hold,Hurdle1_Investor=0),0,(SUM(E113:E114)/Hurdle1_Investor)*Hurdle1_Developer) -> 0 | F122: 0 | G122: 0 | H122: 0 | I122: 0 | J122: 0 | K122: 0 | L122: 0 | M122: 0 | N122: 0
B123: CF Remaining for Next Hurdle | D123: =D121-D122 -> 0 | E123: =E121-E122 -> 51510.6375 | F123: 82290.8715 | G123: 84759.59764 | H123: 87302.38557 | I123: 89921.45714 | J123: 92619.10086 | K123: 95397.67388 | L123: 98259.6041 | M123: 101207.3922 | N123: 104243.614
B125: ="Total CF Received by "&Name_Developer -> Total CF Received by Developer | D125: =SUM(D92,D122) -> 0 | E125: =SUM(E92,E122) -> 0 | F125: 0 | G125: 0 | H125: 0 | I125: 0 | J125: 0 | K125: 0 | L125: 0 | M125: 0 | N125: 0
B126: =Name_Developer&" IRR at "&B110 -> Developer IRR at Hurdle 1 | C126: =IFERROR(IRR(D125:N125),"-") -> -
B128: Total CF Paid at Hurdle 1 | D128: =SUM(D113,D122) -> 0 | E128: =SUM(E113:E114,E122) -> 0 | F128: =SUM(F113:F114,F122) -> 0 | G128: 0 | H128: 0 | I128: 0 | J128: 0 | K128: 0 | L128: 0 | M128: 0 | N128: 0
B129: CF Remaining for Next Hurdle | D129: =D108-D128 -> 0 | E129: =E108-E128 -> 515106.375 | F129: 822908.715 | G129: 847595.9764 | H129: 873023.8557 | I129: 899214.5714 | J129: 926191.0086 | K129: 953976.7388 | L129: 982596.041 | M129: 1012073.922 | N129: 1042436.14
B131: Hurdle 2
B132: =Name_Partner -> JV Partner
B133: ="CF Allocation at "&ROUND(Hurdle2_Investor*100,1)&"%" -> CF Allocation at 80% | D133: =D129*Hurdle2_Investor -> 0 | E133: 412085.1 | F133: 658326.972 | G133: 678076.7812 | H133: 698419.0846 | I133: 719371.6571 | J133: 740952.8068 | K133: 763181.3911 | L133: 786076.8328 | M133: 809659.1378 | N133: 833948.9119
B134: Amount Paid at Hurdle 2 (IRR) | D134: 0 | E134: =IF(OR(E$20>Hold,Hurdle2_Rate=0,$D$11<>"IRR"),0,MAX(0,MIN(E133,FV(Hurdle2_Rate,E$20,,NPV(Hurdle2_Rate,$E$117:E$117)+$D$117)))) -> 0 | F134: =IF(OR(F$20>Hold,$D$11<>"IRR",Hurdle2_Rate=0,SUM(NPV(Hurdle2_Rate,$E$138:E$138),$D$138)>=0),0,MAX(0,MIN(F133,FV(Hurdle2_Rate,F$20,,SUM(NPV(Hurdle2_Rate,$E$138:E$138,F117),$D$138))))) -> 0 | G134: =IF(OR(G$20>Hold,$D$11<>"IRR",Hurdle2_Rate=0,SUM(NPV(Hurdle2_Rate,$E$138:F$138),$D$138)>=0),0,MAX(0,MIN(G133,FV(Hurdle2_Rate,G$20,,SUM(NPV(Hurdle2_Rate,$E$138:F$138,G117),$D$138))))) -> 0 | H134: =IF(OR(H$20>Hold,$D$11<>"IRR",Hurdle2_Rate=0,SUM(NPV(Hurdle2_Rate,$E$138:G$138),$D$138)>=0),0,MAX(0,MIN(H133,FV(Hurdle2_Rate,H$20,,SUM(NPV(Hurdle2_Rate,$E$138:G$138,H117),$D$138))))) -> 0 | I134: =IF(OR(I$20>Hold,$D$11<>"IRR",Hurdle2_Rate=0,SUM(NPV(Hurdle2_Rate,$E$138:H$138),$D$138)>=0),0,MAX(0,MIN(I133,FV(Hurdle2_Rate,I$20,,SUM(NPV(Hurdle2_Rate,$E$138:H$138,I117),$D$138))))) -> 0 | J134: =IF(OR(J$20>Hold,$D$11<>"IRR",Hurdle2_Rate=0,SUM(NPV(Hurdle2_Rate,$E$138:I$138),$D$138)>=0),0,MAX(0,MIN(J133,FV(Hurdle2_Rate,J$20,,SUM(NPV(Hurdle2_Rate,$E$138:I$138,J117),$D$138))))) -> 0 | K134: =IF(OR(K$20>Hold,$D$11<>"IRR",Hurdle2_Rate=0,SUM(NPV(Hurdle2_Rate,$E$138:J$138),$D$138)>=0),0,MAX(0,MIN(K133,FV(Hurdle2_Rate,K$20,,SUM(NPV(Hurdle2_Rate,$E$138:J$138,K117),$D$138))))) -> 0 | L134: =IF(OR(L$20>Hold,$D$11<>"IRR",Hurdle2_Rate=0,SUM(NPV(Hurdle2_Rate,$E$138:K$138),$D$138)>=0),0,MAX(0,MIN(L133,FV(Hurdle2_Rate,L$20,,SUM(NPV(Hurdle2_Rate,$E$138:K$138,L117),$D$138))))) -> 0 | M134: =IF(OR(M$20>Hold,$D$11<>"IRR",Hurdle2_Rate=0,SUM(NPV(Hurdle2_Rate,$E$138:L$138),$D$138)>=0),0,MAX(0,MIN(M133,FV(Hurdle2_Rate,M$20,,SUM(NPV(Hurdle2_Rate,$E$138:L$138,M117),$D$138))))) -> 0 | N134: =IF(OR(N$20>Hold,$D$11<>"IRR",Hurdle2_Rate=0,SUM(NPV(Hurdle2_Rate,$E$138:M$138),$D$138)>=0),0,MAX(0,MIN(N133,FV(Hurdle2_Rate,N$20,,SUM(NPV(Hurdle2_Rate,$E$138:M$138,N117),$D$138))))) -> 0
B135: Amount Paid at Hurdle 2 (COC) | D135: 0 | E135: =IF(OR(E$70>Hold,Hurdle2_Rate=0,$D$11<>"Cash on Cash"),0,MIN(-$D$80*Hurdle2_Rate-E117,E133)) -> 0 | F135: 0 | G135: 0 | H135: 0 | I135: 0 | J135: 0 | K135: 0 | L135: 0 | M135: 0 | N135: 0
B136: CF Remaining for Next Hurdle | D136: =D133-SUM(D134:D135) -> 0 | E136: =E133-SUM(E134:E135) -> 412085.1 | F136: 658326.972 | G136: 678076.7812 | H136: 698419.0846 | I136: 719371.6571 | J136: 740952.8068 | K136: 763181.3911 | L136: 786076.8328 | M136: 809659.1378 | N136: 833948.9119
B138: ="Cash Flow Received by "&Name_Partner -> Cash Flow Received by JV Partner | D138: =SUM(D117,D134:D135) -> 0 | E138: =SUM(E117,E134:E135) -> 0 | F138: 0 | G138: 0 | H138: 0 | I138: 0 | J138: 0 | K138: 0 | L138: 0 | M138: 0 | N138: 0
B139: =Name_Partner&" IRR at "&B131 -> JV Partner IRR at Hurdle 2 | C139: =IFERROR(IRR(D138:N138),"-") -> -
B141: =Name_Developer -> Developer
B142: ="CF Allocation at "&ROUND(Hurdle2_Developer*100,1)&"%" -> CF Allocation at 20% | D142: =D129*Hurdle2_Developer -> 0 | E142: 103021.275 | F142: 164581.743 | G142: 169519.1953 | H142: 174604.7711 | I142: 179842.9143 | J142: 185238.2017 | K142: 190795.3478 | L142: 196519.2082 | M142: 202414.7844 | N142: 208487.228
B143: Amount Paid at Hurdle 2 | D143: 0 | E143: =IF(OR(E$20>Hold,Hurdle2_Investor=0),0,(SUM(E134:E135)/Hurdle2_Investor)*Hurdle2_Developer) -> 0 | F143: 0 | G143: 0 | H143: 0 | I143: 0 | J143: 0 | K143: 0 | L143: 0 | M143: 0 | N143: 0
B144: CF Remaining for Next Hurdle | D144: =D142-D143 -> 0 | E144: =E142-E143 -> 103021.275 | F144: 164581.743 | G144: 169519.1953 | H144: 174604.7711 | I144: 179842.9143 | J144: 185238.2017 | K144: 190795.3478 | L144: 196519.2082 | M144: 202414.7844 | N144: 208487.228
B146: ="Total CF Received by "&Name_Developer -> Total CF Received by Developer | D146: =SUM(D125,D143) -> 0 | E146: =SUM(E125,E143) -> 0 | F146: 0 | G146: 0 | H146: 0 | I146: 0 | J146: 0 | K146: 0 | L146: 0 | M146: 0 | N146: 0
B147: =Name_Developer&" IRR at "&B131 -> Developer IRR at Hurdle 2 | C147: =IFERROR(IRR(D146:N146),"-") -> -
B149: Total CF Paid at Hurdle 2 | D149: =SUM(D134:D135,D143) -> 0 | E149: =SUM(E134:E135,E143) -> 0 | F149: 0 | G149: 0 | H149: 0 | I149: 0 | J149: 0 | K149: 0 | L149: 0 | M149: 0 | N149: 0
B150: CF Remaining for Next Hurdle | D150: =D129-D149 -> 0 | E150: =E129-E149 -> 515106.375 | F150: 822908.715 | G150: 847595.9764 | H150: 873023.8557 | I150: 899214.5714 | J150: 926191.0086 | K150: 953976.7388 | L150: 982596.041 | M150: 1012073.922 | N150: 1042436.14
B152: Hurdle 3
B153: =Name_Partner -> JV Partner
B154: ="CF Allocation at "&ROUND(Hurdle3_Investor*100,1)&"%" -> CF Allocation at 70% | D154: =D150*Hurdle3_Investor -> 0 | E154: 360574.4625 | F154: 576036.1005 | G154: 593317.1835 | H154: 611116.699 | I154: 629450.2 | J154: 648333.706 | K154: 667783.7172 | L154: 687817.2287 | M154: 708451.7455 | N154: 729705.2979
B155: Amount Paid at Hurdle 3 (IRR) | D155: 0 | E155: =IF(OR(E$20>Hold,Hurdle3_Rate=0,$D$12<>"IRR"),0,MAX(0,MIN(E154,FV(Hurdle3_Rate,E$20,,NPV(Hurdle3_Rate,$E$138:E$138)+$D$138)))) -> 0 | F155: =IF(OR(F$20>Hold,$D$12<>"IRR",Hurdle3_Rate=0,SUM(NPV(Hurdle3_Rate,$E$159:E$159),$D$159)>=0),0,MAX(0,MIN(F154,FV(Hurdle3_Rate,F$20,,SUM(NPV(Hurdle3_Rate,$E$159:E$159,F138),$D$159))))) -> 0 | G155: =IF(OR(G$20>Hold,$D$12<>"IRR",Hurdle3_Rate=0,SUM(NPV(Hurdle3_Rate,$E$159:F$159),$D$159)>=0),0,MAX(0,MIN(G154,FV(Hurdle3_Rate,G$20,,SUM(NPV(Hurdle3_Rate,$E$159:F$159,G138),$D$159))))) -> 0 | H155: =IF(OR(H$20>Hold,$D$12<>"IRR",Hurdle3_Rate=0,SUM(NPV(Hurdle3_Rate,$E$159:G$159),$D$159)>=0),0,MAX(0,MIN(H154,FV(Hurdle3_Rate,H$20,,SUM(NPV(Hurdle3_Rate,$E$159:G$159,H138),$D$159))))) -> 0 | I155: =IF(OR(I$20>Hold,$D$12<>"IRR",Hurdle3_Rate=0,SUM(NPV(Hurdle3_Rate,$E$159:H$159),$D$159)>=0),0,MAX(0,MIN(I154,FV(Hurdle3_Rate,I$20,,SUM(NPV(Hurdle3_Rate,$E$159:H$159,I138),$D$159))))) -> 0 | J155: =IF(OR(J$20>Hold,$D$12<>"IRR",Hurdle3_Rate=0,SUM(NPV(Hurdle3_Rate,$E$159:I$159),$D$159)>=0),0,MAX(0,MIN(J154,FV(Hurdle3_Rate,J$20,,SUM(NPV(Hurdle3_Rate,$E$159:I$159,J138),$D$159))))) -> 0 | K155: =IF(OR(K$20>Hold,$D$12<>"IRR",Hurdle3_Rate=0,SUM(NPV(Hurdle3_Rate,$E$159:J$159),$D$159)>=0),0,MAX(0,MIN(K154,FV(Hurdle3_Rate,K$20,,SUM(NPV(Hurdle3_Rate,$E$159:J$159,K138),$D$159))))) -> 0 | L155: =IF(OR(L$20>Hold,$D$12<>"IRR",Hurdle3_Rate=0,SUM(NPV(Hurdle3_Rate,$E$159:K$159),$D$159)>=0),0,MAX(0,MIN(L154,FV(Hurdle3_Rate,L$20,,SUM(NPV(Hurdle3_Rate,$E$159:K$159,L138),$D$159))))) -> 0 | M155: =IF(OR(M$20>Hold,$D$12<>"IRR",Hurdle3_Rate=0,SUM(NPV(Hurdle3_Rate,$E$159:L$159),$D$159)>=0),0,MAX(0,MIN(M154,FV(Hurdle3_Rate,M$20,,SUM(NPV(Hurdle3_Rate,$E$159:L$159,M138),$D$159))))) -> 0 | N155: =IF(OR(N$20>Hold,$D$12<>"IRR",Hurdle3_Rate=0,SUM(NPV(Hurdle3_Rate,$E$159:M$159),$D$159)>=0),0,MAX(0,MIN(N154,FV(Hurdle3_Rate,N$20,,SUM(NPV(Hurdle3_Rate,$E$159:M$159,N138),$D$159))))) -> 0
B156: Amount Paid at Hurdle 3 (COC) | D156: 0 | E156: =IF(OR(E$70>Hold,Hurdle3_Rate=0,$D$12<>"Cash on Cash"),0,MIN(-$D$80*Hurdle3_Rate-E138,E154)) -> 0 | F156: 0 | G156: 0 | H156: 0 | I156: 0 | J156: 0 | K156: 0 | L156: 0 | M156: 0 | N156: 0
B157: CF Remaining for Next Hurdle | D157: =D154-D155 -> 0 | E157: =E154-E155 -> 360574.4625 | F157: 576036.1005 | G157: 593317.1835 | H157: 611116.699 | I157: 629450.2 | J157: 648333.706 | K157: 667783.7172 | L157: 687817.2287 | M157: 708451.7455 | N157: 729705.2979
B159: ="Cash Flow Received by "&Name_Partner -> Cash Flow Received by JV Partner | D159: =SUM(D138,D155:D156) -> 0 | E159: =SUM(E138,E155:E156) -> 0 | F159: 0 | G159: 0 | H159: 0 | I159: 0 | J159: 0 | K159: 0 | L159: 0 | M159: 0 | N159: 0
B160: =Name_Partner&" IRR at "&B152 -> JV Partner IRR at Hurdle 3 | C160: =IFERROR(IRR(D159:N159),"-") -> -
B162: =Name_Developer -> Developer
B163: ="CF Allocation at "&ROUND(Hurdle3_Developer*100,1)&"%" -> CF Allocation at 30% | D163: =D150*Hurdle3_Developer -> 0 | E163: 154531.9125 | F163: 246872.6145 | G163: 254278.7929 | H163: 261907.1567 | I163: 269764.3714 | J163: 277857.3026 | K163: 286193.0216 | L163: 294778.8123 | M163: 303622.1767 | N163: 312730.842
B164: Amount Paid at Hurdle 3 | D164: 0 | E164: =IF(OR(E$20>Hold,Hurdle3_Investor=0),0,(SUM(E155:E156)/Hurdle3_Investor)*Hurdle3_Developer) -> 0 | F164: 0 | G164: 0 | H164: 0 | I164: 0 | J164: 0 | K164: 0 | L164: 0 | M164: 0 | N164: 0
B165: CF Remaining for Next Hurdle | D165: =D163-D164 -> 0 | E165: =E163-E164 -> 154531.9125 | F165: 246872.6145 | G165: 254278.7929 | H165: 261907.1567 | I165: 269764.3714 | J165: 277857.3026 | K165: 286193.0216 | L165: 294778.8123 | M165: 303622.1767 | N165: 312730.842
B167: ="Total CF Received by "&Name_Developer -> Total CF Received by Developer | D167: =SUM(D146,D164) -> 0 | E167: =SUM(E146,E164) -> 0 | F167: 0 | G167: 0 | H167: 0 | I167: 0 | J167: 0 | K167: 0 | L167: 0 | M167: 0 | N167: 0
B168: =Name_Developer&" IRR at "&B152 -> Developer IRR at Hurdle 3 | C168: =IFERROR(IRR(D167:N167),"-") -> -
B170: Total CF Paid at Hurdle 3 | D170: =SUM(D155:D156,D164) -> 0 | E170: =SUM(E155:E156,E164) -> 0 | F170: 0 | G170: 0 | H170: 0 | I170: 0 | J170: 0 | K170: 0 | L170: 0 | M170: 0 | N170: 0
B171: CF Remaining for Next Hurdle | D171: =D150-D170 -> 0 | E171: =E150-E170 -> 515106.375 | F171: 822908.715 | G171: 847595.9764 | H171: 873023.8557 | I171: 899214.5714 | J171: 926191.0086 | K171: 953976.7388 | L171: 982596.041 | M171: 1012073.922 | N171: 1042436.14
B173: Final Split
B174: =Name_Partner -> JV Partner
B175: ="CF Paid at "&ROUND(Hurdle_Final_Investor*100,1)&"%" -> CF Paid at 60% | D175: =D171*Hurdle_Final_Investor -> 0 | E175: 309063.825 | F175: 493745.229 | G175: 508557.5859 | H175: 523814.3134 | I175: 539528.7428 | J175: 555714.6051 | K175: 572386.0433 | L175: 589557.6246 | M175: 607244.3533 | N175: 625461.6839
B176: ="Total CF Received by "&Name_Partner -> Total CF Received by JV Partner | D176: =SUM(D159,D175) -> 0 | E176: =SUM(E159,E175) -> 309063.825 | F176: 493745.229 | G176: 508557.5859 | H176: 523814.3134 | I176: 539528.7428 | J176: 555714.6051 | K176: 572386.0433 | L176: 589557.6246 | M176: 607244.3533 | N176: 625461.6839
B177: ="Final "&Name_Partner&" IRR" -> Final JV Partner IRR | C177: =IFERROR(IRR(D176:N176),"-") -> -
B179: =Name_Developer -> Developer
B180: ="CF Paid at "&ROUND(Hurdle_Final_Developer*100,1)&"%" -> CF Paid at 40% | D180: =D171*Hurdle_Final_Developer -> 0 | E180: 206042.55 | F180: 329163.486 | G180: 339038.3906 | H180: 349209.5423 | I180: 359685.8286 | J180: 370476.4034 | K180: 381590.6955 | L180: 393038.4164 | M180: 404829.5689 | N180: 416974.456
B181: ="Total CF Received by "&Name_Developer -> Total CF Received by Developer | D181: =SUM(D167,D180) -> 0 | E181: =SUM(E167,E180) -> 206042.55 | F181: 329163.486 | G181: 339038.3906 | H181: 349209.5423 | I181: 359685.8286 | J181: 370476.4034 | K181: 381590.6955 | L181: 393038.4164 | M181: 404829.5689 | N181: 416974.456
B182: ="Final "&Name_Developer&" IRR" -> Final Developer IRR | C182: =IFERROR(IRR(D181:N181),"-") -> -
B185: www.realpropmetrics.com
B186: ="Version: "&Version -> Version: 9.42 SH | © 2022
B187: =TODAY() -> 2022-02-23
B188: This pro forma does not constitute tax advice. Please consult a professional tax advisor.

Sheet Holding Period Sensitivity
B3: Holding Period Sensitivity Analysis
B4: These charts show the project's perfomanced based on Disposition year. They assume continued financing regardless of term.
B47: Project Level IRR Sensitivity
B49: Period | D49: 1 | E49: =D49+1 -> 2 | F49: =E49+1 -> 3 | G49: 4 | H49: 5 | I49: 6 | J49: 7 | K49: 8 | L49: 9 | M49: 10 | N49: 11
B52: NOI (exlcuding Reserves) | D52: ='Cash Flows'!F59 -> 515106.375 | E52: ='Cash Flows'!G59 -> 822908.715 | F52: ='Cash Flows'!H59 -> 847595.9764 | G52: ='Cash Flows'!I59 -> 873023.8557 | H52: ='Cash Flows'!J59 -> 899214.5714 | I52: ='Cash Flows'!K59 -> 926191.0086 | J52: ='Cash Flows'!L59 -> 953976.7388 | K52: ='Cash Flows'!M59 -> 982596.041 | L52: ='Cash Flows'!N59 -> 1012073.922 | M52: ='Cash Flows'!O59 -> 1042436.14 | N52: ='Cash Flows'!P59 -> 1073709.224
B53: Refinance Proceeds | D53: ='Cash Flows'!F98 -> 0 | E53: ='Cash Flows'!G98 -> 0 | F53: ='Cash Flows'!H98 -> 0 | G53: ='Cash Flows'!I98 -> 0 | H53: ='Cash Flows'!J98 -> 0 | I53: ='Cash Flows'!K98 -> 0 | J53: ='Cash Flows'!L98 -> 0 | K53: ='Cash Flows'!M98 -> 0 | L53: ='Cash Flows'!N98 -> 0 | M53: ='Cash Flows'!O98 -> 0 | N53: ='Cash Flows'!P98 -> 0
B54: Less: Reserves | D54: =-'Cash Flows'!F65 -> 0 | E54: =-'Cash Flows'!G65 -> 0 | F54: =-'Cash Flows'!H65 -> 0 | G54: =-'Cash Flows'!I65 -> 0 | H54: =-'Cash Flows'!J65 -> 0 | I54: =-'Cash Flows'!K65 -> 0 | J54: =-'Cash Flows'!L65 -> 0 | K54: =-'Cash Flows'!M65 -> 0 | L54: =-'Cash Flows'!N65 -> 0 | M54: =-'Cash Flows'!O65 -> 0 | N54: =-'Cash Flows'!P65 -> 0
B55: Less: Debt Service | D55: =-'Cash Flows'!F90 -> 0 | E55: =-'Cash Flows'!G90 -> 0 | F55: =-'Cash Flows'!H90 -> 0 | G55: =-'Cash Flows'!I90 -> 0 | H55: =-'Cash Flows'!J90 -> 0 | I55: =-'Cash Flows'!K90 -> 0 | J55: =-'Cash Flows'!L90 -> 0 | K55: =-'Cash Flows'!M90 -> 0 | L55: =-'Cash Flows'!N90 -> 0 | M55: =-'Cash Flows'!O90 -> 0 | N55: 0
B56: Cash Flow After Debt Service | D56: =SUM(D52:D55) -> 515106.375 | E56: 822908.715 | F56: 847595.9764 | G56: 873023.8557 | H56: 899214.5714 | I56: 926191.0086 | J56: 953976.7388 | K56: 982596.041 | L56: 1012073.922 | M56: 1042436.14 | N56: 1073709.224
B57: Less: Mortgage Origination Fee | D57: ='Cash Flows'!F209 -> 0 | E57: ='Cash Flows'!G209 -> 0 | F57: ='Cash Flows'!H209 -> 0 | G57: ='Cash Flows'!I209 -> 0 | H57: ='Cash Flows'!J209 -> 0 | I57: ='Cash Flows'!K209 -> 0 | J57: ='Cash Flows'!L209 -> 0 | K57: ='Cash Flows'!M209 -> 0 | L57: ='Cash Flows'!N209 -> 0 | M57: ='Cash Flows'!O209 -> 0 | N57: 0
B58: Less: Capital Expenses | D58: =-'Cash Flows'!F112 -> 0 | E58: =-'Cash Flows'!G112 -> 0 | F58: =-'Cash Flows'!H112 -> 0 | G58: =-'Cash Flows'!I112 -> 0 | H58: =-'Cash Flows'!J112 -> 0 | I58: =-'Cash Flows'!K112 -> 0 | J58: =-'Cash Flows'!L112 -> 0 | K58: =-'Cash Flows'!M112 -> 0 | L58: =-'Cash Flows'!N112 -> 0 | M58: =-'Cash Flows'!O112 -> 0 | N58: 0
B59: Other Non-Regular Income | D59: =SUM('Cash Flows'!F115:F117) -> 0 | E59: =SUM('Cash Flows'!G115:G117) -> 0 | F59: =SUM('Cash Flows'!H115:H117) -> 0 | G59: =SUM('Cash Flows'!I115:I117) -> 0 | H59: =SUM('Cash Flows'!J115:J117) -> 0 | I59: =SUM('Cash Flows'!K115:K117) -> 0 | J59: =SUM('Cash Flows'!L115:L117) -> 0 | K59: =SUM('Cash Flows'!M115:M117) -> 0 | L59: =SUM('Cash Flows'!N115:N117) -> 0 | M59: =SUM('Cash Flows'!O115:O117) -> 0 | N59: =SUM('Cash Flows'!P115:P117) -> 0
B60: Distributable Cash Flow | D60: =SUM(D56:D59) -> 515106.375 | E60: =SUM(E56:E59) -> 822908.715 | F60: 847595.9764 | G60: 873023.8557 | H60: 899214.5714 | I60: 926191.0086 | J60: 953976.7388 | K60: 982596.041 | L60: 1012073.922 | M60: 1042436.14 | N60: 1073709.224
B62: Reversion Analysis (if sold in this year)
B63: Reversion Cash Flow | D63: =IF(Disposition="Cap Rate",E52/Exit_Rate,FV(Exit_Rate,D49,0,-Acquisition_Gross)) -> 8229087.15 | E63: 8475959.764 | F63: 8730238.557 | G63: 8992145.714 | H63: 9261910.086 | I63: 9539767.388 | J63: 9825960.41 | K63: 10120739.22 | L63: 10424361.4 | M63: 10737092.24
B64: Less: Cost of Sale | D64: =-D63*Sale_Cost -> 0 | E64: 0 | F64: 0 | G64: 0 | H64: 0 | I64: 0 | J64: 0 | K64: 0 | L64: 0 | M64: 0
B65: Less: Mortgage Exit Fee | D65: =D66*Loan_Exit_Fee -> 0 | E65: 0 | F65: 0 | G65: 0 | H65: 0 | I65: 0 | J65: 0 | K65: 0 | L65: 0 | M65: 0
B66: Less: Mortgage Balance | D66: =-VLOOKUP(D$49*12,Amortization_Schedule_Monthly,9,FALSE) -> 0 | E66: 0 | F66: 0 | G66: 0 | H66: 0 | I66: 0 | J66: 0 | K66: 0 | L66: 0 | M66: 0
B67: Return of Reserve Funds | D67: ='Cash Flows'!F162 -> 0 | E67: ='Cash Flows'!G162 -> 0 | F67: ='Cash Flows'!H162 -> 0 | G67: ='Cash Flows'!I162 -> 0 | H67: ='Cash Flows'!J162 -> 0 | I67: ='Cash Flows'!K162 -> 0 | J67: ='Cash Flows'!L162 -> 0 | K67: ='Cash Flows'!M162 -> 0 | L67: ='Cash Flows'!N162 -> 0 | M67: ='Cash Flows'!O162 -> 0
B68: Reversion Balance | D68: =SUM(D63:D67) -> 8229087.15 | E68: =SUM(E63:E67) -> 8475959.764 | F68: 8730238.557 | G68: 8992145.714 | H68: 9261910.086 | I68: 9539767.388 | J68: 9825960.41 | K68: 10120739.22 | L68: 10424361.4 | M68: 10737092.24
B71: Periods | C71: 0 | D71: =C71+1 -> 1 | E71: =D71+1 -> 2 | F71: 3 | G71: 4 | H71: 5 | I71: 6 | J71: 7 | K71: =J71+1 -> 8 | L71: 9 | M71: 10 | N71: IRR | O71: NPV
B72: 1 | C72: =-Equity_Amount -> 0 | D72: =IF($B72<D$49,0,IF($B72=D$49,SUM($D$60,D$68),D$60)) -> 8744193.525 | E72: 0 | F72: 0 | G72: 0 | H72: 0 | I72: 0 | J72: 0 | K72: 0 | L72: 0 | M72: 0 | N72: =IFERROR(IRR(C72:M72),"-") -> - | O72: =SUM(C72,NPV(Equity_Rate,D72:M72)) -> 7949266.841
B73: 2 | C73: 0 | D73: =IF($B73<D$49,0,IF($B73=D$49,SUM(D$60,D$68),D$60)) -> 515106.375 | E73: =IF($B73<E$49,0,IF($B73=E$49,SUM(E$60,E$68),E$60)) -> 9298868.479 | F73: 0 | G73: 0 | H73: 0 | I73: 0 | J73: 0 | K73: 0 | L73: 0 | M73: 0 | N73: =IFERROR(IRR(C73:M73),"-") -> - | O73: 8153293.795
B74: 3 | C74: 0 | D74: =IF($B74<D$49,0,IF($B74=D$49,SUM(D$60,D$68),D$60)) -> 515106.375 | E74: 822908.715 | F74: 9577834.534 | G74: 0 | H74: 0 | I74: 0 | J74: 0 | K74: 0 | L74: 0 | M74: 0 | N74: - | O74: 8344337.216
B75: 4 | C75: 0 | D75: 515106.375 | E75: 822908.715 | F75: 847595.9764 | G75: 9865169.57 | H75: 0 | I75: 0 | J75: 0 | K75: 0 | L75: 0 | M75: 0 | N75: - | O75: 8523223.328
B76: 5 | C76: 0 | D76: 515106.375 | E76: 822908.715 | F76: 847595.9764 | G76: 873023.8557 | H76: 10161124.66 | I76: 0 | J76: 0 | K76: 0 | L76: 0 | M76: 0 | N76: - | O76: 8690725.778
B77: 6 | C77: 0 | D77: 515106.375 | E77: 822908.715 | F77: 847595.9764 | G77: 873023.8557 | H77: 899214.5714 | I77: 10465958.4 | J77: 0 | K77: 0 | L77: 0 | M77: 0 | N77: - | O77: 8847568.982
B78: 7 | C78: 0 | D78: 515106.375 | E78: 822908.715 | F78: 847595.9764 | G78: 873023.8557 | H78: 899214.5714 | I78: 926191.0086 | J78: 10779937.15 | K78: 0 | L78: 0 | M78: 0 | N78: - | O78: 8994431.254
B79: 8 | C79: 0 | D79: 515106.375 | E79: 822908.715 | F79: 847595.9764 | G79: 873023.8557 | H79: 899214.5714 | I79: 926191.0086 | J79: 953976.7388 | K79: 11103335.26 | L79: 0 | M79: 0 | N79: - | O79: 9131947.746
B80: 9 | C80: 0 | D80: 515106.375 | E80: 822908.715 | F80: 847595.9764 | G80: 873023.8557 | H80: 899214.5714 | I80: 926191.0086 | J80: 953976.7388 | K80: 982596.041 | L80: 11436435.32 | M80: 0 | N80: - | O80: 9260713.188
B81: 10 | C81: 0 | D81: 515106.375 | E81: 822908.715 | F81: 847595.9764 | G81: 873023.8557 | H81: 899214.5714 | I81: 926191.0086 | J81: 953976.7388 | K81: 982596.041 | L81: 1012073.922 | M81: 11779528.38 | N81: - | O81: 9381284.465
F86: www.realpropmetrics.com
F87: ="Version: "&Version -> Version: 9.42 SH | © 2022
F88: =TODAY() -> 2022-02-23
